{"text_format":"1","workbook":"xlsx","n_sheets":6,"sheets":["Číselník","Sekty","List1","List2","List3","List4"],"not_rendered":{"charts":0,"images":1,"macros":1,"external_links":1,"defined_names":42,"comments":2,"pivot_tables":0},"unopened":[],"bounds":{"document_bytes":16777216,"sheet_cells":100000,"rows_first":2000,"rows_last":500,"rows_between":2000,"halvings":0,"cell_chars":16384,"cell_head_chars":4096},"cells_cut":0,"cells_raw":0,"read":"whole","date_system":"1900"}

{"sheet":"Číselník","index":0,"n_rows":305,"n_cols":19,"rows_kept":305,"cut":false,"hidden":false,"merged":[]}
[62]
[]
["SAP","název","název potraviny","Ev.č.j. ","nápoje nad 1,2 % alkoholu - obsah alkoholu","země původu nebo místo provenience ","jméno nebo obch. název PPP","Obsah cukru","alergenní látky","jmenovitý objem","EAN kartonu",null,null,"Balení","Alkohol","Cukr","Země původu","Název potraviny","Výrobce"]
[5100000,"Bohemia Sekt demi sec 0,75 l","jakostní šumivé víno","xx",0.11,"Vyrobeno v České republice","Výrobce BOHEMIA SEKT,s.r.o. Smetanova 220, 332 02 Starý Plzenec, Česká republika","demi sec","obsahuje siřičitany",0.75,8594000941019,null,null,0.2,0,"brut","Vyrobeno v České republice","jakostní šumivé víno","Výrobce BOHEMIA SEKT,s.r.o. Smetanova 220, 332 02 Starý Plzenec, Česká republika"]
[5100100,"Bohemia Sekt demi sec 0,375 l","jakostní šumivé víno","xx",0.11,"Vyrobeno v České republice","Výrobce BOHEMIA SEKT,s.r.o. Smetanova 220, 332 02 Starý Plzenec, Česká republika","demi sec","obsahuje siřičitany",0.375,8594000941323,null,null,0.375,0.11,"demi sec","Vyrobeno v Německu","šumivé víno","Výrobce Furst von Metternich Sektkellerei GMBH, D-65366 Johannisberg, Německo"]
[5100200,"Bohemia Sekt demi sec 0,2 l","jakostní šumivé víno","xx",0.11,"Vyrobeno v České republice","Výrobce BOHEMIA SEKT,s.r.o. Smetanova 220, 332 02 Starý Plzenec, Česká republika","demi sec","obsahuje siřičitany",0.2,8594000941651,null,null,0.75,0.115,"doux","Vyrobeno ve Francii","nealkoholické šumivé víno bílé","Výrobce Henkell & Co. Sektkellerei KG, Wiesbaden, Německo"]
[5100225,"Bohemia Sekt demi sec 0,2 l-6 pack","jakostní šumivé víno","xx",0.11,"Vyrobeno v České republice","Výrobce BOHEMIA SEKT,s.r.o. Smetanova 220, 332 02 Starý Plzenec, Česká republika","demi sec","obsahuje siřičitany",0.2,8594000941286,null,null,1.5,0.12,"sec","Sekt z České republiky","champagne","Výrobce Alfred Gratien, Epernay, NM-205-001, Francie"]
[5100286,"Bohemia Sekt demi sec 0,2 l /Makro 6 pack","jakostní šumivé víno","xx",0.11,"Vyrobeno v České republice","Výrobce BOHEMIA SEKT,s.r.o. Smetanova 220, 332 02 Starý Plzenec, Česká republika","demi sec","obsahuje siřičitany",0.2,8594000941224,null,null,3,0.125,"suchý","Vyrobeno na Slovensku","jakostní šumivé víno s.o.","Výrobce Hubert J.E, spol.s.r.o., Vinárska 137, 926 01 Sereď, Slovensko"]
[5100300,"Bohemia Sekt demi sec 1,5 l","jakostní šumivé víno","xx",0.11,"Vyrobeno v České republice","Výrobce BOHEMIA SEKT,s.r.o. Smetanova 220, 332 02 Starý Plzenec, Česká republika","demi sec","obsahuje siřičitany",1.5,8594000941583,null,null,null,0.13,"polosuché","víno z Evropského společenství","víno","Baleno v BOHEMIA SEKT,s.r.o. Smetanova 220, 332 02 Starý Plzenec, Česká republika"]
[5100800,"Bohemia Sekt demi sec 3 l / dárk.","jakostní šumivé víno","xx",0.11,"Vyrobeno v České republice","Výrobce BOHEMIA SEKT,s.r.o. Smetanova 220, 332 02 Starý Plzenec, Česká republika","demi sec","obsahuje siřičitany",3,8594000941682,null,null,null,0.13500000000000001,null,"Vyrobeno v Itálii","sekt z hroznů z biologického pěstování","Výrobce Mionetto Spa, Via Colderove 2, 310 49 Valdobiadene, Itálie"]
[5101000,"Bohemia Rose demi sec 0,75 l","jakostní šumivé víno","xx",0.11,"Vyrobeno v České republice","Výrobce BOHEMIA SEKT,s.r.o. Smetanova 220, 332 02 Starý Plzenec, Česká republika","demi sec","obsahuje siřičitany",0.75,8594000941040,null,null,null,null,null,null,null,"Výrobce Sektkellerei Carstens GMBH, Neustadt/Weinstrasse, Německo"]
[5101100,"Bohemia Rose demi sec 0,375 l","jakostní šumivé víno","xx",0.11,"Vyrobeno v České republice","Výrobce BOHEMIA SEKT,s.r.o. Smetanova 220, 332 02 Starý Plzenec, Česká republika","demi sec","obsahuje siřičitany",0.375,8594000941354]
[5101500,"Bohemia Sekt rosé brut 0,75","jakostní šumivé víno","xx",0.115,"Vyrobeno v České republice","Výrobce BOHEMIA SEKT,s.r.o. Smetanova 220, 332 02 Starý Plzenec, Česká republika","brut","obsahuje siřičitany",0.75,8594000941064]
[5101600,"Bohemia Sekt nealkoholický 0,75 l","nealkoholické šumivé víno bílé","xx",0,"Vyrobeno v Německu","Výrobce BOHEMIA SEKT,s.r.o. Smetanova 220, 332 02 Starý Plzenec, Česká republika","doux","obsahuje siřičitany",0.75,8594000941118]
[5101800,"Bohemia Sekt Blanc de Noirs brut 0,75 l","jakostní šumivé víno","xx",0.115,"Vyrobeno v České republice","Výrobce BOHEMIA SEKT,s.r.o. Smetanova 220, 332 02 Starý Plzenec, Česká republika","brut","obsahuje siřičitany",0.75,8594000941156]
[5102000,"Bohemia Sekt brut 0,75 l","jakostní šumivé víno","xx",0.12,"Vyrobeno v České republice","Výrobce BOHEMIA SEKT,s.r.o. Smetanova 220, 332 02 Starý Plzenec, Česká republika","brut","obsahuje siřičitany",0.75,8594000941088]
[5102100,"Bohemia Sekt brut 0,375 l","jakostní šumivé víno","xx",0.12,"Vyrobeno v České republice","Výrobce BOHEMIA SEKT,s.r.o. Smetanova 220, 332 02 Starý Plzenec, Česká republika","brut","obsahuje siřičitany",0.375,8594000941385]
[5102200,"Bohemia Sekt brut 0,2 l","jakostní šumivé víno","xx",0.12,"Vyrobeno v České republice","Výrobce BOHEMIA SEKT,s.r.o. Smetanova 220, 332 02 Starý Plzenec, Česká republika","brut","obsahuje siřičitany",0.2,8594000941668]
[5102286,"Bohemia Sekt brut 0,2 l / Makro 6 pack","jakostní šumivé víno","xx",0.12,"Vyrobeno v České republice","Výrobce BOHEMIA SEKT,s.r.o. Smetanova 220, 332 02 Starý Plzenec, Česká republika","brut","obsahuje siřičitany",0.2,8594000941231]
[5102300,"Bohemia Sekt brut 1,5 l","jakostní šumivé víno","xx",0.12,"Vyrobeno v České republice","Výrobce BOHEMIA SEKT,s.r.o. Smetanova 220, 332 02 Starý Plzenec, Česká republika","brut","obsahuje siřičitany",1.5,8594000941590]
[5102500,"Bohemia Sekt červ. 0,75 l","jakostní šumivé víno","xx",0.125,"Vyrobeno v České republice","Výrobce BOHEMIA SEKT,s.r.o. Smetanova 220, 332 02 Starý Plzenec, Česká republika","demi sec","obsahuje siřičitany",0.75,8594000941217]
[5102600,"Bohemia Sekt sec 0,75 l","jakostní šumivé víno","xx",0.11,"Vyrobeno v České republice","Výrobce BOHEMIA SEKT,s.r.o. Smetanova 220, 332 02 Starý Plzenec, Česká republika","sec","obsahuje siřičitany",0.75,8594000941101]
[5102700,"Bohemia Chardonnay brut 0,75 l","jakostní šumivé víno","xx",0.125,"Vyrobeno v České republice","Výrobce BOHEMIA SEKT,s.r.o. Smetanova 220, 332 02 Starý Plzenec, Česká republika","brut","obsahuje siřičitany",0.75,8594000941200]
[5102725,"Bohemia Chardonnay brut 0,75 l / dárk.","jakostní šumivé víno","xx",0.125,"Vyrobeno v České republice","Výrobce BOHEMIA SEKT,s.r.o. Smetanova 220, 332 02 Starý Plzenec, Česká republika","brut","obsahuje siřičitany",0.75,8594000941279]
[5104000,"Bohemia Sekt Prestige demi sec 0,75","jakostní šumivé víno","xx",0.125,"Vyrobeno v České republice","Výrobce BOHEMIA SEKT,s.r.o. Smetanova 220, 332 02 Starý Plzenec, Česká republika","demi sec","obsahuje siřičitany",0.75,8594000941446]
[5104100,"Bohemia Sekt Prestige brut 0,75 l","jakostní šumivé víno","xx",0.13,"Vyrobeno v České republice","Výrobce BOHEMIA SEKT,s.r.o. Smetanova 220, 332 02 Starý Plzenec, Česká republika","brut","obsahuje siřičitany",0.75,8594000941460]
[5104145,"Bohemia Sekt Prest. brut 0,75 l / B Delh","jakostní šumivé víno","xx",0.13,"Vyrobeno v České republice","Výrobce BOHEMIA SEKT,s.r.o. Smetanova 220, 332 02 Starý Plzenec, Česká republika","brut","obsahuje siřičitany",0.75,8594000941460]
[5104245,"Bohemia Sekt Prest. brut 0,75 l / B Cors","jakostní šumivé víno","xx",0.13,"Vyrobeno v České republice","Výrobce BOHEMIA SEKT,s.r.o. Smetanova 220, 332 02 Starý Plzenec, Česká republika","brut","obsahuje siřičitany",0.75,8594000941460]
[5104300,"Bohemia Sekt Prestige rosé brut 0,75 l","jakostní šumivé víno","xx",0.125,"Vyrobeno v České republice","Výrobce BOHEMIA SEKT,s.r.o. Smetanova 220, 332 02 Starý Plzenec, Česká republika","brut","obsahuje siřičitany",0.75,8594000941538]
[5104400,"Bohemia Sekt Prestige  brut 0,75 l+ 2 sklenky","jakostní šumivé víno","xx",0.13,"Vyrobeno v České republice","Výrobce BOHEMIA SEKT,s.r.o. Smetanova 220, 332 02 Starý Plzenec, Česká republika","brut","obsahuje siřičitany",0.75,8594000941637]
[5104500,"Bohemia Sekt Prestige rosé brut 0,75 l/dárk","jakostní šumivé víno","xx",0.125,"Vyrobeno v České republice","Výrobce BOHEMIA SEKT,s.r.o. Smetanova 220, 332 02 Starý Plzenec, Česká republika","brut","obsahuje siřičitany",0.75,8594000941613]
[5104800,"Bohemia Sekt Prestige demi sec 0,75 / d.","jakostní šumivé víno","xx",0.125,"Vyrobeno v České republice","Výrobce BOHEMIA SEKT,s.r.o. Smetanova 220, 332 02 Starý Plzenec, Česká republika","demi sec","obsahuje siřičitany",0.75,8594000941507]
[5104900,"Bohemia Sekt Prestige brut 0,75 l / dárk","jakostní šumivé víno","xx",0.13,"Vyrobeno v České republice","Výrobce BOHEMIA SEKT,s.r.o. Smetanova 220, 332 02 Starý Plzenec, Česká republika","brut","obsahuje siřičitany",0.75,8594000941514]
[5105000,"Bohemia Sekt Prestige Chardonnay 0,75 l","jakostní šumivé víno","xx",0.13,"Vyrobeno v České republice","Výrobce BOHEMIA SEKT,s.r.o. Smetanova 220, 332 02 Starý Plzenec, Česká republika","brut","obsahuje siřičitany",0.75,8594000941316]
[5105025,"Bohemia Sekt Prestige Chardonnay 0,75 l/ dárk","jakostní šumivé víno","xx",0.13,"Vyrobeno v České republice","Výrobce BOHEMIA SEKT,s.r.o. Smetanova 220, 332 02 Starý Plzenec, Česká republika","brut","obsahuje siřičitany",0.75,8594000941378]
[5105100,"Chateau Radyně brut 0,75 l","jakostní šumivé víno","xx",0.13,"Vyrobeno v České republice","Výrobce BOHEMIA SEKT,s.r.o. Smetanova 220, 332 02 Starý Plzenec, Česká republika","brut","obsahuje siřičitany",0.75,8594000941248]
[5105500,"Chateau Belveder doux 0,75 l","jakostní šumivé víno","xx",0.125,"Vyrobeno v České republice","Výrobce BOHEMIA SEKT,s.r.o. Smetanova 220, 332 02 Starý Plzenec, Česká republika","doux","obsahuje siřičitany",0.75,8594000941309]
[5105800,"Louis Girardot  0,75 l","jakostní šumivé víno","xx",0.13,"Vyrobeno v České republice","Výrobce BOHEMIA SEKT,s.r.o. Smetanova 220, 332 02 Starý Plzenec, Česká republika","brut","obsahuje siřičitany",0.75,8594000941491]
[5107000,"Chateau Bzenec brut  0,75 l","jakostní šumivé víno s.o.","14A1-13-2",0.125,"Sekt z České republiky","Výrobce BOHEMIA SEKT,s.r.o. Smetanova 220, 332 02 Starý Plzenec, Česká republika","brut","obsahuje siřičitany",0.75,8594044830768]
[5108000,"Motýl sekt-demi 0,75 l","jakostní šumivé víno","xx",0.11,"Vyrobeno v České republice","Výrobce BOHEMIA SEKT,s.r.o. Smetanova 220, 332 02 Starý Plzenec, Česká republika","demi sec","obsahuje siřičitany",0.75,8594002881924]
[5108100,"Motýl sekt doux 0,75 l","jakostní šumivé víno","xx",0.11,"Vyrobeno v České republice","Výrobce BOHEMIA SEKT,s.r.o. Smetanova 220, 332 02 Starý Plzenec, Česká republika","doux","obsahuje siřičitany",0.75,8594002881931]
[5108200,"Motýl sekt rose demi 0,75 l","jakostní šumivé víno","xx",0.11,"Vyrobeno v České republice","Výrobce BOHEMIA SEKT,s.r.o. Smetanova 220, 332 02 Starý Plzenec, Česká republika","demi sec","obsahuje siřičitany",0.75,8594002881948]
[5108400,"Motýl sekt suchý 0,75 l","jakostní šumivé víno","xx",0.115,"Vyrobeno v České republice","Výrobce BOHEMIA SEKT,s.r.o. Smetanova 220, 332 02 Starý Plzenec, Česká republika","suchý","obsahuje siřičitany",0.75,8594002881962]
[5250700,"Gaudium Vinum červené NK","víno","xx",0.1,"víno z Evropského společenství","Baleno v BOHEMIA SEKT,s.r.o. Smetanova 220, 332 02 Starý Plzenec, Česká republika","polosuché","obsahuje siřičitany",1,8586015320620]
[5253000,"Poezie bílá 1NK -ČMV","víno","xx",0.1,"víno z Evropského společenství","Baleno v BOHEMIA SEKT,s.r.o. Smetanova 220, 332 02 Starý Plzenec, Česká republika","polosuché","obsahuje siřičitany",1,8594002880408]
[5253100,"Poezie červená  1NK -ČMV","víno","xx",0.1,"víno z Evropského společenství","Baleno v BOHEMIA SEKT,s.r.o. Smetanova 220, 332 02 Starý Plzenec, Česká republika","polosuché","obsahuje siřičitany",1,8594002880415]
[6733800,"Valdobbiadene D.O.CMO 0,75 l","šumivé víno","xx",0.11,"Vyrobeno v Itálii","Výrobce Mionetto Spa, Via Colderove 2, 310 49 Valdobiadene, Itálie","brut","obsahuje siřičitany",0.75,5905629087010]
[6733865,"Valdobbiadene D.O.CMO 0,75 l","šumivé víno","xx",0.11,"Vyrobeno v Itálii","Výrobce Mionetto Spa, Via Colderove 2, 310 49 Valdobiadene, Itálie","brut","obsahuje siřičitany",0.75,8006220303299]
[6743565,"Prosecco Extra Dry Prestige Spumanti 0,75l","šumivé víno","xx",0.11,"Vyrobeno v Itálii","Výrobce Mionetto Spa, Via Colderove 2, 310 49 Valdobiadene, Itálie","brut","obsahuje siřičitany",0.75,8006220001997]
[1524624,"Henkell Trocken MQB 0,75 l-IC","šumivé víno","xx",0.115,"Vyrobeno v Německu","Výrobce Henkell & Co. Sektkellerei KG, Wiesbaden, Německo","demi sec","obsahuje siřičitany",0.75,4003310011632]
[1645465,"Henkell Blanc de Blancs 0,75 l","šumivé víno","xx",0.115,"Vyrobeno v Německu","Výrobce Henkell & Co. Sektkellerei KG, Wiesbaden, Německo","demi sec","obsahuje siřičitany",0.75,4003310164543]
[2720165,"Carstens bio 0,75l","sekt z hroznů z biologického pěstování","xx",0.11,"Vyrobeno v Německu","Výrobce Sektkellerei Carstens GMBH, Neustadt/Weinstrasse, Německo","brut","obsahuje siřičitany",0.75,4003310272019]
[2836365,"Alfred Gratien Rose Brut Classique","champagne","xx",0.125,"Vyrobeno ve Francii","Výrobce Alfred Gratien, Epernay, NM-205-001, Francie","brut","obsahuje siřičitany",0.75,3594580000705]
[2840165,"Alfred Gratien Brut Classique","champagne","xx",0.125,"Vyrobeno ve Francii","Výrobce Alfred Gratien, Epernay, NM-205-001, Francie","brut","obsahuje siřičitany",0.75,8594000941071]
[5018100,"Hubert Club demi sec 0,2 l","šumivé víno","xx",0.115,"Vyrobeno na Slovensku","Výrobce Hubert J.E, spol.s.r.o., Vinárska 137, 926 01 Sereď, Slovensko","demi sec","obsahuje siřičitany",0.75,4003310501812]
[5020200,"Hubert Club brut 0,75 l","šumivé víno","xx",0.12,"Vyrobeno na Slovensku","Výrobce Hubert J.E, spol.s.r.o., Vinárska 137, 926 01 Sereď, Slovensko","brut","obsahuje siřičitany",0.75,8588000002238]
[5021100,"Hubert Club demi sec 0,75 l","šumivé víno","xx",0.115,"Vyrobeno na Slovensku","Výrobce Hubert J.E, spol.s.r.o., Vinárska 137, 926 01 Sereď, Slovensko","demi sec","obsahuje siřičitany",0.75,8588000002269]
[5026100,"Hubert de Luxe 0,75 l","šumivé víno","xx",0,"Vyrobeno na Slovensku","Výrobce Hubert J.E, spol.s.r.o., Vinárska 137, 926 01 Sereď, Slovensko",null,"obsahuje siřičitany",0.75,8588000002412]
[1120765,"Fürst von Metternich trocken 0,75 l","šumivé víno","xx",0.125,"Vyrobeno v Německu","Výrobce Furst von Metternich Sektkellerei GMBH, D-65366 Johannisberg, Německo","brut","obsahuje siřičitany",0.75,4003310112070]
[1524565,"Henkell Trocken 0,75 l","šumivé víno","xx",0.115,"Vyrobeno v Německu","Výrobce Henkell & Co. Sektkellerei KG, Wiesbaden, Německo","demi sec","obsahuje siřičitany",0.75,4003310152458]
[1524600,"Henkell Trocken MQB 0,75 l","šumivé víno","xx",0.115,"Vyrobeno v Německu","Výrobce Henkell & Co. Sektkellerei KG, Wiesbaden, Německo","demi sec","obsahuje siřičitany",0.75,4003310011632]
[]
[]
[]
[]
[]
[]
[]
[]
[]
[]
[]
[]
[]
[]
[]
[]
[]
[]
[]
[]
[]
[]
[]
[]
[]
[]
[]
[]
[]
[]
[]
[]
[]
[]
[]
[]
[]
[]
[]
[]
[]
[]
[]
[]
[]
[]
[]
[]
[]
[]
[]
[]
[]
[]
[]
[]
[]
[]
[]
[]
[]
[]
[]
[]
[]
[]
[]
[]
[]
[]
[]
[]
[]
[]
[]
[]
[]
[]
[]
[]
[]
[]
[]
[]
[]
[]
[]
[]
[]
[]
[]
[]
[]
[]
[]
[]
[]
[]
[]
[]
[]
[]
[]
[]
[]
[]
[]
[]
[]
[]
[]
[]
[]
[]
[]
[]
[]
[]
[]
[]
[]
[]
[]
[]
[]
[]
[]
[]
[]
[]
[]
[]
[]
[]
[]
[]
[]
[]
[]
[]
[]
[]
[]
[]
[]
[]
[]
[]
[]
[]
[]
[]
[]
[]
[]
[]
[]
[]
[]
[]
[]
[]
[]
[]
[]
[]
[]
[]
[]
[]
[]
[]
[]
[]
[]
[]
[]
[]
[]
[]
[]
[]
[]
[]
[]
[]
[]
[]
[]
[]
[]
[]
[]
[]
[]
[]
[]
[]
[]
[]
[]
[]
[]
[]
[]
[]
[]
[]
[]
[]
[]
[]
[]
[]
[]
[]
[]
[]
[]
[]
[]
[]
[]
[]
[]
[]
[]
[]
[]
[]
[]
[]
[]
[]
[]
[]
[]
[]
[]
[]
[]
[null,null,null,null,null,null,null,null,null,""]
[null,null,null,null,null,null,null,null,null,""]
[null,null,null,null,null,null,null,null,null,""]

{"sheet":"Sekty","index":1,"n_rows":497,"n_cols":14,"rows_kept":497,"cut":false,"hidden":false,"merged":[]}
[498,null,null,null,null,"Všechny řádky jsou viditelné"]
[]
[]
[]
["Šarže","EAN kartonu","SAP","název","název potraviny","Ev.č.j. ","nápoje nad 1,2 % alkoholu - obsah alkoholu","země původu nebo místo provenience ","jméno nebo obch. název PPP","Obsah cukru","alergenní látky","jmenovitý objem","Datum","Autor"]
["L1114112",4003310112070,1120765,"Fürst von Metternich trocken 0,75 l","šumivé víno","xx",0.125,"Vyrobeno v Německu","Výrobce Furst von Metternich Sektkellerei GMBH, D-65366 Johannisberg, Německo","brut","obsahuje siřičitany",0.75]
["L1114112",4003310011632,1524600,"Henkell Trocken MQB 0,75 l","šumivé víno","xx",0.115,"Vyrobeno v Německu","Výrobce Henkell & Co. Sektkellerei KG, Wiesbaden, Německo","demi sec","obsahuje siřičitany",0.75]
["L1114168",4003310112070,1120765,"Fürst von Metternich trocken 0,75 l","šumivé víno","xx",0.125,"Vyrobeno v Německu","Výrobce Furst von Metternich Sektkellerei GMBH, D-65366 Johannisberg, Německo","brut","obsahuje siřičitany",0.75]
["L1114168",4003310011632,1524600,"Henkell Trocken MQB 0,75 l","šumivé víno","xx",0.115,"Vyrobeno v Německu","Výrobce Henkell & Co. Sektkellerei KG, Wiesbaden, Německo","demi sec","obsahuje siřičitany",0.75]
["L1164056",8594000941118,5101600,"Bohemia Sekt nealkoholický 0,75 l","nealkoholické šumivé víno bílé","xx",0,"Vyrobeno v Německu","Výrobce BOHEMIA SEKT,s.r.o. Smetanova 220, 332 02 Starý Plzenec, Česká republika","doux","obsahuje siřičitany",0.75]
["L1164057",8594000941118,5101600,"Bohemia Sekt nealkoholický 0,75 l","nealkoholické šumivé víno bílé","xx",0,"Vyrobeno v Německu","Výrobce BOHEMIA SEKT,s.r.o. Smetanova 220, 332 02 Starý Plzenec, Česká republika","doux","obsahuje siřičitany",0.75]
["L1310235",8594000941354,5101100,"Bohemia Rose demi sec 0,375 l","jakostní šumivé víno","xx",0.11,"Vyrobeno v České republice","Výrobce BOHEMIA SEKT,s.r.o. Smetanova 220, 332 02 Starý Plzenec, Česká republika","demi sec","obsahuje siřičitany",0.375]
["L1310335",8594002881931,5108100,"Motýl sekt doux 0,75 l","jakostní šumivé víno","xx",0.11,"Vyrobeno v České republice","Výrobce BOHEMIA SEKT,s.r.o. Smetanova 220, 332 02 Starý Plzenec, Česká republika","doux","obsahuje siřičitany",0.75]
["L1310335",8594002881931,5108100,"Motýl sekt doux 0,75 l","jakostní šumivé víno","xx",0.11,"Vyrobeno v České republice","Výrobce BOHEMIA SEKT,s.r.o. Smetanova 220, 332 02 Starý Plzenec, Česká republika","doux","obsahuje siřičitany",0.75]
["L1311320",8594002881931,5108100,"Motýl sekt doux 0,75 l","jakostní šumivé víno","xx",0.11,"Vyrobeno v České republice","Výrobce BOHEMIA SEKT,s.r.o. Smetanova 220, 332 02 Starý Plzenec, Česká republika","doux","obsahuje siřičitany",0.75]
["L1311320",8594002881931,5108100,"Motýl sekt doux 0,75 l","jakostní šumivé víno","xx",0.11,"Vyrobeno v České republice","Výrobce BOHEMIA SEKT,s.r.o. Smetanova 220, 332 02 Starý Plzenec, Česká republika","doux","obsahuje siřičitany",0.75]
["L1311320",8594002881931,5108100,"Motýl sekt doux 0,75 l","jakostní šumivé víno","xx",0.11,"Vyrobeno v České republice","Výrobce BOHEMIA SEKT,s.r.o. Smetanova 220, 332 02 Starý Plzenec, Česká republika","doux","obsahuje siřičitany",0.75]
["L1312235",8594000941538,5104300,"Bohemia Sekt Prestige rosé brut 0,75 l","jakostní šumivé víno","xx",0.125,"Vyrobeno v České republice","Výrobce BOHEMIA SEKT,s.r.o. Smetanova 220, 332 02 Starý Plzenec, Česká republika","brut","obsahuje siřičitany",0.75]
["L1312290",8594000941309,5105500,"Chateau Belveder doux 0,75 l","jakostní šumivé víno","xx",0.125,"Vyrobeno v České republice","Výrobce BOHEMIA SEKT,s.r.o. Smetanova 220, 332 02 Starý Plzenec, Česká republika","doux","obsahuje siřičitany",0.75]
["L1312290",8594000941309,5105500,"Chateau Belveder doux 0,75 l","jakostní šumivé víno","xx",0.125,"Vyrobeno v České republice","Výrobce BOHEMIA SEKT,s.r.o. Smetanova 220, 332 02 Starý Plzenec, Česká republika","doux","obsahuje siřičitany",0.75]
["L1312290",8594000941309,5105500,"Chateau Belveder doux 0,75 l","jakostní šumivé víno","xx",0.125,"Vyrobeno v České republice","Výrobce BOHEMIA SEKT,s.r.o. Smetanova 220, 332 02 Starý Plzenec, Česká republika","doux","obsahuje siřičitany",0.75]
["L13127",8594000941071,2840165,"Alfred Gratien Brut Classique","champagne","xx",0.125,"Vyrobeno ve Francii","Výrobce Alfred Gratien, Epernay, NM-205-001, Francie","brut","obsahuje siřičitany",0.75]
["L1313035",8594000941354,5101100,"Bohemia Rose demi sec 0,375 l","jakostní šumivé víno","xx",0.11,"Vyrobeno v České republice","Výrobce BOHEMIA SEKT,s.r.o. Smetanova 220, 332 02 Starý Plzenec, Česká republika","demi sec","obsahuje siřičitany",0.375]
["L1313035",8594000941354,5101100,"Bohemia Rose demi sec 0,375 l","jakostní šumivé víno","xx",0.11,"Vyrobeno v České republice","Výrobce BOHEMIA SEKT,s.r.o. Smetanova 220, 332 02 Starý Plzenec, Česká republika","demi sec","obsahuje siřičitany",0.375]
["L1313049",8594000941248,5105100,"Chateau Radyně brut 0,75 l","jakostní šumivé víno","xx",0.13,"Vyrobeno v České republice","Výrobce BOHEMIA SEKT,s.r.o. Smetanova 220, 332 02 Starý Plzenec, Česká republika","brut","obsahuje siřičitany",0.75]
["L1313050",8594000941248,5105100,"Chateau Radyně brut 0,75 l","jakostní šumivé víno","xx",0.13,"Vyrobeno v České republice","Výrobce BOHEMIA SEKT,s.r.o. Smetanova 220, 332 02 Starý Plzenec, Česká republika","brut","obsahuje siřičitany",0.75]
["L1313056",8594000941538,5104300,"Bohemia Sekt Prestige rosé brut 0,75 l","jakostní šumivé víno","xx",0.125,"Vyrobeno v České republice","Výrobce BOHEMIA SEKT,s.r.o. Smetanova 220, 332 02 Starý Plzenec, Česká republika","brut","obsahuje siřičitany",0.75]
["L1313056",8594000941538,5104300,"Bohemia Sekt Prestige rosé brut 0,75 l","jakostní šumivé víno","xx",0.125,"Vyrobeno v České republice","Výrobce BOHEMIA SEKT,s.r.o. Smetanova 220, 332 02 Starý Plzenec, Česká republika","brut","obsahuje siřičitany",0.75]
["L1313058",8594002881948,5108200,"Motýl sekt rose demi 0,75 l","jakostní šumivé víno","xx",0.11,"Vyrobeno v České republice","Výrobce BOHEMIA SEKT,s.r.o. Smetanova 220, 332 02 Starý Plzenec, Česká republika","demi sec","obsahuje siřičitany",0.75]
["L1313079",8594000941590,5102300,"Bohemia Sekt brut 1,5 l","jakostní šumivé víno","xx",0.12,"Vyrobeno v České republice","Výrobce BOHEMIA SEKT,s.r.o. Smetanova 220, 332 02 Starý Plzenec, Česká republika","brut","obsahuje siřičitany",1.5]
["L1313079",8594000941590,5102300,"Bohemia Sekt brut 1,5 l","jakostní šumivé víno","xx",0.12,"Vyrobeno v České republice","Výrobce BOHEMIA SEKT,s.r.o. Smetanova 220, 332 02 Starý Plzenec, Česká republika","brut","obsahuje siřičitany",1.5]
["L1313079",8594000941590,5102300,"Bohemia Sekt brut 1,5 l","jakostní šumivé víno","xx",0.12,"Vyrobeno v České republice","Výrobce BOHEMIA SEKT,s.r.o. Smetanova 220, 332 02 Starý Plzenec, Česká republika","brut","obsahuje siřičitany",1.5]
["L1313100",8594000941101,5102600,"Bohemia Sekt sec 0,75 l","jakostní šumivé víno","xx",0.11,"Vyrobeno v České republice","Výrobce BOHEMIA SEKT,s.r.o. Smetanova 220, 332 02 Starý Plzenec, Česká republika","sec","obsahuje siřičitany",0.75]
["L1313119",8594000941323,5100100,"Bohemia Sekt demi sec 0,375 l","jakostní šumivé víno","xx",0.11,"Vyrobeno v České republice","Výrobce BOHEMIA SEKT,s.r.o. Smetanova 220, 332 02 Starý Plzenec, Česká republika","demi sec","obsahuje siřičitany",0.375]
["L1313164",8594000941217,5102500,"Bohemia Sekt červ. 0,75 l","jakostní šumivé víno","xx",0.125,"Vyrobeno v České republice","Výrobce BOHEMIA SEKT,s.r.o. Smetanova 220, 332 02 Starý Plzenec, Česká republika","demi sec","obsahuje siřičitany",0.75]
["L1313164",8594000941217,5102500,"Bohemia Sekt červ. 0,75 l","jakostní šumivé víno","xx",0.125,"Vyrobeno v České republice","Výrobce BOHEMIA SEKT,s.r.o. Smetanova 220, 332 02 Starý Plzenec, Česká republika","demi sec","obsahuje siřičitany",0.75]
["L1313164",8594000941217,5102500,"Bohemia Sekt červ. 0,75 l","jakostní šumivé víno","xx",0.125,"Vyrobeno v České republice","Výrobce BOHEMIA SEKT,s.r.o. Smetanova 220, 332 02 Starý Plzenec, Česká republika","demi sec","obsahuje siřičitany",0.75]
["L1313196",8594000941323,5100100,"Bohemia Sekt demi sec 0,375 l","jakostní šumivé víno","xx",0.11,"Vyrobeno v České republice","Výrobce BOHEMIA SEKT,s.r.o. Smetanova 220, 332 02 Starý Plzenec, Česká republika","demi sec","obsahuje siřičitany",0.375]
["L1313196",8594000941323,5100100,"Bohemia Sekt demi sec 0,375 l","jakostní šumivé víno","xx",0.11,"Vyrobeno v České republice","Výrobce BOHEMIA SEKT,s.r.o. Smetanova 220, 332 02 Starý Plzenec, Česká republika","demi sec","obsahuje siřičitany",0.375]
["L1313196",8594000941323,5100100,"Bohemia Sekt demi sec 0,375 l","jakostní šumivé víno","xx",0.11,"Vyrobeno v České republice","Výrobce BOHEMIA SEKT,s.r.o. Smetanova 220, 332 02 Starý Plzenec, Česká republika","demi sec","obsahuje siřičitany",0.375]
["L1313197",8594000941323,5100100,"Bohemia Sekt demi sec 0,375 l","jakostní šumivé víno","xx",0.11,"Vyrobeno v České republice","Výrobce BOHEMIA SEKT,s.r.o. Smetanova 220, 332 02 Starý Plzenec, Česká republika","demi sec","obsahuje siřičitany",0.375]
["L1313197",8594000941323,5100100,"Bohemia Sekt demi sec 0,375 l","jakostní šumivé víno","xx",0.11,"Vyrobeno v České republice","Výrobce BOHEMIA SEKT,s.r.o. Smetanova 220, 332 02 Starý Plzenec, Česká republika","demi sec","obsahuje siřičitany",0.375]
["L1313197",8594000941323,5100100,"Bohemia Sekt demi sec 0,375 l","jakostní šumivé víno","xx",0.11,"Vyrobeno v České republice","Výrobce BOHEMIA SEKT,s.r.o. Smetanova 220, 332 02 Starý Plzenec, Česká republika","demi sec","obsahuje siřičitany",0.375]
["L1313198",8594000941323,5100100,"Bohemia Sekt demi sec 0,375 l","jakostní šumivé víno","xx",0.11,"Vyrobeno v České republice","Výrobce BOHEMIA SEKT,s.r.o. Smetanova 220, 332 02 Starý Plzenec, Česká republika","demi sec","obsahuje siřičitany",0.375]
["L1313206",8594000941323,5100100,"Bohemia Sekt demi sec 0,375 l","jakostní šumivé víno","xx",0.11,"Vyrobeno v České republice","Výrobce BOHEMIA SEKT,s.r.o. Smetanova 220, 332 02 Starý Plzenec, Česká republika","demi sec","obsahuje siřičitany",0.375]
["L1313213",8594000941231,5102286,"Bohemia Sekt brut 0,2 l / Makro 6 pack","jakostní šumivé víno","xx",0.12,"Vyrobeno v České republice","Výrobce BOHEMIA SEKT,s.r.o. Smetanova 220, 332 02 Starý Plzenec, Česká republika","brut","obsahuje siřičitany",0.2]
["L1313214",8594000941668,5102200,"Bohemia Sekt brut 0,2 l","jakostní šumivé víno","xx",0.12,"Vyrobeno v České republice","Výrobce BOHEMIA SEKT,s.r.o. Smetanova 220, 332 02 Starý Plzenec, Česká republika","brut","obsahuje siřičitany",0.2]
["L1313219",8594000941651,5100200,"Bohemia Sekt demi sec 0,2 l","jakostní šumivé víno","xx",0.11,"Vyrobeno v České republice","Výrobce BOHEMIA SEKT,s.r.o. Smetanova 220, 332 02 Starý Plzenec, Česká republika","demi sec","obsahuje siřičitany",0.2]
["L1313219",8594000941224,5100286,"Bohemia Sekt demi sec 0,2 l /Makro 6 pack","jakostní šumivé víno","xx",0.11,"Vyrobeno v České republice","Výrobce BOHEMIA SEKT,s.r.o. Smetanova 220, 332 02 Starý Plzenec, Česká republika","demi sec","obsahuje siřičitany",0.2]
["L1313219",8594000941224,5100286,"Bohemia Sekt demi sec 0,2 l /Makro 6 pack","jakostní šumivé víno","xx",0.11,"Vyrobeno v České republice","Výrobce BOHEMIA SEKT,s.r.o. Smetanova 220, 332 02 Starý Plzenec, Česká republika","demi sec","obsahuje siřičitany",0.2]
["L1313220",8594000941224,5100286,"Bohemia Sekt demi sec 0,2 l /Makro 6 pack","jakostní šumivé víno","xx",0.11,"Vyrobeno v České republice","Výrobce BOHEMIA SEKT,s.r.o. Smetanova 220, 332 02 Starý Plzenec, Česká republika","demi sec","obsahuje siřičitany",0.2]
["L1313220",8594000941224,5100286,"Bohemia Sekt demi sec 0,2 l /Makro 6 pack","jakostní šumivé víno","xx",0.11,"Vyrobeno v České republice","Výrobce BOHEMIA SEKT,s.r.o. Smetanova 220, 332 02 Starý Plzenec, Česká republika","demi sec","obsahuje siřičitany",0.2]
["L1313224",8594000941651,5100200,"Bohemia Sekt demi sec 0,2 l","jakostní šumivé víno","xx",0.11,"Vyrobeno v České republice","Výrobce BOHEMIA SEKT,s.r.o. Smetanova 220, 332 02 Starý Plzenec, Česká republika","demi sec","obsahuje siřičitany",0.2]
["L1313225",8594000941590,5102300,"Bohemia Sekt brut 1,5 l","jakostní šumivé víno","xx",0.12,"Vyrobeno v České republice","Výrobce BOHEMIA SEKT,s.r.o. Smetanova 220, 332 02 Starý Plzenec, Česká republika","brut","obsahuje siřičitany",1.5]
["L1313225",8594000941590,5102300,"Bohemia Sekt brut 1,5 l","jakostní šumivé víno","xx",0.12,"Vyrobeno v České republice","Výrobce BOHEMIA SEKT,s.r.o. Smetanova 220, 332 02 Starý Plzenec, Česká republika","brut","obsahuje siřičitany",1.5]
["L1313225",8594000941583,5100300,"Bohemia Sekt demi sec 1,5 l","jakostní šumivé víno","xx",0.11,"Vyrobeno v České republice","Výrobce BOHEMIA SEKT,s.r.o. Smetanova 220, 332 02 Starý Plzenec, Česká republika","demi sec","obsahuje siřičitany",1.5]
["L1313225",8594000941583,5100300,"Bohemia Sekt demi sec 1,5 l","jakostní šumivé víno","xx",0.11,"Vyrobeno v České republice","Výrobce BOHEMIA SEKT,s.r.o. Smetanova 220, 332 02 Starý Plzenec, Česká republika","demi sec","obsahuje siřičitany",1.5]
["L1313228",8594000941460,5104100,"Bohemia Sekt Prestige brut 0,75 l","jakostní šumivé víno","xx",0.13,"Vyrobeno v České republice","Výrobce BOHEMIA SEKT,s.r.o. Smetanova 220, 332 02 Starý Plzenec, Česká republika","brut","obsahuje siřičitany",0.75]
["L1313228",8594000941460,5104100,"Bohemia Sekt Prestige brut 0,75 l","jakostní šumivé víno","xx",0.13,"Vyrobeno v České republice","Výrobce BOHEMIA SEKT,s.r.o. Smetanova 220, 332 02 Starý Plzenec, Česká republika","brut","obsahuje siřičitany",0.75]
["L1313228",8594000941460,5104100,"Bohemia Sekt Prestige brut 0,75 l","jakostní šumivé víno","xx",0.13,"Vyrobeno v České republice","Výrobce BOHEMIA SEKT,s.r.o. Smetanova 220, 332 02 Starý Plzenec, Česká republika","brut","obsahuje siřičitany",0.75]
["L1313231",8594044830768,5107000,"Chateau Bzenec brut  0,75 l","jakostní šumivé víno s.o.","14A1-13-2",0.125,"Sekt z České republiky","Výrobce BOHEMIA SEKT,s.r.o. Smetanova 220, 332 02 Starý Plzenec, Česká republika","brut","obsahuje siřičitany",0.75]
["L1313231",8594044830768,5107000,"Chateau Bzenec brut  0,75 l","jakostní šumivé víno s.o.","14A1-13-2",0.125,"Sekt z České republiky","Výrobce BOHEMIA SEKT,s.r.o. Smetanova 220, 332 02 Starý Plzenec, Česká republika","brut","obsahuje siřičitany",0.75]
["L1313231",8594044830768,5107000,"Chateau Bzenec brut  0,75 l","jakostní šumivé víno s.o.","14A1-13-2",0.125,"Sekt z České republiky","Výrobce BOHEMIA SEKT,s.r.o. Smetanova 220, 332 02 Starý Plzenec, Česká republika","brut","obsahuje siřičitany",0.75]
["L1313238",8594002881962,5108400,"Motýl sekt suchý 0,75 l","jakostní šumivé víno","xx",0.115,"Vyrobeno v České republice","Výrobce BOHEMIA SEKT,s.r.o. Smetanova 220, 332 02 Starý Plzenec, Česká republika","suchý","obsahuje siřičitany",0.75]
["L1313266",8594000941040,5101000,"Bohemia Rose demi sec 0,75 l","jakostní šumivé víno","xx",0.11,"Vyrobeno v České republice","Výrobce BOHEMIA SEKT,s.r.o. Smetanova 220, 332 02 Starý Plzenec, Česká republika","demi sec","obsahuje siřičitany",0.75]
["L1313266",8594000941040,5101000,"Bohemia Rose demi sec 0,75 l","jakostní šumivé víno","xx",0.11,"Vyrobeno v České republice","Výrobce BOHEMIA SEKT,s.r.o. Smetanova 220, 332 02 Starý Plzenec, Česká republika","demi sec","obsahuje siřičitany",0.75]
["L1313280",8594000941156,5101800,"Bohemia Sekt Blanc de Noirs brut 0,75 l","jakostní šumivé víno","xx",0.115,"Vyrobeno v České republice","Výrobce BOHEMIA SEKT,s.r.o. Smetanova 220, 332 02 Starý Plzenec, Česká republika","brut","obsahuje siřičitany",0.75]
["L1313281",8594000941200,5102700,"Bohemia Chardonnay brut 0,75 l","jakostní šumivé víno","xx",0.125,"Vyrobeno v České republice","Výrobce BOHEMIA SEKT,s.r.o. Smetanova 220, 332 02 Starý Plzenec, Česká republika","brut","obsahuje siřičitany",0.75]
["L1313282",8594000941101,5102600,"Bohemia Sekt sec 0,75 l","jakostní šumivé víno","xx",0.11,"Vyrobeno v České republice","Výrobce BOHEMIA SEKT,s.r.o. Smetanova 220, 332 02 Starý Plzenec, Česká republika","sec","obsahuje siřičitany",0.75]
["L1313282",8594000941101,5102600,"Bohemia Sekt sec 0,75 l","jakostní šumivé víno","xx",0.11,"Vyrobeno v České republice","Výrobce BOHEMIA SEKT,s.r.o. Smetanova 220, 332 02 Starý Plzenec, Česká republika","sec","obsahuje siřičitany",0.75]
["L1313282",8594000941101,5102600,"Bohemia Sekt sec 0,75 l","jakostní šumivé víno","xx",0.11,"Vyrobeno v České republice","Výrobce BOHEMIA SEKT,s.r.o. Smetanova 220, 332 02 Starý Plzenec, Česká republika","sec","obsahuje siřičitany",0.75]
["L1313303",8594000941088,5102000,"Bohemia Sekt brut 0,75 l","jakostní šumivé víno","xx",0.12,"Vyrobeno v České republice","Výrobce BOHEMIA SEKT,s.r.o. Smetanova 220, 332 02 Starý Plzenec, Česká republika","brut","obsahuje siřičitany",0.75]
["L1313315",8594044830768,5107000,"Chateau Bzenec brut  0,75 l","jakostní šumivé víno s.o.","14A1-13-2",0.125,"Sekt z České republiky","Výrobce BOHEMIA SEKT,s.r.o. Smetanova 220, 332 02 Starý Plzenec, Česká republika","brut","obsahuje siřičitany",0.75]
["L1313315",8594000941248,5105100,"Chateau Radyně brut 0,75 l","jakostní šumivé víno","xx",0.13,"Vyrobeno v České republice","Výrobce BOHEMIA SEKT,s.r.o. Smetanova 220, 332 02 Starý Plzenec, Česká republika","brut","obsahuje siřičitany",0.75]
["L1313315",8594000941248,5105100,"Chateau Radyně brut 0,75 l","jakostní šumivé víno","xx",0.13,"Vyrobeno v České republice","Výrobce BOHEMIA SEKT,s.r.o. Smetanova 220, 332 02 Starý Plzenec, Česká republika","brut","obsahuje siřičitany",0.75]
["L1313315",8594000941248,5105100,"Chateau Radyně brut 0,75 l","jakostní šumivé víno","xx",0.13,"Vyrobeno v České republice","Výrobce BOHEMIA SEKT,s.r.o. Smetanova 220, 332 02 Starý Plzenec, Česká republika","brut","obsahuje siřičitany",0.75]
["L1313315",8594000941491,5105800,"Louis Girardot  0,75 l","jakostní šumivé víno","xx",0.13,"Vyrobeno v České republice","Výrobce BOHEMIA SEKT,s.r.o. Smetanova 220, 332 02 Starý Plzenec, Česká republika","brut","obsahuje siřičitany",0.75]
["L1313315",8594000941491,5105800,"Louis Girardot  0,75 l","jakostní šumivé víno","xx",0.13,"Vyrobeno v České republice","Výrobce BOHEMIA SEKT,s.r.o. Smetanova 220, 332 02 Starý Plzenec, Česká republika","brut","obsahuje siřičitany",0.75]
["L1313316",8594000941446,5104000,"Bohemia Sekt Prestige demi sec 0,75","jakostní šumivé víno","xx",0.125,"Vyrobeno v České republice","Výrobce BOHEMIA SEKT,s.r.o. Smetanova 220, 332 02 Starý Plzenec, Česká republika","demi sec","obsahuje siřičitany",0.75]
["L1313316",8594000941446,5104000,"Bohemia Sekt Prestige demi sec 0,75","jakostní šumivé víno","xx",0.125,"Vyrobeno v České republice","Výrobce BOHEMIA SEKT,s.r.o. Smetanova 220, 332 02 Starý Plzenec, Česká republika","demi sec","obsahuje siřičitany",0.75]
["L1313316",8594000941446,5104000,"Bohemia Sekt Prestige demi sec 0,75","jakostní šumivé víno","xx",0.125,"Vyrobeno v České republice","Výrobce BOHEMIA SEKT,s.r.o. Smetanova 220, 332 02 Starý Plzenec, Česká republika","demi sec","obsahuje siřičitany",0.75]
["L1313316",8594000941248,5105100,"Chateau Radyně brut 0,75 l","jakostní šumivé víno","xx",0.13,"Vyrobeno v České republice","Výrobce BOHEMIA SEKT,s.r.o. Smetanova 220, 332 02 Starý Plzenec, Česká republika","brut","obsahuje siřičitany",0.75]
["L1313317",8594000941460,5104245,"Bohemia Sekt Prest. brut 0,75 l / B Cors","jakostní šumivé víno","xx",0.13,"Vyrobeno v České republice","Výrobce BOHEMIA SEKT,s.r.o. Smetanova 220, 332 02 Starý Plzenec, Česká republika","brut","obsahuje siřičitany",0.75]
["L1313317",8594000941460,5104145,"Bohemia Sekt Prest. brut 0,75 l / B Delh","jakostní šumivé víno","xx",0.13,"Vyrobeno v České republice","Výrobce BOHEMIA SEKT,s.r.o. Smetanova 220, 332 02 Starý Plzenec, Česká republika","brut","obsahuje siřičitany",0.75]
["L1313317",8594000941460,5104100,"Bohemia Sekt Prestige brut 0,75 l","jakostní šumivé víno","xx",0.13,"Vyrobeno v České republice","Výrobce BOHEMIA SEKT,s.r.o. Smetanova 220, 332 02 Starý Plzenec, Česká republika","brut","obsahuje siřičitany",0.75]
["L1313318",8594000941460,5104100,"Bohemia Sekt Prestige brut 0,75 l","jakostní šumivé víno","xx",0.13,"Vyrobeno v České republice","Výrobce BOHEMIA SEKT,s.r.o. Smetanova 220, 332 02 Starý Plzenec, Česká republika","brut","obsahuje siřičitany",0.75]
["L1313318",8594000941460,5104100,"Bohemia Sekt Prestige brut 0,75 l","jakostní šumivé víno","xx",0.13,"Vyrobeno v České republice","Výrobce BOHEMIA SEKT,s.r.o. Smetanova 220, 332 02 Starý Plzenec, Česká republika","brut","obsahuje siřičitany",0.75]
["L1313318",8594000941538,5104300,"Bohemia Sekt Prestige rosé brut 0,75 l","jakostní šumivé víno","xx",0.125,"Vyrobeno v České republice","Výrobce BOHEMIA SEKT,s.r.o. Smetanova 220, 332 02 Starý Plzenec, Česká republika","brut","obsahuje siřičitany",0.75]
["L1313319",8594000941538,5104300,"Bohemia Sekt Prestige rosé brut 0,75 l","jakostní šumivé víno","xx",0.125,"Vyrobeno v České republice","Výrobce BOHEMIA SEKT,s.r.o. Smetanova 220, 332 02 Starý Plzenec, Česká republika","brut","obsahuje siřičitany",0.75]
["L1313322",8594000941040,5101000,"Bohemia Rose demi sec 0,75 l","jakostní šumivé víno","xx",0.11,"Vyrobeno v České republice","Výrobce BOHEMIA SEKT,s.r.o. Smetanova 220, 332 02 Starý Plzenec, Česká republika","demi sec","obsahuje siřičitany",0.75]
["L1313322",8594000941064,5101500,"Bohemia Sekt rosé brut 0,75","jakostní šumivé víno","xx",0.115,"Vyrobeno v České republice","Výrobce BOHEMIA SEKT,s.r.o. Smetanova 220, 332 02 Starý Plzenec, Česká republika","brut","obsahuje siřičitany",0.75]
["L1313322",8594000941064,5101500,"Bohemia Sekt rosé brut 0,75","jakostní šumivé víno","xx",0.115,"Vyrobeno v České republice","Výrobce BOHEMIA SEKT,s.r.o. Smetanova 220, 332 02 Starý Plzenec, Česká republika","brut","obsahuje siřičitany",0.75]
["L1313322",8594000941064,5101500,"Bohemia Sekt rosé brut 0,75","jakostní šumivé víno","xx",0.115,"Vyrobeno v České republice","Výrobce BOHEMIA SEKT,s.r.o. Smetanova 220, 332 02 Starý Plzenec, Česká republika","brut","obsahuje siřičitany",0.75]
["L1313323",8594000941040,5101000,"Bohemia Rose demi sec 0,75 l","jakostní šumivé víno","xx",0.11,"Vyrobeno v České republice","Výrobce BOHEMIA SEKT,s.r.o. Smetanova 220, 332 02 Starý Plzenec, Česká republika","demi sec","obsahuje siřičitany",0.75]
["L1313324",8594000941040,5101000,"Bohemia Rose demi sec 0,75 l","jakostní šumivé víno","xx",0.11,"Vyrobeno v České republice","Výrobce BOHEMIA SEKT,s.r.o. Smetanova 220, 332 02 Starý Plzenec, Česká republika","demi sec","obsahuje siřičitany",0.75]
["L1313324",8594000941040,5101000,"Bohemia Rose demi sec 0,75 l","jakostní šumivé víno","xx",0.11,"Vyrobeno v České republice","Výrobce BOHEMIA SEKT,s.r.o. Smetanova 220, 332 02 Starý Plzenec, Česká republika","demi sec","obsahuje siřičitany",0.75]
["L1313325",8594000941040,5101000,"Bohemia Rose demi sec 0,75 l","jakostní šumivé víno","xx",0.11,"Vyrobeno v České republice","Výrobce BOHEMIA SEKT,s.r.o. Smetanova 220, 332 02 Starý Plzenec, Česká republika","demi sec","obsahuje siřičitany",0.75]
["L1313326",8594000941200,5102700,"Bohemia Chardonnay brut 0,75 l","jakostní šumivé víno","xx",0.125,"Vyrobeno v České republice","Výrobce BOHEMIA SEKT,s.r.o. Smetanova 220, 332 02 Starý Plzenec, Česká republika","brut","obsahuje siřičitany",0.75]
["L1313326",8594000941200,5102700,"Bohemia Chardonnay brut 0,75 l","jakostní šumivé víno","xx",0.125,"Vyrobeno v České republice","Výrobce BOHEMIA SEKT,s.r.o. Smetanova 220, 332 02 Starý Plzenec, Česká republika","brut","obsahuje siřičitany",0.75]
["L1313326",8594000941231,5102286,"Bohemia Sekt brut 0,2 l / Makro 6 pack","jakostní šumivé víno","xx",0.12,"Vyrobeno v České republice","Výrobce BOHEMIA SEKT,s.r.o. Smetanova 220, 332 02 Starý Plzenec, Česká republika","brut","obsahuje siřičitany",0.2]
["L1313339",8594000941088,5102000,"Bohemia Sekt brut 0,75 l","jakostní šumivé víno","xx",0.12,"Vyrobeno v České republice","Výrobce BOHEMIA SEKT,s.r.o. Smetanova 220, 332 02 Starý Plzenec, Česká republika","brut","obsahuje siřičitany",0.75]
["L1313340",8594000941088,5102000,"Bohemia Sekt brut 0,75 l","jakostní šumivé víno","xx",0.12,"Vyrobeno v České republice","Výrobce BOHEMIA SEKT,s.r.o. Smetanova 220, 332 02 Starý Plzenec, Česká republika","brut","obsahuje siřičitany",0.75]
["L1314008",8594000941019,5100000,"Bohemia Sekt demi sec 0,75 l","jakostní šumivé víno","xx",0.11,"Vyrobeno v České republice","Výrobce BOHEMIA SEKT,s.r.o. Smetanova 220, 332 02 Starý Plzenec, Česká republika","demi sec","obsahuje siřičitany",0.75]
["L1314008",4003310501812,5018100,"Hubert Club demi sec 0,2 l","šumivé víno","xx",0.115,"Vyrobeno na Slovensku","Výrobce Hubert J.E, spol.s.r.o., Vinárska 137, 926 01 Sereď, Slovensko","demi sec","obsahuje siřičitany",0.75]
["L1314010",8594000941088,5102000,"Bohemia Sekt brut 0,75 l","jakostní šumivé víno","xx",0.12,"Vyrobeno v České republice","Výrobce BOHEMIA SEKT,s.r.o. Smetanova 220, 332 02 Starý Plzenec, Česká republika","brut","obsahuje siřičitany",0.75]
["L1314010",8594000941088,5102000,"Bohemia Sekt brut 0,75 l","jakostní šumivé víno","xx",0.12,"Vyrobeno v České republice","Výrobce BOHEMIA SEKT,s.r.o. Smetanova 220, 332 02 Starý Plzenec, Česká republika","brut","obsahuje siřičitany",0.75]
["L1314013",8594000941040,5101000,"Bohemia Rose demi sec 0,75 l","jakostní šumivé víno","xx",0.11,"Vyrobeno v České republice","Výrobce BOHEMIA SEKT,s.r.o. Smetanova 220, 332 02 Starý Plzenec, Česká republika","demi sec","obsahuje siřičitany",0.75]
["L1314013",8594000941040,5101000,"Bohemia Rose demi sec 0,75 l","jakostní šumivé víno","xx",0.11,"Vyrobeno v České republice","Výrobce BOHEMIA SEKT,s.r.o. Smetanova 220, 332 02 Starý Plzenec, Česká republika","demi sec","obsahuje siřičitany",0.75]
["L1314013",8594000941040,5101000,"Bohemia Rose demi sec 0,75 l","jakostní šumivé víno","xx",0.11,"Vyrobeno v České republice","Výrobce BOHEMIA SEKT,s.r.o. Smetanova 220, 332 02 Starý Plzenec, Česká republika","demi sec","obsahuje siřičitany",0.75]
["L1314013",8594000941088,5102000,"Bohemia Sekt brut 0,75 l","jakostní šumivé víno","xx",0.12,"Vyrobeno v České republice","Výrobce BOHEMIA SEKT,s.r.o. Smetanova 220, 332 02 Starý Plzenec, Česká republika","brut","obsahuje siřičitany",0.75]
["L1314014",8594000941040,5101000,"Bohemia Rose demi sec 0,75 l","jakostní šumivé víno","xx",0.11,"Vyrobeno v České republice","Výrobce BOHEMIA SEKT,s.r.o. Smetanova 220, 332 02 Starý Plzenec, Česká republika","demi sec","obsahuje siřičitany",0.75]
["L1314014",8594000941040,5101000,"Bohemia Rose demi sec 0,75 l","jakostní šumivé víno","xx",0.11,"Vyrobeno v České republice","Výrobce BOHEMIA SEKT,s.r.o. Smetanova 220, 332 02 Starý Plzenec, Česká republika","demi sec","obsahuje siřičitany",0.75]
["L1314014",8594000941040,5101000,"Bohemia Rose demi sec 0,75 l","jakostní šumivé víno","xx",0.11,"Vyrobeno v České republice","Výrobce BOHEMIA SEKT,s.r.o. Smetanova 220, 332 02 Starý Plzenec, Česká republika","demi sec","obsahuje siřičitany",0.75]
["L1314014",8594000941040,5101000,"Bohemia Rose demi sec 0,75 l","jakostní šumivé víno","xx",0.11,"Vyrobeno v České republice","Výrobce BOHEMIA SEKT,s.r.o. Smetanova 220, 332 02 Starý Plzenec, Česká republika","demi sec","obsahuje siřičitany",0.75]
["L1314014",8594000941460,5104100,"Bohemia Sekt Prestige brut 0,75 l","jakostní šumivé víno","xx",0.13,"Vyrobeno v České republice","Výrobce BOHEMIA SEKT,s.r.o. Smetanova 220, 332 02 Starý Plzenec, Česká republika","brut","obsahuje siřičitany",0.75]
["L1314028",8594000941385,5102100,"Bohemia Sekt brut 0,375 l","jakostní šumivé víno","xx",0.12,"Vyrobeno v České republice","Výrobce BOHEMIA SEKT,s.r.o. Smetanova 220, 332 02 Starý Plzenec, Česká republika","brut","obsahuje siřičitany",0.375]
["L1314028",8594000941385,5102100,"Bohemia Sekt brut 0,375 l","jakostní šumivé víno","xx",0.12,"Vyrobeno v České republice","Výrobce BOHEMIA SEKT,s.r.o. Smetanova 220, 332 02 Starý Plzenec, Česká republika","brut","obsahuje siřičitany",0.375]
["L1314028",8594000941385,5102100,"Bohemia Sekt brut 0,375 l","jakostní šumivé víno","xx",0.12,"Vyrobeno v České republice","Výrobce BOHEMIA SEKT,s.r.o. Smetanova 220, 332 02 Starý Plzenec, Česká republika","brut","obsahuje siřičitany",0.375]
["L1314029",8594000941385,5102100,"Bohemia Sekt brut 0,375 l","jakostní šumivé víno","xx",0.12,"Vyrobeno v České republice","Výrobce BOHEMIA SEKT,s.r.o. Smetanova 220, 332 02 Starý Plzenec, Česká republika","brut","obsahuje siřičitany",0.375]
["L1314029",8594000941385,5102100,"Bohemia Sekt brut 0,375 l","jakostní šumivé víno","xx",0.12,"Vyrobeno v České republice","Výrobce BOHEMIA SEKT,s.r.o. Smetanova 220, 332 02 Starý Plzenec, Česká republika","brut","obsahuje siřičitany",0.375]
["L1314030",8594000941385,5102100,"Bohemia Sekt brut 0,375 l","jakostní šumivé víno","xx",0.12,"Vyrobeno v České republice","Výrobce BOHEMIA SEKT,s.r.o. Smetanova 220, 332 02 Starý Plzenec, Česká republika","brut","obsahuje siřičitany",0.375]
["L1314030",8594000941323,5100100,"Bohemia Sekt demi sec 0,375 l","jakostní šumivé víno","xx",0.11,"Vyrobeno v České republice","Výrobce BOHEMIA SEKT,s.r.o. Smetanova 220, 332 02 Starý Plzenec, Česká republika","demi sec","obsahuje siřičitany",0.375]
["L1314030",8594000941323,5100100,"Bohemia Sekt demi sec 0,375 l","jakostní šumivé víno","xx",0.11,"Vyrobeno v České republice","Výrobce BOHEMIA SEKT,s.r.o. Smetanova 220, 332 02 Starý Plzenec, Česká republika","demi sec","obsahuje siřičitany",0.375]
["L1314034",8594000941323,5100100,"Bohemia Sekt demi sec 0,375 l","jakostní šumivé víno","xx",0.11,"Vyrobeno v České republice","Výrobce BOHEMIA SEKT,s.r.o. Smetanova 220, 332 02 Starý Plzenec, Česká republika","demi sec","obsahuje siřičitany",0.375]
["L1314036",8594000941019,5100000,"Bohemia Sekt demi sec 0,75 l","jakostní šumivé víno","xx",0.11,"Vyrobeno v České republice","Výrobce BOHEMIA SEKT,s.r.o. Smetanova 220, 332 02 Starý Plzenec, Česká republika","demi sec","obsahuje siřičitany",0.75]
["L1314037",8594000941019,5100000,"Bohemia Sekt demi sec 0,75 l","jakostní šumivé víno","xx",0.11,"Vyrobeno v České republice","Výrobce BOHEMIA SEKT,s.r.o. Smetanova 220, 332 02 Starý Plzenec, Česká republika","demi sec","obsahuje siřičitany",0.75]
["L1314041",8594000941019,5100000,"Bohemia Sekt demi sec 0,75 l","jakostní šumivé víno","xx",0.11,"Vyrobeno v České republice","Výrobce BOHEMIA SEKT,s.r.o. Smetanova 220, 332 02 Starý Plzenec, Česká republika","demi sec","obsahuje siřičitany",0.75]
["L1314042",8594000941019,5100000,"Bohemia Sekt demi sec 0,75 l","jakostní šumivé víno","xx",0.11,"Vyrobeno v České republice","Výrobce BOHEMIA SEKT,s.r.o. Smetanova 220, 332 02 Starý Plzenec, Česká republika","demi sec","obsahuje siřičitany",0.75]
["L1314043",8594000941019,5100000,"Bohemia Sekt demi sec 0,75 l","jakostní šumivé víno","xx",0.11,"Vyrobeno v České republice","Výrobce BOHEMIA SEKT,s.r.o. Smetanova 220, 332 02 Starý Plzenec, Česká republika","demi sec","obsahuje siřičitany",0.75]
["L1314043",8594000941019,5100000,"Bohemia Sekt demi sec 0,75 l","jakostní šumivé víno","xx",0.11,"Vyrobeno v České republice","Výrobce BOHEMIA SEKT,s.r.o. Smetanova 220, 332 02 Starý Plzenec, Česká republika","demi sec","obsahuje siřičitany",0.75]
["L1314044",8594000941651,5100200,"Bohemia Sekt demi sec 0,2 l","jakostní šumivé víno","xx",0.11,"Vyrobeno v České republice","Výrobce BOHEMIA SEKT,s.r.o. Smetanova 220, 332 02 Starý Plzenec, Česká republika","demi sec","obsahuje siřičitany",0.2]
["L1314044",8594000941651,5100200,"Bohemia Sekt demi sec 0,2 l","jakostní šumivé víno","xx",0.11,"Vyrobeno v České republice","Výrobce BOHEMIA SEKT,s.r.o. Smetanova 220, 332 02 Starý Plzenec, Česká republika","demi sec","obsahuje siřičitany",0.2]
["L1314048",8594000941651,5100200,"Bohemia Sekt demi sec 0,2 l","jakostní šumivé víno","xx",0.11,"Vyrobeno v České republice","Výrobce BOHEMIA SEKT,s.r.o. Smetanova 220, 332 02 Starý Plzenec, Česká republika","demi sec","obsahuje siřičitany",0.2]
["L1314048",8594000941651,5100200,"Bohemia Sekt demi sec 0,2 l","jakostní šumivé víno","xx",0.11,"Vyrobeno v České republice","Výrobce BOHEMIA SEKT,s.r.o. Smetanova 220, 332 02 Starý Plzenec, Česká republika","demi sec","obsahuje siřičitany",0.2]
["L1314049",8594000941651,5100200,"Bohemia Sekt demi sec 0,2 l","jakostní šumivé víno","xx",0.11,"Vyrobeno v České republice","Výrobce BOHEMIA SEKT,s.r.o. Smetanova 220, 332 02 Starý Plzenec, Česká republika","demi sec","obsahuje siřičitany",0.2]
["L1314050",8594000941231,5102286,"Bohemia Sekt brut 0,2 l / Makro 6 pack","jakostní šumivé víno","xx",0.12,"Vyrobeno v České republice","Výrobce BOHEMIA SEKT,s.r.o. Smetanova 220, 332 02 Starý Plzenec, Česká republika","brut","obsahuje siřičitany",0.2]
["L1314050",8594000941651,5100200,"Bohemia Sekt demi sec 0,2 l","jakostní šumivé víno","xx",0.11,"Vyrobeno v České republice","Výrobce BOHEMIA SEKT,s.r.o. Smetanova 220, 332 02 Starý Plzenec, Česká republika","demi sec","obsahuje siřičitany",0.2]
["L1314051",8594000941668,5102200,"Bohemia Sekt brut 0,2 l","jakostní šumivé víno","xx",0.12,"Vyrobeno v České republice","Výrobce BOHEMIA SEKT,s.r.o. Smetanova 220, 332 02 Starý Plzenec, Česká republika","brut","obsahuje siřičitany",0.2]
["L1314051",8594000941668,5102200,"Bohemia Sekt brut 0,2 l","jakostní šumivé víno","xx",0.12,"Vyrobeno v České republice","Výrobce BOHEMIA SEKT,s.r.o. Smetanova 220, 332 02 Starý Plzenec, Česká republika","brut","obsahuje siřičitany",0.2]
["L1314051",8594000941385,5102100,"Bohemia Sekt brut 0,375 l","jakostní šumivé víno","xx",0.12,"Vyrobeno v České republice","Výrobce BOHEMIA SEKT,s.r.o. Smetanova 220, 332 02 Starý Plzenec, Česká republika","brut","obsahuje siřičitany",0.375]
["L1314055",8594000941019,5100000,"Bohemia Sekt demi sec 0,75 l","jakostní šumivé víno","xx",0.11,"Vyrobeno v České republice","Výrobce BOHEMIA SEKT,s.r.o. Smetanova 220, 332 02 Starý Plzenec, Česká republika","demi sec","obsahuje siřičitany",0.75]
["L1314062",8594000941446,5104000,"Bohemia Sekt Prestige demi sec 0,75","jakostní šumivé víno","xx",0.125,"Vyrobeno v České republice","Výrobce BOHEMIA SEKT,s.r.o. Smetanova 220, 332 02 Starý Plzenec, Česká republika","demi sec","obsahuje siřičitany",0.75]
["L1314062",8594000941316,5105000,"Bohemia Sekt Prestige Chardonnay 0,75 l","jakostní šumivé víno","xx",0.13,"Vyrobeno v České republice","Výrobce BOHEMIA SEKT,s.r.o. Smetanova 220, 332 02 Starý Plzenec, Česká republika","brut","obsahuje siřičitany",0.75]
["L1314063",8594000941460,5104145,"Bohemia Sekt Prest. brut 0,75 l / B Delh","jakostní šumivé víno","xx",0.13,"Vyrobeno v České republice","Výrobce BOHEMIA SEKT,s.r.o. Smetanova 220, 332 02 Starý Plzenec, Česká republika","brut","obsahuje siřičitany",0.75]
["L1314063",8594000941460,5104100,"Bohemia Sekt Prestige brut 0,75 l","jakostní šumivé víno","xx",0.13,"Vyrobeno v České republice","Výrobce BOHEMIA SEKT,s.r.o. Smetanova 220, 332 02 Starý Plzenec, Česká republika","brut","obsahuje siřičitany",0.75]
["L1314063",8594000941460,5104100,"Bohemia Sekt Prestige brut 0,75 l","jakostní šumivé víno","xx",0.13,"Vyrobeno v České republice","Výrobce BOHEMIA SEKT,s.r.o. Smetanova 220, 332 02 Starý Plzenec, Česká republika","brut","obsahuje siřičitany",0.75]
["L1314063",8594000941446,5104000,"Bohemia Sekt Prestige demi sec 0,75","jakostní šumivé víno","xx",0.125,"Vyrobeno v České republice","Výrobce BOHEMIA SEKT,s.r.o. Smetanova 220, 332 02 Starý Plzenec, Česká republika","demi sec","obsahuje siřičitany",0.75]
["L1314065",8594000941248,5105100,"Chateau Radyně brut 0,75 l","jakostní šumivé víno","xx",0.13,"Vyrobeno v České republice","Výrobce BOHEMIA SEKT,s.r.o. Smetanova 220, 332 02 Starý Plzenec, Česká republika","brut","obsahuje siřičitany",0.75]
["L1314065",8594000941491,5105800,"Louis Girardot  0,75 l","jakostní šumivé víno","xx",0.13,"Vyrobeno v České republice","Výrobce BOHEMIA SEKT,s.r.o. Smetanova 220, 332 02 Starý Plzenec, Česká republika","brut","obsahuje siřičitany",0.75]
["L1314076",8594000941279,5102725,"Bohemia Chardonnay brut 0,75 l / dárk.","jakostní šumivé víno","xx",0.125,"Vyrobeno v České republice","Výrobce BOHEMIA SEKT,s.r.o. Smetanova 220, 332 02 Starý Plzenec, Česká republika","brut","obsahuje siřičitany",0.75]
["L1314077",8594000941200,5102700,"Bohemia Chardonnay brut 0,75 l","jakostní šumivé víno","xx",0.125,"Vyrobeno v České republice","Výrobce BOHEMIA SEKT,s.r.o. Smetanova 220, 332 02 Starý Plzenec, Česká republika","brut","obsahuje siřičitany",0.75]
["L1314078",8594000941200,5102700,"Bohemia Chardonnay brut 0,75 l","jakostní šumivé víno","xx",0.125,"Vyrobeno v České republice","Výrobce BOHEMIA SEKT,s.r.o. Smetanova 220, 332 02 Starý Plzenec, Česká republika","brut","obsahuje siřičitany",0.75]
["L1314078",8594000941200,5102700,"Bohemia Chardonnay brut 0,75 l","jakostní šumivé víno","xx",0.125,"Vyrobeno v České republice","Výrobce BOHEMIA SEKT,s.r.o. Smetanova 220, 332 02 Starý Plzenec, Česká republika","brut","obsahuje siřičitany",0.75]
["L1314078",8594000941231,5102286,"Bohemia Sekt brut 0,2 l / Makro 6 pack","jakostní šumivé víno","xx",0.12,"Vyrobeno v České republice","Výrobce BOHEMIA SEKT,s.r.o. Smetanova 220, 332 02 Starý Plzenec, Česká republika","brut","obsahuje siřičitany",0.2]
["L1314079",8594000941200,5102700,"Bohemia Chardonnay brut 0,75 l","jakostní šumivé víno","xx",0.125,"Vyrobeno v České republice","Výrobce BOHEMIA SEKT,s.r.o. Smetanova 220, 332 02 Starý Plzenec, Česká republika","brut","obsahuje siřičitany",0.75]
["L1314079",8594000941200,5102700,"Bohemia Chardonnay brut 0,75 l","jakostní šumivé víno","xx",0.125,"Vyrobeno v České republice","Výrobce BOHEMIA SEKT,s.r.o. Smetanova 220, 332 02 Starý Plzenec, Česká republika","brut","obsahuje siřičitany",0.75]
["L1314079",8594000941019,5100000,"Bohemia Sekt demi sec 0,75 l","jakostní šumivé víno","xx",0.11,"Vyrobeno v České republice","Výrobce BOHEMIA SEKT,s.r.o. Smetanova 220, 332 02 Starý Plzenec, Česká republika","demi sec","obsahuje siřičitany",0.75]
["L1314079",8594000941019,5100000,"Bohemia Sekt demi sec 0,75 l","jakostní šumivé víno","xx",0.11,"Vyrobeno v České republice","Výrobce BOHEMIA SEKT,s.r.o. Smetanova 220, 332 02 Starý Plzenec, Česká republika","demi sec","obsahuje siřičitany",0.75]
["L1314079",4003310501812,5018100,"Hubert Club demi sec 0,2 l","šumivé víno","xx",0.115,"Vyrobeno na Slovensku","Výrobce Hubert J.E, spol.s.r.o., Vinárska 137, 926 01 Sereď, Slovensko","demi sec","obsahuje siřičitany",0.75]
["L1314083",8594000941019,5100000,"Bohemia Sekt demi sec 0,75 l","jakostní šumivé víno","xx",0.11,"Vyrobeno v České republice","Výrobce BOHEMIA SEKT,s.r.o. Smetanova 220, 332 02 Starý Plzenec, Česká republika","demi sec","obsahuje siřičitany",0.75]
["L1314084",8594000941019,5100000,"Bohemia Sekt demi sec 0,75 l","jakostní šumivé víno","xx",0.11,"Vyrobeno v České republice","Výrobce BOHEMIA SEKT,s.r.o. Smetanova 220, 332 02 Starý Plzenec, Česká republika","demi sec","obsahuje siřičitany",0.75]
["L1314085",8594000941019,5100000,"Bohemia Sekt demi sec 0,75 l","jakostní šumivé víno","xx",0.11,"Vyrobeno v České republice","Výrobce BOHEMIA SEKT,s.r.o. Smetanova 220, 332 02 Starý Plzenec, Česká republika","demi sec","obsahuje siřičitany",0.75]
["L1314086",8594000941019,5100000,"Bohemia Sekt demi sec 0,75 l","jakostní šumivé víno","xx",0.11,"Vyrobeno v České republice","Výrobce BOHEMIA SEKT,s.r.o. Smetanova 220, 332 02 Starý Plzenec, Česká republika","demi sec","obsahuje siřičitany",0.75]
["L1314090",8594000941019,5100000,"Bohemia Sekt demi sec 0,75 l","jakostní šumivé víno","xx",0.11,"Vyrobeno v České republice","Výrobce BOHEMIA SEKT,s.r.o. Smetanova 220, 332 02 Starý Plzenec, Česká republika","demi sec","obsahuje siřičitany",0.75]
["L1314091",8594000941088,5102000,"Bohemia Sekt brut 0,75 l","jakostní šumivé víno","xx",0.12,"Vyrobeno v České republice","Výrobce BOHEMIA SEKT,s.r.o. Smetanova 220, 332 02 Starý Plzenec, Česká republika","brut","obsahuje siřičitany",0.75]
["L1314091",8594000941019,5100000,"Bohemia Sekt demi sec 0,75 l","jakostní šumivé víno","xx",0.11,"Vyrobeno v České republice","Výrobce BOHEMIA SEKT,s.r.o. Smetanova 220, 332 02 Starý Plzenec, Česká republika","demi sec","obsahuje siřičitany",0.75]
["L1314092",8594000941088,5102000,"Bohemia Sekt brut 0,75 l","jakostní šumivé víno","xx",0.12,"Vyrobeno v České republice","Výrobce BOHEMIA SEKT,s.r.o. Smetanova 220, 332 02 Starý Plzenec, Česká republika","brut","obsahuje siřičitany",0.75]
["L1314092",8594000941088,5102000,"Bohemia Sekt brut 0,75 l","jakostní šumivé víno","xx",0.12,"Vyrobeno v České republice","Výrobce BOHEMIA SEKT,s.r.o. Smetanova 220, 332 02 Starý Plzenec, Česká republika","brut","obsahuje siřičitany",0.75]
["L1314092",8594000941088,5102000,"Bohemia Sekt brut 0,75 l","jakostní šumivé víno","xx",0.12,"Vyrobeno v České republice","Výrobce BOHEMIA SEKT,s.r.o. Smetanova 220, 332 02 Starý Plzenec, Česká republika","brut","obsahuje siřičitany",0.75]
["L1314093",8594000941019,5100000,"Bohemia Sekt demi sec 0,75 l","jakostní šumivé víno","xx",0.11,"Vyrobeno v České republice","Výrobce BOHEMIA SEKT,s.r.o. Smetanova 220, 332 02 Starý Plzenec, Česká republika","demi sec","obsahuje siřičitany",0.75]
["L1314099",8594000941019,5100000,"Bohemia Sekt demi sec 0,75 l","jakostní šumivé víno","xx",0.11,"Vyrobeno v České republice","Výrobce BOHEMIA SEKT,s.r.o. Smetanova 220, 332 02 Starý Plzenec, Česká republika","demi sec","obsahuje siřičitany",0.75]
["L1314100",8594000941019,5100000,"Bohemia Sekt demi sec 0,75 l","jakostní šumivé víno","xx",0.11,"Vyrobeno v České republice","Výrobce BOHEMIA SEKT,s.r.o. Smetanova 220, 332 02 Starý Plzenec, Česká republika","demi sec","obsahuje siřičitany",0.75]
["L1314134",8594000941040,5101000,"Bohemia Rose demi sec 0,75 l","jakostní šumivé víno","xx",0.11,"Vyrobeno v České republice","Výrobce BOHEMIA SEKT,s.r.o. Smetanova 220, 332 02 Starý Plzenec, Česká republika","demi sec","obsahuje siřičitany",0.75]
["L1314134",8594000941040,5101000,"Bohemia Rose demi sec 0,75 l","jakostní šumivé víno","xx",0.11,"Vyrobeno v České republice","Výrobce BOHEMIA SEKT,s.r.o. Smetanova 220, 332 02 Starý Plzenec, Česká republika","demi sec","obsahuje siřičitany",0.75]
["L1314135",8594000941040,5101000,"Bohemia Rose demi sec 0,75 l","jakostní šumivé víno","xx",0.11,"Vyrobeno v České republice","Výrobce BOHEMIA SEKT,s.r.o. Smetanova 220, 332 02 Starý Plzenec, Česká republika","demi sec","obsahuje siřičitany",0.75]
["L1314135",8594000941019,5100000,"Bohemia Sekt demi sec 0,75 l","jakostní šumivé víno","xx",0.11,"Vyrobeno v České republice","Výrobce BOHEMIA SEKT,s.r.o. Smetanova 220, 332 02 Starý Plzenec, Česká republika","demi sec","obsahuje siřičitany",0.75]
["L1314135",8594000941019,5100000,"Bohemia Sekt demi sec 0,75 l","jakostní šumivé víno","xx",0.11,"Vyrobeno v České republice","Výrobce BOHEMIA SEKT,s.r.o. Smetanova 220, 332 02 Starý Plzenec, Česká republika","demi sec","obsahuje siřičitany",0.75]
["L1314135",8594000941019,5100000,"Bohemia Sekt demi sec 0,75 l","jakostní šumivé víno","xx",0.11,"Vyrobeno v České republice","Výrobce BOHEMIA SEKT,s.r.o. Smetanova 220, 332 02 Starý Plzenec, Česká republika","demi sec","obsahuje siřičitany",0.75]
["L1314135",4003310501812,5018100,"Hubert Club demi sec 0,2 l","šumivé víno","xx",0.115,"Vyrobeno na Slovensku","Výrobce Hubert J.E, spol.s.r.o., Vinárska 137, 926 01 Sereď, Slovensko","demi sec","obsahuje siřičitany",0.75]
["L1314139",8594002881948,5108200,"Motýl sekt rose demi 0,75 l","jakostní šumivé víno","xx",0.11,"Vyrobeno v České republice","Výrobce BOHEMIA SEKT,s.r.o. Smetanova 220, 332 02 Starý Plzenec, Česká republika","demi sec","obsahuje siřičitany",0.75]
["L1314139",8594002881962,5108400,"Motýl sekt suchý 0,75 l","jakostní šumivé víno","xx",0.115,"Vyrobeno v České republice","Výrobce BOHEMIA SEKT,s.r.o. Smetanova 220, 332 02 Starý Plzenec, Česká republika","suchý","obsahuje siřičitany",0.75]
["L1314139",8594002881924,5108000,"Motýl sekt-demi 0,75 l","jakostní šumivé víno","xx",0.11,"Vyrobeno v České republice","Výrobce BOHEMIA SEKT,s.r.o. Smetanova 220, 332 02 Starý Plzenec, Česká republika","demi sec","obsahuje siřičitany",0.75]
["L1314139",8594002881924,5108000,"Motýl sekt-demi 0,75 l","jakostní šumivé víno","xx",0.11,"Vyrobeno v České republice","Výrobce BOHEMIA SEKT,s.r.o. Smetanova 220, 332 02 Starý Plzenec, Česká republika","demi sec","obsahuje siřičitany",0.75]
["L1314139",8594002881924,5108000,"Motýl sekt-demi 0,75 l","jakostní šumivé víno","xx",0.11,"Vyrobeno v České republice","Výrobce BOHEMIA SEKT,s.r.o. Smetanova 220, 332 02 Starý Plzenec, Česká republika","demi sec","obsahuje siřičitany",0.75]
["L1314140",8594002881948,5108200,"Motýl sekt rose demi 0,75 l","jakostní šumivé víno","xx",0.11,"Vyrobeno v České republice","Výrobce BOHEMIA SEKT,s.r.o. Smetanova 220, 332 02 Starý Plzenec, Česká republika","demi sec","obsahuje siřičitany",0.75]
["L1314140",8594002881948,5108200,"Motýl sekt rose demi 0,75 l","jakostní šumivé víno","xx",0.11,"Vyrobeno v České republice","Výrobce BOHEMIA SEKT,s.r.o. Smetanova 220, 332 02 Starý Plzenec, Česká republika","demi sec","obsahuje siřičitany",0.75]
["L1314140",8594002881948,5108200,"Motýl sekt rose demi 0,75 l","jakostní šumivé víno","xx",0.11,"Vyrobeno v České republice","Výrobce BOHEMIA SEKT,s.r.o. Smetanova 220, 332 02 Starý Plzenec, Česká republika","demi sec","obsahuje siřičitany",0.75]
["L1314140",8594002881924,5108000,"Motýl sekt-demi 0,75 l","jakostní šumivé víno","xx",0.11,"Vyrobeno v České republice","Výrobce BOHEMIA SEKT,s.r.o. Smetanova 220, 332 02 Starý Plzenec, Česká republika","demi sec","obsahuje siřičitany",0.75]
["L1314140",8594002881924,5108000,"Motýl sekt-demi 0,75 l","jakostní šumivé víno","xx",0.11,"Vyrobeno v České republice","Výrobce BOHEMIA SEKT,s.r.o. Smetanova 220, 332 02 Starý Plzenec, Česká republika","demi sec","obsahuje siřičitany",0.75]
["L1314141",8594000941019,5100000,"Bohemia Sekt demi sec 0,75 l","jakostní šumivé víno","xx",0.11,"Vyrobeno v České republice","Výrobce BOHEMIA SEKT,s.r.o. Smetanova 220, 332 02 Starý Plzenec, Česká republika","demi sec","obsahuje siřičitany",0.75]
["L1314142",8594000941156,5101800,"Bohemia Sekt Blanc de Noirs brut 0,75 l","jakostní šumivé víno","xx",0.115,"Vyrobeno v České republice","Výrobce BOHEMIA SEKT,s.r.o. Smetanova 220, 332 02 Starý Plzenec, Česká republika","brut","obsahuje siřičitany",0.75]
["L1314142",8594000941156,5101800,"Bohemia Sekt Blanc de Noirs brut 0,75 l","jakostní šumivé víno","xx",0.115,"Vyrobeno v České republice","Výrobce BOHEMIA SEKT,s.r.o. Smetanova 220, 332 02 Starý Plzenec, Česká republika","brut","obsahuje siřičitany",0.75]
["L1314146",8594000941019,5100000,"Bohemia Sekt demi sec 0,75 l","jakostní šumivé víno","xx",0.11,"Vyrobeno v České republice","Výrobce BOHEMIA SEKT,s.r.o. Smetanova 220, 332 02 Starý Plzenec, Česká republika","demi sec","obsahuje siřičitany",0.75]
["L1314147",8594000941040,5101000,"Bohemia Rose demi sec 0,75 l","jakostní šumivé víno","xx",0.11,"Vyrobeno v České republice","Výrobce BOHEMIA SEKT,s.r.o. Smetanova 220, 332 02 Starý Plzenec, Česká republika","demi sec","obsahuje siřičitany",0.75]
["L1314147",8594000941019,5100000,"Bohemia Sekt demi sec 0,75 l","jakostní šumivé víno","xx",0.11,"Vyrobeno v České republice","Výrobce BOHEMIA SEKT,s.r.o. Smetanova 220, 332 02 Starý Plzenec, Česká republika","demi sec","obsahuje siřičitany",0.75]
["L1314147",8594000941019,5100000,"Bohemia Sekt demi sec 0,75 l","jakostní šumivé víno","xx",0.11,"Vyrobeno v České republice","Výrobce BOHEMIA SEKT,s.r.o. Smetanova 220, 332 02 Starý Plzenec, Česká republika","demi sec","obsahuje siřičitany",0.75]
["L1314147",4003310501812,5018100,"Hubert Club demi sec 0,2 l","šumivé víno","xx",0.115,"Vyrobeno na Slovensku","Výrobce Hubert J.E, spol.s.r.o., Vinárska 137, 926 01 Sereď, Slovensko","demi sec","obsahuje siřičitany",0.75]
["L1314148",8594000941088,5102000,"Bohemia Sekt brut 0,75 l","jakostní šumivé víno","xx",0.12,"Vyrobeno v České republice","Výrobce BOHEMIA SEKT,s.r.o. Smetanova 220, 332 02 Starý Plzenec, Česká republika","brut","obsahuje siřičitany",0.75]
["L1314148",8594000941019,5100000,"Bohemia Sekt demi sec 0,75 l","jakostní šumivé víno","xx",0.11,"Vyrobeno v České republice","Výrobce BOHEMIA SEKT,s.r.o. Smetanova 220, 332 02 Starý Plzenec, Česká republika","demi sec","obsahuje siřičitany",0.75]
["L1314148",8594000941019,5100000,"Bohemia Sekt demi sec 0,75 l","jakostní šumivé víno","xx",0.11,"Vyrobeno v České republice","Výrobce BOHEMIA SEKT,s.r.o. Smetanova 220, 332 02 Starý Plzenec, Česká republika","demi sec","obsahuje siřičitany",0.75]
["L1314149",8594000941088,5102000,"Bohemia Sekt brut 0,75 l","jakostní šumivé víno","xx",0.12,"Vyrobeno v České republice","Výrobce BOHEMIA SEKT,s.r.o. Smetanova 220, 332 02 Starý Plzenec, Česká republika","brut","obsahuje siřičitany",0.75]
["L1314149",8594000941088,5102000,"Bohemia Sekt brut 0,75 l","jakostní šumivé víno","xx",0.12,"Vyrobeno v České republice","Výrobce BOHEMIA SEKT,s.r.o. Smetanova 220, 332 02 Starý Plzenec, Česká republika","brut","obsahuje siřičitany",0.75]
["L1314149",8594000941088,5102000,"Bohemia Sekt brut 0,75 l","jakostní šumivé víno","xx",0.12,"Vyrobeno v České republice","Výrobce BOHEMIA SEKT,s.r.o. Smetanova 220, 332 02 Starý Plzenec, Česká republika","brut","obsahuje siřičitany",0.75]
["L1314149",8594000941019,5100000,"Bohemia Sekt demi sec 0,75 l","jakostní šumivé víno","xx",0.11,"Vyrobeno v České republice","Výrobce BOHEMIA SEKT,s.r.o. Smetanova 220, 332 02 Starý Plzenec, Česká republika","demi sec","obsahuje siřičitany",0.75]
["L1314150",8594000941088,5102000,"Bohemia Sekt brut 0,75 l","jakostní šumivé víno","xx",0.12,"Vyrobeno v České republice","Výrobce BOHEMIA SEKT,s.r.o. Smetanova 220, 332 02 Starý Plzenec, Česká republika","brut","obsahuje siřičitany",0.75]
["L1314150",8594000941088,5102000,"Bohemia Sekt brut 0,75 l","jakostní šumivé víno","xx",0.12,"Vyrobeno v České republice","Výrobce BOHEMIA SEKT,s.r.o. Smetanova 220, 332 02 Starý Plzenec, Česká republika","brut","obsahuje siřičitany",0.75]
["L1314150",8594000941088,5102000,"Bohemia Sekt brut 0,75 l","jakostní šumivé víno","xx",0.12,"Vyrobeno v České republice","Výrobce BOHEMIA SEKT,s.r.o. Smetanova 220, 332 02 Starý Plzenec, Česká republika","brut","obsahuje siřičitany",0.75]
["L1314153",8594000941040,5101000,"Bohemia Rose demi sec 0,75 l","jakostní šumivé víno","xx",0.11,"Vyrobeno v České republice","Výrobce BOHEMIA SEKT,s.r.o. Smetanova 220, 332 02 Starý Plzenec, Česká republika","demi sec","obsahuje siřičitany",0.75]
["L1314153",8594000941040,5101000,"Bohemia Rose demi sec 0,75 l","jakostní šumivé víno","xx",0.11,"Vyrobeno v České republice","Výrobce BOHEMIA SEKT,s.r.o. Smetanova 220, 332 02 Starý Plzenec, Česká republika","demi sec","obsahuje siřičitany",0.75]
["L1314153",8594000941040,5101000,"Bohemia Rose demi sec 0,75 l","jakostní šumivé víno","xx",0.11,"Vyrobeno v České republice","Výrobce BOHEMIA SEKT,s.r.o. Smetanova 220, 332 02 Starý Plzenec, Česká republika","demi sec","obsahuje siřičitany",0.75]
["L1314153",8594000941040,5101000,"Bohemia Rose demi sec 0,75 l","jakostní šumivé víno","xx",0.11,"Vyrobeno v České republice","Výrobce BOHEMIA SEKT,s.r.o. Smetanova 220, 332 02 Starý Plzenec, Česká republika","demi sec","obsahuje siřičitany",0.75]
["L1314154",8594000941040,5101000,"Bohemia Rose demi sec 0,75 l","jakostní šumivé víno","xx",0.11,"Vyrobeno v České republice","Výrobce BOHEMIA SEKT,s.r.o. Smetanova 220, 332 02 Starý Plzenec, Česká republika","demi sec","obsahuje siřičitany",0.75]
["L1314154",8594000941040,5101000,"Bohemia Rose demi sec 0,75 l","jakostní šumivé víno","xx",0.11,"Vyrobeno v České republice","Výrobce BOHEMIA SEKT,s.r.o. Smetanova 220, 332 02 Starý Plzenec, Česká republika","demi sec","obsahuje siřičitany",0.75]
["L1314154",8594000941040,5101000,"Bohemia Rose demi sec 0,75 l","jakostní šumivé víno","xx",0.11,"Vyrobeno v České republice","Výrobce BOHEMIA SEKT,s.r.o. Smetanova 220, 332 02 Starý Plzenec, Česká republika","demi sec","obsahuje siřičitany",0.75]
["L1314162",8594000941309,5105500,"Chateau Belveder doux 0,75 l","jakostní šumivé víno","xx",0.125,"Vyrobeno v České republice","Výrobce BOHEMIA SEKT,s.r.o. Smetanova 220, 332 02 Starý Plzenec, Česká republika","doux","obsahuje siřičitany",0.75]
["L1314162",8594044830768,5107000,"Chateau Bzenec brut  0,75 l","jakostní šumivé víno s.o.","14A1-13-2",0.125,"Sekt z České republiky","Výrobce BOHEMIA SEKT,s.r.o. Smetanova 220, 332 02 Starý Plzenec, Česká republika","brut","obsahuje siřičitany",0.75]
["L1314162",8594000941491,5105800,"Louis Girardot  0,75 l","jakostní šumivé víno","xx",0.13,"Vyrobeno v České republice","Výrobce BOHEMIA SEKT,s.r.o. Smetanova 220, 332 02 Starý Plzenec, Česká republika","brut","obsahuje siřičitany",0.75]
["L1314163",8594000941309,5105500,"Chateau Belveder doux 0,75 l","jakostní šumivé víno","xx",0.125,"Vyrobeno v České republice","Výrobce BOHEMIA SEKT,s.r.o. Smetanova 220, 332 02 Starý Plzenec, Česká republika","doux","obsahuje siřičitany",0.75]
["L1314163",8594000941248,5105100,"Chateau Radyně brut 0,75 l","jakostní šumivé víno","xx",0.13,"Vyrobeno v České republice","Výrobce BOHEMIA SEKT,s.r.o. Smetanova 220, 332 02 Starý Plzenec, Česká republika","brut","obsahuje siřičitany",0.75]
["L1314164",8594000941460,5104100,"Bohemia Sekt Prestige brut 0,75 l","jakostní šumivé víno","xx",0.13,"Vyrobeno v České republice","Výrobce BOHEMIA SEKT,s.r.o. Smetanova 220, 332 02 Starý Plzenec, Česká republika","brut","obsahuje siřičitany",0.75]
["L1314164",8594000941446,5104000,"Bohemia Sekt Prestige demi sec 0,75","jakostní šumivé víno","xx",0.125,"Vyrobeno v České republice","Výrobce BOHEMIA SEKT,s.r.o. Smetanova 220, 332 02 Starý Plzenec, Česká republika","demi sec","obsahuje siřičitany",0.75]
["L1314167",8594000941460,5104145,"Bohemia Sekt Prest. brut 0,75 l / B Delh","jakostní šumivé víno","xx",0.13,"Vyrobeno v České republice","Výrobce BOHEMIA SEKT,s.r.o. Smetanova 220, 332 02 Starý Plzenec, Česká republika","brut","obsahuje siřičitany",0.75]
["L1314167",8594000941460,5104100,"Bohemia Sekt Prestige brut 0,75 l","jakostní šumivé víno","xx",0.13,"Vyrobeno v České republice","Výrobce BOHEMIA SEKT,s.r.o. Smetanova 220, 332 02 Starý Plzenec, Česká republika","brut","obsahuje siřičitany",0.75]
["L1314168",8594000941460,5104100,"Bohemia Sekt Prestige brut 0,75 l","jakostní šumivé víno","xx",0.13,"Vyrobeno v České republice","Výrobce BOHEMIA SEKT,s.r.o. Smetanova 220, 332 02 Starý Plzenec, Česká republika","brut","obsahuje siřičitany",0.75]
["L1314168",8594000941316,5105000,"Bohemia Sekt Prestige Chardonnay 0,75 l","jakostní šumivé víno","xx",0.13,"Vyrobeno v České republice","Výrobce BOHEMIA SEKT,s.r.o. Smetanova 220, 332 02 Starý Plzenec, Česká republika","brut","obsahuje siřičitany",0.75]
["L1314168",8594000941316,5105000,"Bohemia Sekt Prestige Chardonnay 0,75 l","jakostní šumivé víno","xx",0.13,"Vyrobeno v České republice","Výrobce BOHEMIA SEKT,s.r.o. Smetanova 220, 332 02 Starý Plzenec, Česká republika","brut","obsahuje siřičitany",0.75]
["L1314168",8594000941316,5105000,"Bohemia Sekt Prestige Chardonnay 0,75 l","jakostní šumivé víno","xx",0.13,"Vyrobeno v České republice","Výrobce BOHEMIA SEKT,s.r.o. Smetanova 220, 332 02 Starý Plzenec, Česká republika","brut","obsahuje siřičitany",0.75]
["L1314197",8594000941651,5100200,"Bohemia Sekt demi sec 0,2 l","jakostní šumivé víno","xx",0.11,"Vyrobeno v České republice","Výrobce BOHEMIA SEKT,s.r.o. Smetanova 220, 332 02 Starý Plzenec, Česká republika","demi sec","obsahuje siřičitany",0.2]
["L1314198",8594000941651,5100200,"Bohemia Sekt demi sec 0,2 l","jakostní šumivé víno","xx",0.11,"Vyrobeno v České republice","Výrobce BOHEMIA SEKT,s.r.o. Smetanova 220, 332 02 Starý Plzenec, Česká republika","demi sec","obsahuje siřičitany",0.2]
["L1314202",8594000941385,5102100,"Bohemia Sekt brut 0,375 l","jakostní šumivé víno","xx",0.12,"Vyrobeno v České republice","Výrobce BOHEMIA SEKT,s.r.o. Smetanova 220, 332 02 Starý Plzenec, Česká republika","brut","obsahuje siřičitany",0.375]
["L1314202",8594000941651,5100200,"Bohemia Sekt demi sec 0,2 l","jakostní šumivé víno","xx",0.11,"Vyrobeno v České republice","Výrobce BOHEMIA SEKT,s.r.o. Smetanova 220, 332 02 Starý Plzenec, Česká republika","demi sec","obsahuje siřičitany",0.2]
["L1314203",8594000941668,5102200,"Bohemia Sekt brut 0,2 l","jakostní šumivé víno","xx",0.12,"Vyrobeno v České republice","Výrobce BOHEMIA SEKT,s.r.o. Smetanova 220, 332 02 Starý Plzenec, Česká republika","brut","obsahuje siřičitany",0.2]
["L1314203",8594000941385,5102100,"Bohemia Sekt brut 0,375 l","jakostní šumivé víno","xx",0.12,"Vyrobeno v České republice","Výrobce BOHEMIA SEKT,s.r.o. Smetanova 220, 332 02 Starý Plzenec, Česká republika","brut","obsahuje siřičitany",0.375]
["L1314209",8594000941583,5100300,"Bohemia Sekt demi sec 1,5 l","jakostní šumivé víno","xx",0.11,"Vyrobeno v České republice","Výrobce BOHEMIA SEKT,s.r.o. Smetanova 220, 332 02 Starý Plzenec, Česká republika","demi sec","obsahuje siřičitany",1.5]
["L1314210",8594000941583,5100300,"Bohemia Sekt demi sec 1,5 l","jakostní šumivé víno","xx",0.11,"Vyrobeno v České republice","Výrobce BOHEMIA SEKT,s.r.o. Smetanova 220, 332 02 Starý Plzenec, Česká republika","demi sec","obsahuje siřičitany",1.5]
["L1314210",8594000941583,5100300,"Bohemia Sekt demi sec 1,5 l","jakostní šumivé víno","xx",0.11,"Vyrobeno v České republice","Výrobce BOHEMIA SEKT,s.r.o. Smetanova 220, 332 02 Starý Plzenec, Česká republika","demi sec","obsahuje siřičitany",1.5]
["L1314211",8594000941385,5102100,"Bohemia Sekt brut 0,375 l","jakostní šumivé víno","xx",0.12,"Vyrobeno v České republice","Výrobce BOHEMIA SEKT,s.r.o. Smetanova 220, 332 02 Starý Plzenec, Česká republika","brut","obsahuje siřičitany",0.375]
["L1314211",8594000941590,5102300,"Bohemia Sekt brut 1,5 l","jakostní šumivé víno","xx",0.12,"Vyrobeno v České republice","Výrobce BOHEMIA SEKT,s.r.o. Smetanova 220, 332 02 Starý Plzenec, Česká republika","brut","obsahuje siřičitany",1.5]
["L1314212",8594000941385,5102100,"Bohemia Sekt brut 0,375 l","jakostní šumivé víno","xx",0.12,"Vyrobeno v České republice","Výrobce BOHEMIA SEKT,s.r.o. Smetanova 220, 332 02 Starý Plzenec, Česká republika","brut","obsahuje siřičitany",0.375]
["L1314213",8594000941385,5102100,"Bohemia Sekt brut 0,375 l","jakostní šumivé víno","xx",0.12,"Vyrobeno v České republice","Výrobce BOHEMIA SEKT,s.r.o. Smetanova 220, 332 02 Starý Plzenec, Česká republika","brut","obsahuje siřičitany",0.375]
["L1314213",8594000941323,5100100,"Bohemia Sekt demi sec 0,375 l","jakostní šumivé víno","xx",0.11,"Vyrobeno v České republice","Výrobce BOHEMIA SEKT,s.r.o. Smetanova 220, 332 02 Starý Plzenec, Česká republika","demi sec","obsahuje siřičitany",0.375]
["L1314213",8594000941583,5100300,"Bohemia Sekt demi sec 1,5 l","jakostní šumivé víno","xx",0.11,"Vyrobeno v České republice","Výrobce BOHEMIA SEKT,s.r.o. Smetanova 220, 332 02 Starý Plzenec, Česká republika","demi sec","obsahuje siřičitany",1.5]
["L1314219",8594000941019,5100000,"Bohemia Sekt demi sec 0,75 l","jakostní šumivé víno","xx",0.11,"Vyrobeno v České republice","Výrobce BOHEMIA SEKT,s.r.o. Smetanova 220, 332 02 Starý Plzenec, Česká republika","demi sec","obsahuje siřičitany",0.75]
["L1314225",8594000941590,5102300,"Bohemia Sekt brut 1,5 l","jakostní šumivé víno","xx",0.12,"Vyrobeno v České republice","Výrobce BOHEMIA SEKT,s.r.o. Smetanova 220, 332 02 Starý Plzenec, Česká republika","brut","obsahuje siřičitany",1.5]
["L132301198",8588000002238,5020200,"Hubert Club brut 0,75 l","šumivé víno","xx",0.12,"Vyrobeno na Slovensku","Výrobce Hubert J.E, spol.s.r.o., Vinárska 137, 926 01 Sereď, Slovensko","brut","obsahuje siřičitany",0.75]
["L1323920",3594580000705,2836365,"Alfred Gratien Rose Brut Classique","champagne","xx",0.125,"Vyrobeno ve Francii","Výrobce Alfred Gratien, Epernay, NM-205-001, Francie","brut","obsahuje siřičitany",0.75]
["L132912310",8588000002269,5021100,"Hubert Club demi sec 0,75 l","šumivé víno","xx",0.115,"Vyrobeno na Slovensku","Výrobce Hubert J.E, spol.s.r.o., Vinárska 137, 926 01 Sereď, Slovensko","demi sec","obsahuje siřičitany",0.75]
["L133012288",8588000002269,5021100,"Hubert Club demi sec 0,75 l","šumivé víno","xx",0.115,"Vyrobeno na Slovensku","Výrobce Hubert J.E, spol.s.r.o., Vinárska 137, 926 01 Sereď, Slovensko","demi sec","obsahuje siřičitany",0.75]
["L133012288",8588000002269,5021100,"Hubert Club demi sec 0,75 l","šumivé víno","xx",0.115,"Vyrobeno na Slovensku","Výrobce Hubert J.E, spol.s.r.o., Vinárska 137, 926 01 Sereď, Slovensko","demi sec","obsahuje siřičitany",0.75]
["L1352312",8586015320620,5250700,"Gaudium Vinum červené NK","víno","xx",0.1,"víno z Evropského společenství","Baleno v BOHEMIA SEKT,s.r.o. Smetanova 220, 332 02 Starý Plzenec, Česká republika","polosuché","obsahuje siřičitany",1]
["L1353121",8586015320620,5250700,"Gaudium Vinum červené NK","víno","xx",0.1,"víno z Evropského společenství","Baleno v BOHEMIA SEKT,s.r.o. Smetanova 220, 332 02 Starý Plzenec, Česká republika","polosuché","obsahuje siřičitany",1]
["L1354009",8594002880415,5253100,"Poezie červená  1NK -ČMV","víno","xx",0.1,"víno z Evropského společenství","Baleno v BOHEMIA SEKT,s.r.o. Smetanova 220, 332 02 Starý Plzenec, Česká republika","polosuché","obsahuje siřičitany",1]
["L1354175",8594002880408,5253000,"Poezie bílá 1NK -ČMV","víno","xx",0.1,"víno z Evropského společenství","Baleno v BOHEMIA SEKT,s.r.o. Smetanova 220, 332 02 Starý Plzenec, Česká republika","polosuché","obsahuje siřičitany",1]
["L137401283",8588000002238,5020200,"Hubert Club brut 0,75 l","šumivé víno","xx",0.12,"Vyrobeno na Slovensku","Výrobce Hubert J.E, spol.s.r.o., Vinárska 137, 926 01 Sereď, Slovensko","brut","obsahuje siřičitany",0.75]
["L1392227",8594000941286,5100225,"Bohemia Sekt demi sec 0,2 l-6 pack","jakostní šumivé víno","xx",0.11,"Vyrobeno v České republice","Výrobce BOHEMIA SEKT,s.r.o. Smetanova 220, 332 02 Starý Plzenec, Česká republika","demi sec","obsahuje siřičitany",0.2]
["L1392328",8594000941507,5104800,"Bohemia Sekt Prestige demi sec 0,75 / d.","jakostní šumivé víno","xx",0.125,"Vyrobeno v České republice","Výrobce BOHEMIA SEKT,s.r.o. Smetanova 220, 332 02 Starý Plzenec, Česká republika","demi sec","obsahuje siřičitany",0.75]
["L1392339",8594000941613,5104500,"Bohemia Sekt Prestige rosé brut 0,75 l/dárk","jakostní šumivé víno","xx",0.125,"Vyrobeno v České republice","Výrobce BOHEMIA SEKT,s.r.o. Smetanova 220, 332 02 Starý Plzenec, Česká republika","brut","obsahuje siřičitany",0.75]
["L1392342",8594000941613,5104500,"Bohemia Sekt Prestige rosé brut 0,75 l/dárk","jakostní šumivé víno","xx",0.125,"Vyrobeno v České republice","Výrobce BOHEMIA SEKT,s.r.o. Smetanova 220, 332 02 Starý Plzenec, Česká republika","brut","obsahuje siřičitany",0.75]
["L1393071",8594000941286,5100225,"Bohemia Sekt demi sec 0,2 l-6 pack","jakostní šumivé víno","xx",0.11,"Vyrobeno v České republice","Výrobce BOHEMIA SEKT,s.r.o. Smetanova 220, 332 02 Starý Plzenec, Česká republika","demi sec","obsahuje siřičitany",0.2]
["L1393072",8594000941286,5100225,"Bohemia Sekt demi sec 0,2 l-6 pack","jakostní šumivé víno","xx",0.11,"Vyrobeno v České republice","Výrobce BOHEMIA SEKT,s.r.o. Smetanova 220, 332 02 Starý Plzenec, Česká republika","demi sec","obsahuje siřičitany",0.2]
["L1393072",8594000941286,5100225,"Bohemia Sekt demi sec 0,2 l-6 pack","jakostní šumivé víno","xx",0.11,"Vyrobeno v České republice","Výrobce BOHEMIA SEKT,s.r.o. Smetanova 220, 332 02 Starý Plzenec, Česká republika","demi sec","obsahuje siřičitany",0.2]
["L1393073",8594000941286,5100225,"Bohemia Sekt demi sec 0,2 l-6 pack","jakostní šumivé víno","xx",0.11,"Vyrobeno v České republice","Výrobce BOHEMIA SEKT,s.r.o. Smetanova 220, 332 02 Starý Plzenec, Česká republika","demi sec","obsahuje siřičitany",0.2]
["L1393281",8594000941279,5102725,"Bohemia Chardonnay brut 0,75 l / dárk.","jakostní šumivé víno","xx",0.125,"Vyrobeno v České republice","Výrobce BOHEMIA SEKT,s.r.o. Smetanova 220, 332 02 Starý Plzenec, Česká republika","brut","obsahuje siřičitany",0.75]
["L1393294",8594000941378,5105025,"Bohemia Sekt Prestige Chardonnay 0,75 l/ dárk","jakostní šumivé víno","xx",0.13,"Vyrobeno v České republice","Výrobce BOHEMIA SEKT,s.r.o. Smetanova 220, 332 02 Starý Plzenec, Česká republika","brut","obsahuje siřičitany",0.75]
["L1393294",8594000941378,5105025,"Bohemia Sekt Prestige Chardonnay 0,75 l/ dárk","jakostní šumivé víno","xx",0.13,"Vyrobeno v České republice","Výrobce BOHEMIA SEKT,s.r.o. Smetanova 220, 332 02 Starý Plzenec, Česká republika","brut","obsahuje siřičitany",0.75]
["L1393310",8594000941538,5104300,"Bohemia Sekt Prestige rosé brut 0,75 l","jakostní šumivé víno","xx",0.125,"Vyrobeno v České republice","Výrobce BOHEMIA SEKT,s.r.o. Smetanova 220, 332 02 Starý Plzenec, Česká republika","brut","obsahuje siřičitany",0.75]
["L1393310",8594002881962,5108400,"Motýl sekt suchý 0,75 l","jakostní šumivé víno","xx",0.115,"Vyrobeno v České republice","Výrobce BOHEMIA SEKT,s.r.o. Smetanova 220, 332 02 Starý Plzenec, Česká republika","suchý","obsahuje siřičitany",0.75]
["L1393310",8594002881962,5108400,"Motýl sekt suchý 0,75 l","jakostní šumivé víno","xx",0.115,"Vyrobeno v České republice","Výrobce BOHEMIA SEKT,s.r.o. Smetanova 220, 332 02 Starý Plzenec, Česká republika","suchý","obsahuje siřičitany",0.75]
["L1393315",8594000941491,5105800,"Louis Girardot  0,75 l","jakostní šumivé víno","xx",0.13,"Vyrobeno v České republice","Výrobce BOHEMIA SEKT,s.r.o. Smetanova 220, 332 02 Starý Plzenec, Česká republika","brut","obsahuje siřičitany",0.75]
["L1393323",8594000941378,5105025,"Bohemia Sekt Prestige Chardonnay 0,75 l/ dárk","jakostní šumivé víno","xx",0.13,"Vyrobeno v České republice","Výrobce BOHEMIA SEKT,s.r.o. Smetanova 220, 332 02 Starý Plzenec, Česká republika","brut","obsahuje siřičitany",0.75]
["L1393324",8594000941378,5105025,"Bohemia Sekt Prestige Chardonnay 0,75 l/ dárk","jakostní šumivé víno","xx",0.13,"Vyrobeno v České republice","Výrobce BOHEMIA SEKT,s.r.o. Smetanova 220, 332 02 Starý Plzenec, Česká republika","brut","obsahuje siřičitany",0.75]
["L1393325",8594000941378,5105025,"Bohemia Sekt Prestige Chardonnay 0,75 l/ dárk","jakostní šumivé víno","xx",0.13,"Vyrobeno v České republice","Výrobce BOHEMIA SEKT,s.r.o. Smetanova 220, 332 02 Starý Plzenec, Česká republika","brut","obsahuje siřičitany",0.75]
["L1393329",8594000941514,5104900,"Bohemia Sekt Prestige brut 0,75 l / dárk","jakostní šumivé víno","xx",0.13,"Vyrobeno v České republice","Výrobce BOHEMIA SEKT,s.r.o. Smetanova 220, 332 02 Starý Plzenec, Česká republika","brut","obsahuje siřičitany",0.75]
["L1393330",8594000941637,5104400,"Bohemia Sekt Prestige  brut 0,75 l+ 2 sklenky","jakostní šumivé víno","xx",0.13,"Vyrobeno v České republice","Výrobce BOHEMIA SEKT,s.r.o. Smetanova 220, 332 02 Starý Plzenec, Česká republika","brut","obsahuje siřičitany",0.75]
["L1393330",8594000941514,5104900,"Bohemia Sekt Prestige brut 0,75 l / dárk","jakostní šumivé víno","xx",0.13,"Vyrobeno v České republice","Výrobce BOHEMIA SEKT,s.r.o. Smetanova 220, 332 02 Starý Plzenec, Česká republika","brut","obsahuje siřičitany",0.75]
["L1393333",8594000941637,5104400,"Bohemia Sekt Prestige  brut 0,75 l+ 2 sklenky","jakostní šumivé víno","xx",0.13,"Vyrobeno v České republice","Výrobce BOHEMIA SEKT,s.r.o. Smetanova 220, 332 02 Starý Plzenec, Česká republika","brut","obsahuje siřičitany",0.75]
["L1393345",8594000941637,5104400,"Bohemia Sekt Prestige  brut 0,75 l+ 2 sklenky","jakostní šumivé víno","xx",0.13,"Vyrobeno v České republice","Výrobce BOHEMIA SEKT,s.r.o. Smetanova 220, 332 02 Starý Plzenec, Česká republika","brut","obsahuje siřičitany",0.75]
["L1393353",8594000941637,5104400,"Bohemia Sekt Prestige  brut 0,75 l+ 2 sklenky","jakostní šumivé víno","xx",0.13,"Vyrobeno v České republice","Výrobce BOHEMIA SEKT,s.r.o. Smetanova 220, 332 02 Starý Plzenec, Česká republika","brut","obsahuje siřičitany",0.75]
["L1394077",8594000941279,5102725,"Bohemia Chardonnay brut 0,75 l / dárk.","jakostní šumivé víno","xx",0.125,"Vyrobeno v České republice","Výrobce BOHEMIA SEKT,s.r.o. Smetanova 220, 332 02 Starý Plzenec, Česká republika","brut","obsahuje siřičitany",0.75]
["L1394078",8594000941279,5102725,"Bohemia Chardonnay brut 0,75 l / dárk.","jakostní šumivé víno","xx",0.125,"Vyrobeno v České republice","Výrobce BOHEMIA SEKT,s.r.o. Smetanova 220, 332 02 Starý Plzenec, Česká republika","brut","obsahuje siřičitany",0.75]
["L1394140",8594000941682,5100800,"Bohemia Sekt demi sec 3 l / dárk.","jakostní šumivé víno","xx",0.11,"Vyrobeno v České republice","Výrobce BOHEMIA SEKT,s.r.o. Smetanova 220, 332 02 Starý Plzenec, Česká republika","demi sec","obsahuje siřičitany",3]
["L1394146",8594000941682,5100800,"Bohemia Sekt demi sec 3 l / dárk.","jakostní šumivé víno","xx",0.11,"Vyrobeno v České republice","Výrobce BOHEMIA SEKT,s.r.o. Smetanova 220, 332 02 Starý Plzenec, Česká republika","demi sec","obsahuje siřičitany",3]
["L1394157",8594000941514,5104900,"Bohemia Sekt Prestige brut 0,75 l / dárk","jakostní šumivé víno","xx",0.13,"Vyrobeno v České republice","Výrobce BOHEMIA SEKT,s.r.o. Smetanova 220, 332 02 Starý Plzenec, Česká republika","brut","obsahuje siřičitany",0.75]
["L1394157",8594000941507,5104800,"Bohemia Sekt Prestige demi sec 0,75 / d.","jakostní šumivé víno","xx",0.125,"Vyrobeno v České republice","Výrobce BOHEMIA SEKT,s.r.o. Smetanova 220, 332 02 Starý Plzenec, Česká republika","demi sec","obsahuje siřičitany",0.75]
["L1394157",8594000941378,5105025,"Bohemia Sekt Prestige Chardonnay 0,75 l/ dárk","jakostní šumivé víno","xx",0.13,"Vyrobeno v České republice","Výrobce BOHEMIA SEKT,s.r.o. Smetanova 220, 332 02 Starý Plzenec, Česká republika","brut","obsahuje siřičitany",0.75]
["L1394170",8594000941156,5101800,"Bohemia Sekt Blanc de Noirs brut 0,75 l","jakostní šumivé víno","xx",0.115,"Vyrobeno v České republice","Výrobce BOHEMIA SEKT,s.r.o. Smetanova 220, 332 02 Starý Plzenec, Česká republika","brut","obsahuje siřičitany",0.75]
["L1394170",8594000941682,5100800,"Bohemia Sekt demi sec 3 l / dárk.","jakostní šumivé víno","xx",0.11,"Vyrobeno v České republice","Výrobce BOHEMIA SEKT,s.r.o. Smetanova 220, 332 02 Starý Plzenec, Česká republika","demi sec","obsahuje siřičitany",3]
["L14020",8006220303299,6733865,"Valdobbiadene D.O.CMO 0,75 l","šumivé víno","xx",0.11,"Vyrobeno v Itálii","Výrobce Mionetto Spa, Via Colderove 2, 310 49 Valdobiadene, Itálie","brut","obsahuje siřičitany",0.75]
["L14186",8006220001997,6743565,"Prosecco Extra Dry Prestige Spumanti 0,75l","šumivé víno","xx",0.11,"Vyrobeno v Itálii","Výrobce Mionetto Spa, Via Colderove 2, 310 49 Valdobiadene, Itálie","brut","obsahuje siřičitany",0.75]
["L14204",8006220303299,6733865,"Valdobbiadene D.O.CMO 0,75 l","šumivé víno","xx",0.11,"Vyrobeno v Itálii","Výrobce Mionetto Spa, Via Colderove 2, 310 49 Valdobiadene, Itálie","brut","obsahuje siřičitany",0.75]
["L142093030",8588000002412,5026100,"Hubert de Luxe 0,75 l","šumivé víno","xx",0,"Vyrobeno na Slovensku","Výrobce Hubert J.E, spol.s.r.o., Vinárska 137, 926 01 Sereď, Slovensko",null,"obsahuje siřičitany",0.75]
["L142093030",8588000002412,5026100,"Hubert de Luxe 0,75 l","šumivé víno","xx",0,"Vyrobeno na Slovensku","Výrobce Hubert J.E, spol.s.r.o., Vinárska 137, 926 01 Sereď, Slovensko",null,"obsahuje siřičitany",0.75]
["L148301027",8588000002238,5020200,"Hubert Club brut 0,75 l","šumivé víno","xx",0.12,"Vyrobeno na Slovensku","Výrobce Hubert J.E, spol.s.r.o., Vinárska 137, 926 01 Sereď, Slovensko","brut","obsahuje siřičitany",0.75]
["L148301027",8588000002238,5020200,"Hubert Club brut 0,75 l","šumivé víno","xx",0.12,"Vyrobeno na Slovensku","Výrobce Hubert J.E, spol.s.r.o., Vinárska 137, 926 01 Sereď, Slovensko","brut","obsahuje siřičitany",0.75]
["L164056",8594000941118,5101600,"Bohemia Sekt nealkoholický 0,75 l","nealkoholické šumivé víno bílé","xx",0,"Vyrobeno v Německu","Výrobce BOHEMIA SEKT,s.r.o. Smetanova 220, 332 02 Starý Plzenec, Česká republika","doux","obsahuje siřičitany",0.75]
[null,4003310272019,2720165,"Carstens bio 0,75l","sekt z hroznů z biologického pěstování","xx",0.11,"Vyrobeno v Německu","Výrobce Sektkellerei Carstens GMBH, Neustadt/Weinstrasse, Německo","brut","obsahuje siřičitany",0.75]
[null,4003310164543,1645465,"Henkell Blanc de Blancs 0,75 l","šumivé víno","xx",0.115,"Vyrobeno v Německu","Výrobce Henkell & Co. Sektkellerei KG, Wiesbaden, Německo","demi sec","obsahuje siřičitany",0.75]
[null,4003310152458,1524565,"Henkell Trocken 0,75 l","šumivé víno","xx",0.115,"Vyrobeno v Německu","Výrobce Henkell & Co. Sektkellerei KG, Wiesbaden, Německo","demi sec","obsahuje siřičitany",0.75]
["L1114112",4003310011632,1524624,"Henkell Trocken MQB 0,75 l-IC","šumivé víno","xx",0.115,"Vyrobeno v Německu","Výrobce Henkell & Co. Sektkellerei KG, Wiesbaden, Německo","demi sec","obsahuje siřičitany",0.75]
[null,8588000002269,5021100,"Hubert Club demi sec 0,75 l","šumivé víno","xx",0.115,"Vyrobeno na Slovensku","Výrobce Hubert J.E, spol.s.r.o., Vinárska 137, 926 01 Sereď, Slovensko","demi sec","obsahuje siřičitany",0.75]
[null,8588000002412,5026100,"Hubert de Luxe 0,75 l","šumivé víno","xx",0,"Vyrobeno na Slovensku","Výrobce Hubert J.E, spol.s.r.o., Vinárska 137, 926 01 Sereď, Slovensko",null,"obsahuje siřičitany",0.75]
[null,5905629087010,6733800,"Valdobbiadene D.O.CMO 0,75 l","šumivé víno","xx",0.11,"Vyrobeno v Itálii","Výrobce Mionetto Spa, Via Colderove 2, 310 49 Valdobiadene, Itálie","brut","obsahuje siřičitany",0.75]
["L1314231",8594000941088,5102000,"Bohemia Sekt brut 0,75 l","jakostní šumivé víno","xx",0.12,"Vyrobeno v České republice","Výrobce BOHEMIA SEKT,s.r.o. Smetanova 220, 332 02 Starý Plzenec, Česká republika","brut","obsahuje siřičitany",0.75,"2014-08-19T10:13:58","Branislav Gregorec"]
["L1314232",8594000941019,5100000,"Bohemia Sekt demi sec 0,75 l","jakostní šumivé víno","xx",0.11,"Vyrobeno v České republice","Výrobce BOHEMIA SEKT,s.r.o. Smetanova 220, 332 02 Starý Plzenec, Česká republika","demi sec","obsahuje siřičitany",0.75,"2014-08-20T08:46:33","Branislav Gregorec"]
["L1314233",8594000941019,5100000,"Bohemia Sekt demi sec 0,75 l","jakostní šumivé víno","xx",0.11,"Vyrobeno v České republice","Výrobce BOHEMIA SEKT,s.r.o. Smetanova 220, 332 02 Starý Plzenec, Česká republika","demi sec","obsahuje siřičitany",0.75,"2014-08-21T13:43:28","Branislav Gregorec"]
["L1314234",8594000941019,5100000,"Bohemia Sekt demi sec 0,75 l","jakostní šumivé víno","xx",0.11,"Vyrobeno v České republice","Výrobce BOHEMIA SEKT,s.r.o. Smetanova 220, 332 02 Starý Plzenec, Česká republika","demi sec","obsahuje siřičitany",0.75,"2014-08-25T06:52:13","Branislav Gregorec"]
["L1314237",8594000941019,5100000,"Bohemia Sekt demi sec 0,75 l","jakostní šumivé víno","xx",0.11,"Vyrobeno v České republice","Výrobce BOHEMIA SEKT,s.r.o. Smetanova 220, 332 02 Starý Plzenec, Česká republika","demi sec","obsahuje siřičitany",0.75,"2014-08-25T11:48:07","Branislav Gregorec"]
["L1314238",8594000941019,5100000,"Bohemia Sekt demi sec 0,75 l","jakostní šumivé víno","xx",0.11,"Vyrobeno v České republice","Výrobce BOHEMIA SEKT,s.r.o. Smetanova 220, 332 02 Starý Plzenec, Česká republika","demi sec","obsahuje siřičitany",0.75,"2014-08-26T10:00:45","Branislav Gregorec"]
["L1314239",8594000941040,5101000,"Bohemia Rose demi sec 0,75 l","jakostní šumivé víno","xx",0.11,"Vyrobeno v České republice","Výrobce BOHEMIA SEKT,s.r.o. Smetanova 220, 332 02 Starý Plzenec, Česká republika","demi sec","obsahuje siřičitany",0.75,"2014-08-27T13:08:21","Branislav Gregorec"]
["L1314240",8594000941200,5102700,"Bohemia Chardonnay brut 0,75 l","jakostní šumivé víno","xx",0.125,"Vyrobeno v České republice","Výrobce BOHEMIA SEKT,s.r.o. Smetanova 220, 332 02 Starý Plzenec, Česká republika","brut","obsahuje siřičitany",0.75,"2014-08-27T13:09:26","Branislav Gregorec"]
["L1314241",8594000941156,5101800,"Bohemia Sekt Blanc de Noirs brut 0,75 l","jakostní šumivé víno","xx",0.115,"Vyrobeno v České republice","Výrobce BOHEMIA SEKT,s.r.o. Smetanova 220, 332 02 Starý Plzenec, Česká republika","brut","obsahuje siřičitany",0.75,"2014-08-27T13:09:52","Branislav Gregorec"]
["L1314241",8594000941200,5102700,"Bohemia Chardonnay brut 0,75 l","jakostní šumivé víno","xx",0.125,"Vyrobeno v České republice","Výrobce BOHEMIA SEKT,s.r.o. Smetanova 220, 332 02 Starý Plzenec, Česká republika","brut","obsahuje siřičitany",0.75,"2014-08-29T09:26:12","Josef Švéda"]
["L1314007",8594000941019,5100000,"Bohemia Sekt demi sec 0,75 l","jakostní šumivé víno","xx",0.11,"Vyrobeno v České republice","Výrobce BOHEMIA SEKT,s.r.o. Smetanova 220, 332 02 Starý Plzenec, Česká republika","demi sec","obsahuje siřičitany",0.75,"2014-09-04T09:12:30","Branislav Gregorec"]
["L1314008",8594000941019,5100000,"Bohemia Sekt demi sec 0,75 l","jakostní šumivé víno","xx",0.11,"Vyrobeno v České republice","Výrobce BOHEMIA SEKT,s.r.o. Smetanova 220, 332 02 Starý Plzenec, Česká republika","demi sec","obsahuje siřičitany",0.75,"2014-09-04T09:13:13","Branislav Gregorec"]
["L1354008",8594002880408,5253000,"Poezie bílá 1NK -ČMV","víno","xx",0.1,"víno z Evropského společenství","Baleno v BOHEMIA SEKT,s.r.o. Smetanova 220, 332 02 Starý Plzenec, Česká republika","polosuché","obsahuje siřičitany",1,"2014-09-04T09:13:40","Branislav Gregorec"]
["L1314009",8594000941019,5100000,"Bohemia Sekt demi sec 0,75 l","jakostní šumivé víno","xx",0.11,"Vyrobeno v České republice","Výrobce BOHEMIA SEKT,s.r.o. Smetanova 220, 332 02 Starý Plzenec, Česká republika","demi sec","obsahuje siřičitany",0.75,"2014-09-04T09:13:56","Branislav Gregorec"]
["L1354009",8594002880415,5253100,"Poezie červená  1NK -ČMV","víno","xx",0.1,"víno z Evropského společenství","Baleno v BOHEMIA SEKT,s.r.o. Smetanova 220, 332 02 Starý Plzenec, Česká republika","polosuché","obsahuje siřičitany",1,"2014-09-04T09:14:14","Branislav Gregorec"]
["L1314010",8594000941019,5100000,"Bohemia Sekt demi sec 0,75 l","jakostní šumivé víno","xx",0.11,"Vyrobeno v České republice","Výrobce BOHEMIA SEKT,s.r.o. Smetanova 220, 332 02 Starý Plzenec, Česká republika","demi sec","obsahuje siřičitany",0.75,"2014-09-04T09:14:32","Branislav Gregorec"]
["L1314010",8594000941088,5102000,"Bohemia Sekt brut 0,75 l","jakostní šumivé víno","xx",0.12,"Vyrobeno v České republice","Výrobce BOHEMIA SEKT,s.r.o. Smetanova 220, 332 02 Starý Plzenec, Česká republika","brut","obsahuje siřičitany",0.75,"2014-09-04T09:14:51","Branislav Gregorec"]
["L1354010",8594002880415,5253100,"Poezie červená  1NK -ČMV","víno","xx",0.1,"víno z Evropského společenství","Baleno v BOHEMIA SEKT,s.r.o. Smetanova 220, 332 02 Starý Plzenec, Česká republika","polosuché","obsahuje siřičitany",1,"2014-09-04T09:15:08","Branislav Gregorec"]
["L1314013",8594000941040,5101000,"Bohemia Rose demi sec 0,75 l","jakostní šumivé víno","xx",0.11,"Vyrobeno v České republice","Výrobce BOHEMIA SEKT,s.r.o. Smetanova 220, 332 02 Starý Plzenec, Česká republika","demi sec","obsahuje siřičitany",0.75,"2014-09-04T09:15:33","Branislav Gregorec"]
["L1314014",8594000941040,5101000,"Bohemia Rose demi sec 0,75 l","jakostní šumivé víno","xx",0.11,"Vyrobeno v České republice","Výrobce BOHEMIA SEKT,s.r.o. Smetanova 220, 332 02 Starý Plzenec, Česká republika","demi sec","obsahuje siřičitany",0.75,"2014-09-04T09:15:55","Branislav Gregorec"]
["L1314015",8594000941316,5105000,"Bohemia Sekt Prestige Chardonnay 0,75 l","jakostní šumivé víno","xx",0.13,"Vyrobeno v České republice","Výrobce BOHEMIA SEKT,s.r.o. Smetanova 220, 332 02 Starý Plzenec, Česká republika","brut","obsahuje siřičitany",0.75,"2014-09-04T09:16:13","Branislav Gregorec"]
["L1314028",8594000941385,5102100,"Bohemia Sekt brut 0,375 l","jakostní šumivé víno","xx",0.12,"Vyrobeno v České republice","Výrobce BOHEMIA SEKT,s.r.o. Smetanova 220, 332 02 Starý Plzenec, Česká republika","brut","obsahuje siřičitany",0.375,"2014-09-04T09:16:40","Branislav Gregorec"]
["L1314029",8594000941385,5102100,"Bohemia Sekt brut 0,375 l","jakostní šumivé víno","xx",0.12,"Vyrobeno v České republice","Výrobce BOHEMIA SEKT,s.r.o. Smetanova 220, 332 02 Starý Plzenec, Česká republika","brut","obsahuje siřičitany",0.375,"2014-09-04T09:16:54","Branislav Gregorec"]
["L1314030",8594000941323,5100100,"Bohemia Sekt demi sec 0,375 l","jakostní šumivé víno","xx",0.11,"Vyrobeno v České republice","Výrobce BOHEMIA SEKT,s.r.o. Smetanova 220, 332 02 Starý Plzenec, Česká republika","demi sec","obsahuje siřičitany",0.375,"2014-09-04T09:17:13","Branislav Gregorec"]
["L1314034",8594000941323,5100100,"Bohemia Sekt demi sec 0,375 l","jakostní šumivé víno","xx",0.11,"Vyrobeno v České republice","Výrobce BOHEMIA SEKT,s.r.o. Smetanova 220, 332 02 Starý Plzenec, Česká republika","demi sec","obsahuje siřičitany",0.375,"2014-09-04T09:19:14","Branislav Gregorec"]
["L1324035",8594000941019,5100000,"Bohemia Sekt demi sec 0,75 l","jakostní šumivé víno","xx",0.11,"Vyrobeno v České republice","Výrobce BOHEMIA SEKT,s.r.o. Smetanova 220, 332 02 Starý Plzenec, Česká republika","demi sec","obsahuje siřičitany",0.75,"2014-09-04T09:19:30","Branislav Gregorec"]
["L1314036",8594000941019,5100000,"Bohemia Sekt demi sec 0,75 l","jakostní šumivé víno","xx",0.11,"Vyrobeno v České republice","Výrobce BOHEMIA SEKT,s.r.o. Smetanova 220, 332 02 Starý Plzenec, Česká republika","demi sec","obsahuje siřičitany",0.75,"2014-09-04T09:19:48","Branislav Gregorec"]
["L1314037",8594000941019,5100000,"Bohemia Sekt demi sec 0,75 l","jakostní šumivé víno","xx",0.11,"Vyrobeno v České republice","Výrobce BOHEMIA SEKT,s.r.o. Smetanova 220, 332 02 Starý Plzenec, Česká republika","demi sec","obsahuje siřičitany",0.75,"2014-09-04T09:20:12","Branislav Gregorec"]
["L1314041",8594000941019,5100000,"Bohemia Sekt demi sec 0,75 l","jakostní šumivé víno","xx",0.11,"Vyrobeno v České republice","Výrobce BOHEMIA SEKT,s.r.o. Smetanova 220, 332 02 Starý Plzenec, Česká republika","demi sec","obsahuje siřičitany",0.75,"2014-09-04T09:20:28","Branislav Gregorec"]
["L1314042",8594000941019,5100000,"Bohemia Sekt demi sec 0,75 l","jakostní šumivé víno","xx",0.11,"Vyrobeno v České republice","Výrobce BOHEMIA SEKT,s.r.o. Smetanova 220, 332 02 Starý Plzenec, Česká republika","demi sec","obsahuje siřičitany",0.75,"2014-09-04T09:20:44","Branislav Gregorec"]
["L1314043",8594000941019,5100000,"Bohemia Sekt demi sec 0,75 l","jakostní šumivé víno","xx",0.11,"Vyrobeno v České republice","Výrobce BOHEMIA SEKT,s.r.o. Smetanova 220, 332 02 Starý Plzenec, Česká republika","demi sec","obsahuje siřičitany",0.75,"2014-09-04T09:20:59","Branislav Gregorec"]
["L1324044",8594000941651,5100200,"Bohemia Sekt demi sec 0,2 l","jakostní šumivé víno","xx",0.11,"Vyrobeno v České republice","Výrobce BOHEMIA SEKT,s.r.o. Smetanova 220, 332 02 Starý Plzenec, Česká republika","demi sec","obsahuje siřičitany",0.2,"2014-09-04T09:21:22","Branislav Gregorec"]
["L1324048",8594000941651,5100200,"Bohemia Sekt demi sec 0,2 l","jakostní šumivé víno","xx",0.11,"Vyrobeno v České republice","Výrobce BOHEMIA SEKT,s.r.o. Smetanova 220, 332 02 Starý Plzenec, Česká republika","demi sec","obsahuje siřičitany",0.2,"2014-09-04T09:21:38","Branislav Gregorec"]
["L1324049",8594000941651,5100200,"Bohemia Sekt demi sec 0,2 l","jakostní šumivé víno","xx",0.11,"Vyrobeno v České republice","Výrobce BOHEMIA SEKT,s.r.o. Smetanova 220, 332 02 Starý Plzenec, Česká republika","demi sec","obsahuje siřičitany",0.2,"2014-09-04T09:21:52","Branislav Gregorec"]
["L1324050",8594000941651,5100200,"Bohemia Sekt demi sec 0,2 l","jakostní šumivé víno","xx",0.11,"Vyrobeno v České republice","Výrobce BOHEMIA SEKT,s.r.o. Smetanova 220, 332 02 Starý Plzenec, Česká republika","demi sec","obsahuje siřičitany",0.2,"2014-09-04T09:22:06","Branislav Gregorec"]
["L1324050",8594000941668,5102200,"Bohemia Sekt brut 0,2 l","jakostní šumivé víno","xx",0.12,"Vyrobeno v České republice","Výrobce BOHEMIA SEKT,s.r.o. Smetanova 220, 332 02 Starý Plzenec, Česká republika","brut","obsahuje siřičitany",0.2,"2014-09-04T09:22:24","Branislav Gregorec"]
["L1324051",8594000941668,5102200,"Bohemia Sekt brut 0,2 l","jakostní šumivé víno","xx",0.12,"Vyrobeno v České republice","Výrobce BOHEMIA SEKT,s.r.o. Smetanova 220, 332 02 Starý Plzenec, Česká republika","brut","obsahuje siřičitany",0.2,"2014-09-04T09:22:40","Branislav Gregorec"]
["L1314055",8594000941019,5100000,"Bohemia Sekt demi sec 0,75 l","jakostní šumivé víno","xx",0.11,"Vyrobeno v České republice","Výrobce BOHEMIA SEKT,s.r.o. Smetanova 220, 332 02 Starý Plzenec, Česká republika","demi sec","obsahuje siřičitany",0.75,"2014-09-04T09:22:56","Branislav Gregorec"]
["L1314062",8594000941316,5105000,"Bohemia Sekt Prestige Chardonnay 0,75 l","jakostní šumivé víno","xx",0.13,"Vyrobeno v České republice","Výrobce BOHEMIA SEKT,s.r.o. Smetanova 220, 332 02 Starý Plzenec, Česká republika","brut","obsahuje siřičitany",0.75,"2014-09-04T09:45:31","Branislav Gregorec"]
["L1314062",8594000941446,5104000,"Bohemia Sekt Prestige demi sec 0,75","jakostní šumivé víno","xx",0.125,"Vyrobeno v České republice","Výrobce BOHEMIA SEKT,s.r.o. Smetanova 220, 332 02 Starý Plzenec, Česká republika","demi sec","obsahuje siřičitany",0.75,"2014-09-04T09:46:05","Branislav Gregorec"]
["L1314063",8594000941460,5104145,"Bohemia Sekt Prest. brut 0,75 l / B Delh","jakostní šumivé víno","xx",0.13,"Vyrobeno v České republice","Výrobce BOHEMIA SEKT,s.r.o. Smetanova 220, 332 02 Starý Plzenec, Česká republika","brut","obsahuje siřičitany",0.75,"2014-09-04T09:46:34","Branislav Gregorec"]
["L1314063",8594000941460,5104100,"Bohemia Sekt Prestige brut 0,75 l","jakostní šumivé víno","xx",0.13,"Vyrobeno v České republice","Výrobce BOHEMIA SEKT,s.r.o. Smetanova 220, 332 02 Starý Plzenec, Česká republika","brut","obsahuje siřičitany",0.75,"2014-09-04T09:46:55","Branislav Gregorec"]
["L1314064",8594000941460,5104100,"Bohemia Sekt Prestige brut 0,75 l","jakostní šumivé víno","xx",0.13,"Vyrobeno v České republice","Výrobce BOHEMIA SEKT,s.r.o. Smetanova 220, 332 02 Starý Plzenec, Česká republika","brut","obsahuje siřičitany",0.75,"2014-09-04T09:47:14","Branislav Gregorec"]
["L1314065",8594000941248,5105100,"Chateau Radyně brut 0,75 l","jakostní šumivé víno","xx",0.13,"Vyrobeno v České republice","Výrobce BOHEMIA SEKT,s.r.o. Smetanova 220, 332 02 Starý Plzenec, Česká republika","brut","obsahuje siřičitany",0.75,"2014-09-04T09:47:34","Branislav Gregorec"]
["L1314065",8594000941491,5105800,"Louis Girardot  0,75 l","jakostní šumivé víno","xx",0.13,"Vyrobeno v České republice","Výrobce BOHEMIA SEKT,s.r.o. Smetanova 220, 332 02 Starý Plzenec, Česká republika","brut","obsahuje siřičitany",0.75,"2014-09-04T09:47:51","Branislav Gregorec"]
["L1314077",8594000941200,5102700,"Bohemia Chardonnay brut 0,75 l","jakostní šumivé víno","xx",0.125,"Vyrobeno v České republice","Výrobce BOHEMIA SEKT,s.r.o. Smetanova 220, 332 02 Starý Plzenec, Česká republika","brut","obsahuje siřičitany",0.75,"2014-09-04T09:48:17","Branislav Gregorec"]
["L1314077",8594000941279,5102725,"Bohemia Chardonnay brut 0,75 l / dárk.","jakostní šumivé víno","xx",0.125,"Vyrobeno v České republice","Výrobce BOHEMIA SEKT,s.r.o. Smetanova 220, 332 02 Starý Plzenec, Česká republika","brut","obsahuje siřičitany",0.75,"2014-09-04T09:48:35","Branislav Gregorec"]
["L1314078",8594000941200,5102700,"Bohemia Chardonnay brut 0,75 l","jakostní šumivé víno","xx",0.125,"Vyrobeno v České republice","Výrobce BOHEMIA SEKT,s.r.o. Smetanova 220, 332 02 Starý Plzenec, Česká republika","brut","obsahuje siřičitany",0.75,"2014-09-04T09:48:58","Branislav Gregorec"]
["L1314078",8594000941279,5102725,"Bohemia Chardonnay brut 0,75 l / dárk.","jakostní šumivé víno","xx",0.125,"Vyrobeno v České republice","Výrobce BOHEMIA SEKT,s.r.o. Smetanova 220, 332 02 Starý Plzenec, Česká republika","brut","obsahuje siřičitany",0.75,"2014-09-04T09:49:14","Branislav Gregorec"]
["L1314079",8594000941019,5100000,"Bohemia Sekt demi sec 0,75 l","jakostní šumivé víno","xx",0.11,"Vyrobeno v České republice","Výrobce BOHEMIA SEKT,s.r.o. Smetanova 220, 332 02 Starý Plzenec, Česká republika","demi sec","obsahuje siřičitany",0.75,"2014-09-04T09:49:32","Branislav Gregorec"]
["L1314083",8594000941019,5100000,"Bohemia Sekt demi sec 0,75 l","jakostní šumivé víno","xx",0.11,"Vyrobeno v České republice","Výrobce BOHEMIA SEKT,s.r.o. Smetanova 220, 332 02 Starý Plzenec, Česká republika","demi sec","obsahuje siřičitany",0.75,"2014-09-04T09:49:52","Branislav Gregorec"]
["L1314084",8594000941019,5100000,"Bohemia Sekt demi sec 0,75 l","jakostní šumivé víno","xx",0.11,"Vyrobeno v České republice","Výrobce BOHEMIA SEKT,s.r.o. Smetanova 220, 332 02 Starý Plzenec, Česká republika","demi sec","obsahuje siřičitany",0.75,"2014-09-04T09:50:09","Branislav Gregorec"]
["L1314085",8594000941019,5100000,"Bohemia Sekt demi sec 0,75 l","jakostní šumivé víno","xx",0.11,"Vyrobeno v České republice","Výrobce BOHEMIA SEKT,s.r.o. Smetanova 220, 332 02 Starý Plzenec, Česká republika","demi sec","obsahuje siřičitany",0.75,"2014-09-04T09:50:28","Branislav Gregorec"]
["L1314086",8594000941019,5100000,"Bohemia Sekt demi sec 0,75 l","jakostní šumivé víno","xx",0.11,"Vyrobeno v České republice","Výrobce BOHEMIA SEKT,s.r.o. Smetanova 220, 332 02 Starý Plzenec, Česká republika","demi sec","obsahuje siřičitany",0.75,"2014-09-04T09:50:44","Branislav Gregorec"]
["L1314090",8594000941019,5100000,"Bohemia Sekt demi sec 0,75 l","jakostní šumivé víno","xx",0.11,"Vyrobeno v České republice","Výrobce BOHEMIA SEKT,s.r.o. Smetanova 220, 332 02 Starý Plzenec, Česká republika","demi sec","obsahuje siřičitany",0.75,"2014-09-04T09:51:03","Branislav Gregorec"]
["L1314091",8594000941088,5102000,"Bohemia Sekt brut 0,75 l","jakostní šumivé víno","xx",0.12,"Vyrobeno v České republice","Výrobce BOHEMIA SEKT,s.r.o. Smetanova 220, 332 02 Starý Plzenec, Česká republika","brut","obsahuje siřičitany",0.75,"2014-09-04T09:54:44","Branislav Gregorec"]
["L1314092",8594000941088,5102000,"Bohemia Sekt brut 0,75 l","jakostní šumivé víno","xx",0.12,"Vyrobeno v České republice","Výrobce BOHEMIA SEKT,s.r.o. Smetanova 220, 332 02 Starý Plzenec, Česká republika","brut","obsahuje siřičitany",0.75,"2014-09-04T09:54:59","Branislav Gregorec"]
["L1314093",8594000941019,5100000,"Bohemia Sekt demi sec 0,75 l","jakostní šumivé víno","xx",0.11,"Vyrobeno v České republice","Výrobce BOHEMIA SEKT,s.r.o. Smetanova 220, 332 02 Starý Plzenec, Česká republika","demi sec","obsahuje siřičitany",0.75,"2014-09-04T09:55:14","Branislav Gregorec"]
["L1314097",8594000941019,5100000,"Bohemia Sekt demi sec 0,75 l","jakostní šumivé víno","xx",0.11,"Vyrobeno v České republice","Výrobce BOHEMIA SEKT,s.r.o. Smetanova 220, 332 02 Starý Plzenec, Česká republika","demi sec","obsahuje siřičitany",0.75,"2014-09-04T09:55:32","Branislav Gregorec"]
["L1314098",8594000941019,5100000,"Bohemia Sekt demi sec 0,75 l","jakostní šumivé víno","xx",0.11,"Vyrobeno v České republice","Výrobce BOHEMIA SEKT,s.r.o. Smetanova 220, 332 02 Starý Plzenec, Česká republika","demi sec","obsahuje siřičitany",0.75,"2014-09-04T09:55:55","Branislav Gregorec"]
["L1314099",8594000941019,5100000,"Bohemia Sekt demi sec 0,75 l","jakostní šumivé víno","xx",0.11,"Vyrobeno v České republice","Výrobce BOHEMIA SEKT,s.r.o. Smetanova 220, 332 02 Starý Plzenec, Česká republika","demi sec","obsahuje siřičitany",0.75,"2014-09-04T09:56:11","Branislav Gregorec"]
["L1324100",8594000941019,5100000,"Bohemia Sekt demi sec 0,75 l","jakostní šumivé víno","xx",0.11,"Vyrobeno v České republice","Výrobce BOHEMIA SEKT,s.r.o. Smetanova 220, 332 02 Starý Plzenec, Česká republika","demi sec","obsahuje siřičitany",0.75,"2014-09-04T09:56:29","Branislav Gregorec"]
["L1314104",8594000941019,5100000,"Bohemia Sekt demi sec 0,75 l","jakostní šumivé víno","xx",0.11,"Vyrobeno v České republice","Výrobce BOHEMIA SEKT,s.r.o. Smetanova 220, 332 02 Starý Plzenec, Česká republika","demi sec","obsahuje siřičitany",0.75,"2014-09-04T09:57:05","Branislav Gregorec"]
["L1314134",8594000941019,5100000,"Bohemia Sekt demi sec 0,75 l","jakostní šumivé víno","xx",0.11,"Vyrobeno v České republice","Výrobce BOHEMIA SEKT,s.r.o. Smetanova 220, 332 02 Starý Plzenec, Česká republika","demi sec","obsahuje siřičitany",0.75,"2014-09-04T09:58:36","Branislav Gregorec"]
["L1314134",8594000941040,5101000,"Bohemia Rose demi sec 0,75 l","jakostní šumivé víno","xx",0.11,"Vyrobeno v České republice","Výrobce BOHEMIA SEKT,s.r.o. Smetanova 220, 332 02 Starý Plzenec, Česká republika","demi sec","obsahuje siřičitany",0.75,"2014-09-04T09:58:56","Branislav Gregorec"]
["L1314135",8594000941019,5100000,"Bohemia Sekt demi sec 0,75 l","jakostní šumivé víno","xx",0.11,"Vyrobeno v České republice","Výrobce BOHEMIA SEKT,s.r.o. Smetanova 220, 332 02 Starý Plzenec, Česká republika","demi sec","obsahuje siřičitany",0.75,"2014-09-04T09:59:18","Branislav Gregorec"]
["L1314139",8594002881962,5108400,"Motýl sekt suchý 0,75 l","jakostní šumivé víno","xx",0.115,"Vyrobeno v České republice","Výrobce BOHEMIA SEKT,s.r.o. Smetanova 220, 332 02 Starý Plzenec, Česká republika","suchý","obsahuje siřičitany",0.75,"2014-09-04T09:59:46","Branislav Gregorec"]
["L1314139",8594002881924,5108000,"Motýl sekt-demi 0,75 l","jakostní šumivé víno","xx",0.11,"Vyrobeno v České republice","Výrobce BOHEMIA SEKT,s.r.o. Smetanova 220, 332 02 Starý Plzenec, Česká republika","demi sec","obsahuje siřičitany",0.75,"2014-09-04T10:00:09","Branislav Gregorec"]
["L1314140",8594002881948,5108200,"Motýl sekt rose demi 0,75 l","jakostní šumivé víno","xx",0.11,"Vyrobeno v České republice","Výrobce BOHEMIA SEKT,s.r.o. Smetanova 220, 332 02 Starý Plzenec, Česká republika","demi sec","obsahuje siřičitany",0.75,"2014-09-04T10:00:27","Branislav Gregorec"]
["L1314140",8594000941019,5100000,"Bohemia Sekt demi sec 0,75 l","jakostní šumivé víno","xx",0.11,"Vyrobeno v České republice","Výrobce BOHEMIA SEKT,s.r.o. Smetanova 220, 332 02 Starý Plzenec, Česká republika","demi sec","obsahuje siřičitany",0.75,"2014-09-04T10:00:45","Branislav Gregorec"]
["L1314141",8594000941019,5100000,"Bohemia Sekt demi sec 0,75 l","jakostní šumivé víno","xx",0.11,"Vyrobeno v České republice","Výrobce BOHEMIA SEKT,s.r.o. Smetanova 220, 332 02 Starý Plzenec, Česká republika","demi sec","obsahuje siřičitany",0.75,"2014-09-04T10:01:25","Branislav Gregorec"]
["L1314142",8594000941156,5101800,"Bohemia Sekt Blanc de Noirs brut 0,75 l","jakostní šumivé víno","xx",0.115,"Vyrobeno v České republice","Výrobce BOHEMIA SEKT,s.r.o. Smetanova 220, 332 02 Starý Plzenec, Česká republika","brut","obsahuje siřičitany",0.75,"2014-09-04T10:01:46","Branislav Gregorec"]
["L1314146",8594000941019,5100000,"Bohemia Sekt demi sec 0,75 l","jakostní šumivé víno","xx",0.11,"Vyrobeno v České republice","Výrobce BOHEMIA SEKT,s.r.o. Smetanova 220, 332 02 Starý Plzenec, Česká republika","demi sec","obsahuje siřičitany",0.75,"2014-09-04T10:02:02","Branislav Gregorec"]
["L1314147",8594000941019,5100000,"Bohemia Sekt demi sec 0,75 l","jakostní šumivé víno","xx",0.11,"Vyrobeno v České republice","Výrobce BOHEMIA SEKT,s.r.o. Smetanova 220, 332 02 Starý Plzenec, Česká republika","demi sec","obsahuje siřičitany",0.75,"2014-09-04T10:02:19","Branislav Gregorec"]
["L1314148",8594000941019,5100000,"Bohemia Sekt demi sec 0,75 l","jakostní šumivé víno","xx",0.11,"Vyrobeno v České republice","Výrobce BOHEMIA SEKT,s.r.o. Smetanova 220, 332 02 Starý Plzenec, Česká republika","demi sec","obsahuje siřičitany",0.75,"2014-09-04T10:02:42","Branislav Gregorec"]
["L1314149",8594000941019,5100000,"Bohemia Sekt demi sec 0,75 l","jakostní šumivé víno","xx",0.11,"Vyrobeno v České republice","Výrobce BOHEMIA SEKT,s.r.o. Smetanova 220, 332 02 Starý Plzenec, Česká republika","demi sec","obsahuje siřičitany",0.75,"2014-09-04T10:03:01","Branislav Gregorec"]
["L1314149",8594000941088,5102000,"Bohemia Sekt brut 0,75 l","jakostní šumivé víno","xx",0.12,"Vyrobeno v České republice","Výrobce BOHEMIA SEKT,s.r.o. Smetanova 220, 332 02 Starý Plzenec, Česká republika","brut","obsahuje siřičitany",0.75,"2014-09-04T10:03:46","Branislav Gregorec"]
["L1314150",8594000941088,5102000,"Bohemia Sekt brut 0,75 l","jakostní šumivé víno","xx",0.12,"Vyrobeno v České republice","Výrobce BOHEMIA SEKT,s.r.o. Smetanova 220, 332 02 Starý Plzenec, Česká republika","brut","obsahuje siřičitany",0.75,"2014-09-04T10:04:12","Branislav Gregorec"]
["L1314153",8594000941040,5101000,"Bohemia Rose demi sec 0,75 l","jakostní šumivé víno","xx",0.11,"Vyrobeno v České republice","Výrobce BOHEMIA SEKT,s.r.o. Smetanova 220, 332 02 Starý Plzenec, Česká republika","demi sec","obsahuje siřičitany",0.75,"2014-09-04T10:05:37","Branislav Gregorec"]
["L1314154",8594000941040,5101000,"Bohemia Rose demi sec 0,75 l","jakostní šumivé víno","xx",0.11,"Vyrobeno v České republice","Výrobce BOHEMIA SEKT,s.r.o. Smetanova 220, 332 02 Starý Plzenec, Česká republika","demi sec","obsahuje siřičitany",0.75,"2014-09-04T10:05:55","Branislav Gregorec"]
["L1314161",8594000941491,5105800,"Louis Girardot  0,75 l","jakostní šumivé víno","xx",0.13,"Vyrobeno v České republice","Výrobce BOHEMIA SEKT,s.r.o. Smetanova 220, 332 02 Starý Plzenec, Česká republika","brut","obsahuje siřičitany",0.75,"2014-09-04T10:06:23","Branislav Gregorec"]
["L1314161",8594044830768,5107000,"Chateau Bzenec brut  0,75 l","jakostní šumivé víno s.o.","14A1-13-2",0.125,"Sekt z České republiky","Výrobce BOHEMIA SEKT,s.r.o. Smetanova 220, 332 02 Starý Plzenec, Česká republika","brut","obsahuje siřičitany",0.75,"2014-09-04T10:06:41","Branislav Gregorec"]
["L1314161",8594000941309,5105500,"Chateau Belveder doux 0,75 l","jakostní šumivé víno","xx",0.125,"Vyrobeno v České republice","Výrobce BOHEMIA SEKT,s.r.o. Smetanova 220, 332 02 Starý Plzenec, Česká republika","doux","obsahuje siřičitany",0.75,"2014-09-04T10:06:56","Branislav Gregorec"]
["L1314162",8594000941248,5105100,"Chateau Radyně brut 0,75 l","jakostní šumivé víno","xx",0.13,"Vyrobeno v České republice","Výrobce BOHEMIA SEKT,s.r.o. Smetanova 220, 332 02 Starý Plzenec, Česká republika","brut","obsahuje siřičitany",0.75,"2014-09-04T10:07:11","Branislav Gregorec"]
["L1314163",8594000941446,5104000,"Bohemia Sekt Prestige demi sec 0,75","jakostní šumivé víno","xx",0.125,"Vyrobeno v České republice","Výrobce BOHEMIA SEKT,s.r.o. Smetanova 220, 332 02 Starý Plzenec, Česká republika","demi sec","obsahuje siřičitany",0.75,"2014-09-04T10:07:28","Branislav Gregorec"]
["L1314163",8594000941460,5104100,"Bohemia Sekt Prestige brut 0,75 l","jakostní šumivé víno","xx",0.13,"Vyrobeno v České republice","Výrobce BOHEMIA SEKT,s.r.o. Smetanova 220, 332 02 Starý Plzenec, Česká republika","brut","obsahuje siřičitany",0.75,"2014-09-04T10:07:43","Branislav Gregorec"]
["L1314167",8594000941460,5104145,"Bohemia Sekt Prest. brut 0,75 l / B Delh","jakostní šumivé víno","xx",0.13,"Vyrobeno v České republice","Výrobce BOHEMIA SEKT,s.r.o. Smetanova 220, 332 02 Starý Plzenec, Česká republika","brut","obsahuje siřičitany",0.75,"2014-09-04T10:08:00","Branislav Gregorec"]
["L1314167",8594000941460,5104100,"Bohemia Sekt Prestige brut 0,75 l","jakostní šumivé víno","xx",0.13,"Vyrobeno v České republice","Výrobce BOHEMIA SEKT,s.r.o. Smetanova 220, 332 02 Starý Plzenec, Česká republika","brut","obsahuje siřičitany",0.75,"2014-09-04T10:08:15","Branislav Gregorec"]
["L1314168",8594000941316,5105000,"Bohemia Sekt Prestige Chardonnay 0,75 l","jakostní šumivé víno","xx",0.13,"Vyrobeno v České republice","Výrobce BOHEMIA SEKT,s.r.o. Smetanova 220, 332 02 Starý Plzenec, Česká republika","brut","obsahuje siřičitany",0.75,"2014-09-04T10:08:39","Branislav Gregorec"]
["L1354176",8594002880408,5253000,"Poezie bílá 1NK -ČMV","víno","xx",0.1,"víno z Evropského společenství","Baleno v BOHEMIA SEKT,s.r.o. Smetanova 220, 332 02 Starý Plzenec, Česká republika","polosuché","obsahuje siřičitany",1,"2014-09-04T10:09:06","Branislav Gregorec"]
["L1324195",8594000941651,5100200,"Bohemia Sekt demi sec 0,2 l","jakostní šumivé víno","xx",0.11,"Vyrobeno v České republice","Výrobce BOHEMIA SEKT,s.r.o. Smetanova 220, 332 02 Starý Plzenec, Česká republika","demi sec","obsahuje siřičitany",0.2,"2014-09-04T10:10:39","Branislav Gregorec"]
["L1324196",8594000941651,5100200,"Bohemia Sekt demi sec 0,2 l","jakostní šumivé víno","xx",0.11,"Vyrobeno v České republice","Výrobce BOHEMIA SEKT,s.r.o. Smetanova 220, 332 02 Starý Plzenec, Česká republika","demi sec","obsahuje siřičitany",0.2,"2014-09-04T10:10:58","Branislav Gregorec"]
["L1314197",8594000941651,5100200,"Bohemia Sekt demi sec 0,2 l","jakostní šumivé víno","xx",0.11,"Vyrobeno v České republice","Výrobce BOHEMIA SEKT,s.r.o. Smetanova 220, 332 02 Starý Plzenec, Česká republika","demi sec","obsahuje siřičitany",0.2,"2014-09-04T10:11:14","Branislav Gregorec"]
["L1324198",8594000941651,5100200,"Bohemia Sekt demi sec 0,2 l","jakostní šumivé víno","xx",0.11,"Vyrobeno v České republice","Výrobce BOHEMIA SEKT,s.r.o. Smetanova 220, 332 02 Starý Plzenec, Česká republika","demi sec","obsahuje siřičitany",0.2,"2014-09-04T10:11:32","Branislav Gregorec"]
["L1324202",8594000941651,5100200,"Bohemia Sekt demi sec 0,2 l","jakostní šumivé víno","xx",0.11,"Vyrobeno v České republice","Výrobce BOHEMIA SEKT,s.r.o. Smetanova 220, 332 02 Starý Plzenec, Česká republika","demi sec","obsahuje siřičitany",0.2,"2014-09-04T10:11:48","Branislav Gregorec"]
["L1324202",8594000941668,5102200,"Bohemia Sekt brut 0,2 l","jakostní šumivé víno","xx",0.12,"Vyrobeno v České republice","Výrobce BOHEMIA SEKT,s.r.o. Smetanova 220, 332 02 Starý Plzenec, Česká republika","brut","obsahuje siřičitany",0.2,"2014-09-04T10:12:07","Branislav Gregorec"]
["L1324203",8594000941668,5102200,"Bohemia Sekt brut 0,2 l","jakostní šumivé víno","xx",0.12,"Vyrobeno v České republice","Výrobce BOHEMIA SEKT,s.r.o. Smetanova 220, 332 02 Starý Plzenec, Česká republika","brut","obsahuje siřičitany",0.2,"2014-09-04T10:12:24","Branislav Gregorec"]
["L1324204",8594000941583,5100300,"Bohemia Sekt demi sec 1,5 l","jakostní šumivé víno","xx",0.11,"Vyrobeno v České republice","Výrobce BOHEMIA SEKT,s.r.o. Smetanova 220, 332 02 Starý Plzenec, Česká republika","demi sec","obsahuje siřičitany",1.5,"2014-09-04T10:12:47","Branislav Gregorec"]
["L1324205",8594000941583,5100300,"Bohemia Sekt demi sec 1,5 l","jakostní šumivé víno","xx",0.11,"Vyrobeno v České republice","Výrobce BOHEMIA SEKT,s.r.o. Smetanova 220, 332 02 Starý Plzenec, Česká republika","demi sec","obsahuje siřičitany",1.5,"2014-09-04T10:13:06","Branislav Gregorec"]
["L1324209",8594000941583,5100300,"Bohemia Sekt demi sec 1,5 l","jakostní šumivé víno","xx",0.11,"Vyrobeno v České republice","Výrobce BOHEMIA SEKT,s.r.o. Smetanova 220, 332 02 Starý Plzenec, Česká republika","demi sec","obsahuje siřičitany",1.5,"2014-09-04T10:13:21","Branislav Gregorec"]
["L1324210",8594000941583,5100300,"Bohemia Sekt demi sec 1,5 l","jakostní šumivé víno","xx",0.11,"Vyrobeno v České republice","Výrobce BOHEMIA SEKT,s.r.o. Smetanova 220, 332 02 Starý Plzenec, Česká republika","demi sec","obsahuje siřičitany",1.5,"2014-09-04T10:13:39","Branislav Gregorec"]
["L1324210",8594000941590,5102300,"Bohemia Sekt brut 1,5 l","jakostní šumivé víno","xx",0.12,"Vyrobeno v České republice","Výrobce BOHEMIA SEKT,s.r.o. Smetanova 220, 332 02 Starý Plzenec, Česká republika","brut","obsahuje siřičitany",1.5,"2014-09-04T10:13:55","Branislav Gregorec"]
["L1324211",8594000941590,5102300,"Bohemia Sekt brut 1,5 l","jakostní šumivé víno","xx",0.12,"Vyrobeno v České republice","Výrobce BOHEMIA SEKT,s.r.o. Smetanova 220, 332 02 Starý Plzenec, Česká republika","brut","obsahuje siřičitany",1.5,"2014-09-04T10:14:11","Branislav Gregorec"]
["L1314211",8594000941385,5102100,"Bohemia Sekt brut 0,375 l","jakostní šumivé víno","xx",0.12,"Vyrobeno v České republice","Výrobce BOHEMIA SEKT,s.r.o. Smetanova 220, 332 02 Starý Plzenec, Česká republika","brut","obsahuje siřičitany",0.375,"2014-09-04T10:14:29","Branislav Gregorec"]
["L1314212",8594000941385,5102100,"Bohemia Sekt brut 0,375 l","jakostní šumivé víno","xx",0.12,"Vyrobeno v České republice","Výrobce BOHEMIA SEKT,s.r.o. Smetanova 220, 332 02 Starý Plzenec, Česká republika","brut","obsahuje siřičitany",0.375,"2014-09-04T10:14:47","Branislav Gregorec"]
["L1314213",8594000941323,5100100,"Bohemia Sekt demi sec 0,375 l","jakostní šumivé víno","xx",0.11,"Vyrobeno v České republice","Výrobce BOHEMIA SEKT,s.r.o. Smetanova 220, 332 02 Starý Plzenec, Česká republika","demi sec","obsahuje siřičitany",0.375,"2014-09-04T10:17:05","Branislav Gregorec"]
["L1314218",8594000941019,5100000,"Bohemia Sekt demi sec 0,75 l","jakostní šumivé víno","xx",0.11,"Vyrobeno v České republice","Výrobce BOHEMIA SEKT,s.r.o. Smetanova 220, 332 02 Starý Plzenec, Česká republika","demi sec","obsahuje siřičitany",0.75,"2014-09-04T10:17:24","Branislav Gregorec"]
["L1314219",8594000941019,5100000,"Bohemia Sekt demi sec 0,75 l","jakostní šumivé víno","xx",0.11,"Vyrobeno v České republice","Výrobce BOHEMIA SEKT,s.r.o. Smetanova 220, 332 02 Starý Plzenec, Česká republika","demi sec","obsahuje siřičitany",0.75,"2014-09-04T10:17:39","Branislav Gregorec"]
["L1314224",8594000941040,5101000,"Bohemia Rose demi sec 0,75 l","jakostní šumivé víno","xx",0.11,"Vyrobeno v České republice","Výrobce BOHEMIA SEKT,s.r.o. Smetanova 220, 332 02 Starý Plzenec, Česká republika","demi sec","obsahuje siřičitany",0.75,"2014-09-04T10:18:00","Branislav Gregorec"]
["L1314225",8594000941217,5102500,"Bohemia Sekt červ. 0,75 l","jakostní šumivé víno","xx",0.125,"Vyrobeno v České republice","Výrobce BOHEMIA SEKT,s.r.o. Smetanova 220, 332 02 Starý Plzenec, Česká republika","demi sec","obsahuje siřičitany",0.75,"2014-09-04T10:18:19","Branislav Gregorec"]
["L1314225",8594000941019,5100000,"Bohemia Sekt demi sec 0,75 l","jakostní šumivé víno","xx",0.11,"Vyrobeno v České republice","Výrobce BOHEMIA SEKT,s.r.o. Smetanova 220, 332 02 Starý Plzenec, Česká republika","demi sec","obsahuje siřičitany",0.75,"2014-09-04T10:18:37","Branislav Gregorec"]
["L1314230",8594000941088,5102000,"Bohemia Sekt brut 0,75 l","jakostní šumivé víno","xx",0.12,"Vyrobeno v České republice","Výrobce BOHEMIA SEKT,s.r.o. Smetanova 220, 332 02 Starý Plzenec, Česká republika","brut","obsahuje siřičitany",0.75,"2014-09-04T10:18:57","Branislav Gregorec"]
["L1354232",8594002880408,5253000,"Poezie bílá 1NK -ČMV","víno","xx",0.1,"víno z Evropského společenství","Baleno v BOHEMIA SEKT,s.r.o. Smetanova 220, 332 02 Starý Plzenec, Česká republika","polosuché","obsahuje siřičitany",1,"2014-09-04T10:20:38","Branislav Gregorec"]
["L1354232",8594002880415,5253100,"Poezie červená  1NK -ČMV","víno","xx",0.1,"víno z Evropského společenství","Baleno v BOHEMIA SEKT,s.r.o. Smetanova 220, 332 02 Starý Plzenec, Česká republika","polosuché","obsahuje siřičitany",1,"2014-09-04T10:20:54","Branislav Gregorec"]
["L14211",8006220001997,6743565,"Prosecco Extra Dry Prestige Spumanti 0,75l","šumivé víno","xx",0.11,"Vyrobeno v Itálii","Výrobce Mionetto Spa, Via Colderove 2, 310 49 Valdobiadene, Itálie","brut","obsahuje siřičitany",0.75,"2014-09-04T10:22:32","Branislav Gregorec"]
["L1314251",8594000941064,5101500,"Bohemia Sekt rosé brut 0,75","jakostní šumivé víno","xx",0.115,"Vyrobeno v České republice","Výrobce BOHEMIA SEKT,s.r.o. Smetanova 220, 332 02 Starý Plzenec, Česká republika","brut","obsahuje siřičitany",0.75,"2014-09-10T11:00:26","Branislav Gregorec"]
["L1314252",8594000941019,5100000,"Bohemia Sekt demi sec 0,75 l","jakostní šumivé víno","xx",0.11,"Vyrobeno v České republice","Výrobce BOHEMIA SEKT,s.r.o. Smetanova 220, 332 02 Starý Plzenec, Česká republika","demi sec","obsahuje siřičitany",0.75,"2014-09-10T11:01:31","Branislav Gregorec"]
["L1314253",8594000941019,5100000,"Bohemia Sekt demi sec 0,75 l","jakostní šumivé víno","xx",0.11,"Vyrobeno v České republice","Výrobce BOHEMIA SEKT,s.r.o. Smetanova 220, 332 02 Starý Plzenec, Česká republika","demi sec","obsahuje siřičitany",0.75,"2014-09-10T11:02:07","Branislav Gregorec"]
["L1314254",8594000941019,5100000,"Bohemia Sekt demi sec 0,75 l","jakostní šumivé víno","xx",0.11,"Vyrobeno v České republice","Výrobce BOHEMIA SEKT,s.r.o. Smetanova 220, 332 02 Starý Plzenec, Česká republika","demi sec","obsahuje siřičitany",0.75,"2014-09-12T10:16:18","Branislav Gregorec"]
["L1314255",8594000941019,5100000,"Bohemia Sekt demi sec 0,75 l","jakostní šumivé víno","xx",0.11,"Vyrobeno v České republice","Výrobce BOHEMIA SEKT,s.r.o. Smetanova 220, 332 02 Starý Plzenec, Česká republika","demi sec","obsahuje siřičitany",0.75,"2014-09-12T10:16:43","Branislav Gregorec"]
["L1314258",8594000941019,5100000,"Bohemia Sekt demi sec 0,75 l","jakostní šumivé víno","xx",0.11,"Vyrobeno v České republice","Výrobce BOHEMIA SEKT,s.r.o. Smetanova 220, 332 02 Starý Plzenec, Česká republika","demi sec","obsahuje siřičitany",0.75,"2014-09-16T09:42:24","Branislav Gregorec"]
["L1314259",8594000941019,5100000,"Bohemia Sekt demi sec 0,75 l","jakostní šumivé víno","xx",0.11,"Vyrobeno v České republice","Výrobce BOHEMIA SEKT,s.r.o. Smetanova 220, 332 02 Starý Plzenec, Česká republika","demi sec","obsahuje siřičitany",0.75,"2014-09-16T09:43:39","Branislav Gregorec"]
["L1314260",8594000941019,5100000,"Bohemia Sekt demi sec 0,75 l","jakostní šumivé víno","xx",0.11,"Vyrobeno v České republice","Výrobce BOHEMIA SEKT,s.r.o. Smetanova 220, 332 02 Starý Plzenec, Česká republika","demi sec","obsahuje siřičitany",0.75,"2014-09-18T10:43:18","Branislav Gregorec"]
["L1314261",8594000941019,5100000,"Bohemia Sekt demi sec 0,75 l","jakostní šumivé víno","xx",0.11,"Vyrobeno v České republice","Výrobce BOHEMIA SEKT,s.r.o. Smetanova 220, 332 02 Starý Plzenec, Česká republika","demi sec","obsahuje siřičitany",0.75,"2014-09-18T10:43:46","Branislav Gregorec"]
["L1314262",8594000941019,5100000,"Bohemia Sekt demi sec 0,75 l","jakostní šumivé víno","xx",0.11,"Vyrobeno v České republice","Výrobce BOHEMIA SEKT,s.r.o. Smetanova 220, 332 02 Starý Plzenec, Česká republika","demi sec","obsahuje siřičitany",0.75,"2014-09-19T11:43:48","Branislav Gregorec"]
["L1314262",8594000941088,5102000,"Bohemia Sekt brut 0,75 l","jakostní šumivé víno","xx",0.12,"Vyrobeno v České republice","Výrobce BOHEMIA SEKT,s.r.o. Smetanova 220, 332 02 Starý Plzenec, Česká republika","brut","obsahuje siřičitany",0.75,"2014-09-19T11:44:24","Branislav Gregorec"]
["L1394261",8594000941682,5100800,"Bohemia Sekt demi sec 3 l / dárk.","jakostní šumivé víno","xx",0.11,"Vyrobeno v České republice","Výrobce BOHEMIA SEKT,s.r.o. Smetanova 220, 332 02 Starý Plzenec, Česká republika","demi sec","obsahuje siřičitany",3,"2014-09-19T11:44:45","Branislav Gregorec"]
["L1314265",8594000941088,5102000,"Bohemia Sekt brut 0,75 l","jakostní šumivé víno","xx",0.12,"Vyrobeno v České republice","Výrobce BOHEMIA SEKT,s.r.o. Smetanova 220, 332 02 Starý Plzenec, Česká republika","brut","obsahuje siřičitany",0.75,"2014-09-22T08:51:52","Branislav Gregorec"]
["L14252",8006220001997,6743565,"Prosecco Extra Dry Prestige Spumanti 0,75l","šumivé víno","xx",0.11,"Vyrobeno v Itálii","Výrobce Mionetto Spa, Via Colderove 2, 310 49 Valdobiadene, Itálie","brut","obsahuje siřičitany",0.75,"2014-09-22T08:53:20","Branislav Gregorec"]
["L1314266",8594000941088,5102000,"Bohemia Sekt brut 0,75 l","jakostní šumivé víno","xx",0.12,"Vyrobeno v České republice","Výrobce BOHEMIA SEKT,s.r.o. Smetanova 220, 332 02 Starý Plzenec, Česká republika","brut","obsahuje siřičitany",0.75,"2014-09-23T07:46:44","Branislav Gregorec"]
["L1314266",8594000941101,5102600,"Bohemia Sekt sec 0,75 l","jakostní šumivé víno","xx",0.11,"Vyrobeno v České republice","Výrobce BOHEMIA SEKT,s.r.o. Smetanova 220, 332 02 Starý Plzenec, Česká republika","sec","obsahuje siřičitany",0.75,"2014-09-23T07:47:36","Branislav Gregorec"]
["L1314267",8594000941538,5104300,"Bohemia Sekt Prestige rosé brut 0,75 l","jakostní šumivé víno","xx",0.125,"Vyrobeno v České republice","Výrobce BOHEMIA SEKT,s.r.o. Smetanova 220, 332 02 Starý Plzenec, Česká republika","brut","obsahuje siřičitany",0.75,"2014-09-25T07:16:44","Branislav Gregorec"]
["L1314267",8594000941446,5104000,"Bohemia Sekt Prestige demi sec 0,75","jakostní šumivé víno","xx",0.125,"Vyrobeno v České republice","Výrobce BOHEMIA SEKT,s.r.o. Smetanova 220, 332 02 Starý Plzenec, Česká republika","demi sec","obsahuje siřičitany",0.75,"2014-09-25T07:17:13","Branislav Gregorec"]
["L1314268",8594000941316,5105000,"Bohemia Sekt Prestige Chardonnay 0,75 l","jakostní šumivé víno","xx",0.13,"Vyrobeno v České republice","Výrobce BOHEMIA SEKT,s.r.o. Smetanova 220, 332 02 Starý Plzenec, Česká republika","brut","obsahuje siřičitany",0.75,"2014-09-25T07:17:47","Branislav Gregorec"]
["L1314268",8594000941460,5104145,"Bohemia Sekt Prest. brut 0,75 l / B Delh","jakostní šumivé víno","xx",0.13,"Vyrobeno v České republice","Výrobce BOHEMIA SEKT,s.r.o. Smetanova 220, 332 02 Starý Plzenec, Česká republika","brut","obsahuje siřičitany",0.75,"2014-09-26T09:34:56","Branislav Gregorec"]
["L1314268",8594000941460,5104245,"Bohemia Sekt Prest. brut 0,75 l / B Cors","jakostní šumivé víno","xx",0.13,"Vyrobeno v České republice","Výrobce BOHEMIA SEKT,s.r.o. Smetanova 220, 332 02 Starý Plzenec, Česká republika","brut","obsahuje siřičitany",0.75,"2014-09-26T09:35:24","Branislav Gregorec"]
["L1314268",8594000941460,5104100,"Bohemia Sekt Prestige brut 0,75 l","jakostní šumivé víno","xx",0.13,"Vyrobeno v České republice","Výrobce BOHEMIA SEKT,s.r.o. Smetanova 220, 332 02 Starý Plzenec, Česká republika","brut","obsahuje siřičitany",0.75,"2014-09-26T09:35:45","Branislav Gregorec"]
["L1314269",8594000941460,5104100,"Bohemia Sekt Prestige brut 0,75 l","jakostní šumivé víno","xx",0.13,"Vyrobeno v České republice","Výrobce BOHEMIA SEKT,s.r.o. Smetanova 220, 332 02 Starý Plzenec, Česká republika","brut","obsahuje siřičitany",0.75,"2014-09-26T09:36:11","Branislav Gregorec"]
["L1314269",8594000941491,5105800,"Louis Girardot  0,75 l","jakostní šumivé víno","xx",0.13,"Vyrobeno v České republice","Výrobce BOHEMIA SEKT,s.r.o. Smetanova 220, 332 02 Starý Plzenec, Česká republika","brut","obsahuje siřičitany",0.75,"2014-09-29T10:00:06","Branislav Gregorec"]
["L1314227",8594000941538,5104300,"Bohemia Sekt Prestige rosé brut 0,75 l","jakostní šumivé víno","xx",0.125,"Vyrobeno v České republice","Výrobce BOHEMIA SEKT,s.r.o. Smetanova 220, 332 02 Starý Plzenec, Česká republika","brut","obsahuje siřičitany",0.75,"2014-09-29T10:02:22","Branislav Gregorec"]
["L1314063",8594000941446,5104000,"Bohemia Sekt Prestige demi sec 0,75","jakostní šumivé víno","xx",0.125,"Vyrobeno v České republice","Výrobce BOHEMIA SEKT,s.r.o. Smetanova 220, 332 02 Starý Plzenec, Česká republika","demi sec","obsahuje siřičitany",0.75,"2014-09-29T10:02:58","Branislav Gregorec"]
["L1314163",8594000941446,5104000,"Bohemia Sekt Prestige demi sec 0,75","jakostní šumivé víno","xx",0.125,"Vyrobeno v České republice","Výrobce BOHEMIA SEKT,s.r.o. Smetanova 220, 332 02 Starý Plzenec, Česká republika","demi sec","obsahuje siřičitany",0.75,"2014-09-29T10:03:22","Branislav Gregorec"]
["L1314168",8594000941316,5105000,"Bohemia Sekt Prestige Chardonnay 0,75 l","jakostní šumivé víno","xx",0.13,"Vyrobeno v České republice","Výrobce BOHEMIA SEKT,s.r.o. Smetanova 220, 332 02 Starý Plzenec, Česká republika","brut","obsahuje siřičitany",0.75,"2014-09-29T10:03:51","Branislav Gregorec"]
["L1314064",8594000941460,5104100,"Bohemia Sekt Prestige brut 0,75 l","jakostní šumivé víno","xx",0.13,"Vyrobeno v České republice","Výrobce BOHEMIA SEKT,s.r.o. Smetanova 220, 332 02 Starý Plzenec, Česká republika","brut","obsahuje siřičitany",0.75,"2014-09-29T10:04:23","Branislav Gregorec"]
["L1314163",8594000941460,5104100,"Bohemia Sekt Prestige brut 0,75 l","jakostní šumivé víno","xx",0.13,"Vyrobeno v České republice","Výrobce BOHEMIA SEKT,s.r.o. Smetanova 220, 332 02 Starý Plzenec, Česká republika","brut","obsahuje siřičitany",0.75,"2014-09-29T10:04:44","Branislav Gregorec"]
["L1314227",8594000941460,5104100,"Bohemia Sekt Prestige brut 0,75 l","jakostní šumivé víno","xx",0.13,"Vyrobeno v České republice","Výrobce BOHEMIA SEKT,s.r.o. Smetanova 220, 332 02 Starý Plzenec, Česká republika","brut","obsahuje siřičitany",0.75,"2014-09-29T10:05:07","Branislav Gregorec"]
["L1314065",8594000941491,5105800,"Louis Girardot  0,75 l","jakostní šumivé víno","xx",0.13,"Vyrobeno v České republice","Výrobce BOHEMIA SEKT,s.r.o. Smetanova 220, 332 02 Starý Plzenec, Česká republika","brut","obsahuje siřičitany",0.75,"2014-09-29T10:06:27","Branislav Gregorec"]
["L1314161",8594000941491,5105800,"Louis Girardot  0,75 l","jakostní šumivé víno","xx",0.13,"Vyrobeno v České republice","Výrobce BOHEMIA SEKT,s.r.o. Smetanova 220, 332 02 Starý Plzenec, Česká republika","brut","obsahuje siřičitany",0.75,"2014-09-29T10:07:02","Branislav Gregorec"]
["L1314065",8594000941248,5105100,"Chateau Radyně brut 0,75 l","jakostní šumivé víno","xx",0.13,"Vyrobeno v České republice","Výrobce BOHEMIA SEKT,s.r.o. Smetanova 220, 332 02 Starý Plzenec, Česká republika","brut","obsahuje siřičitany",0.75,"2014-09-29T10:07:40","Branislav Gregorec"]
["L1314162",8594000941248,5105100,"Chateau Radyně brut 0,75 l","jakostní šumivé víno","xx",0.13,"Vyrobeno v České republice","Výrobce BOHEMIA SEKT,s.r.o. Smetanova 220, 332 02 Starý Plzenec, Česká republika","brut","obsahuje siřičitany",0.75,"2014-09-29T10:08:04","Branislav Gregorec"]
["L1313315",8594044830768,5107000,"Chateau Bzenec brut  0,75 l","jakostní šumivé víno s.o.","14A1-13-2",0.125,"Sekt z České republiky","Výrobce BOHEMIA SEKT,s.r.o. Smetanova 220, 332 02 Starý Plzenec, Česká republika","brut","obsahuje siřičitany",0.75,"2014-09-29T10:08:27","Branislav Gregorec"]
["L1314272",8594000941323,5100100,"Bohemia Sekt demi sec 0,375 l","jakostní šumivé víno","xx",0.11,"Vyrobeno v České republice","Výrobce BOHEMIA SEKT,s.r.o. Smetanova 220, 332 02 Starý Plzenec, Česká republika","demi sec","obsahuje siřičitany",0.375,"2014-09-29T10:09:05","Branislav Gregorec"]
["L1314273",8594000941323,5100100,"Bohemia Sekt demi sec 0,375 l","jakostní šumivé víno","xx",0.11,"Vyrobeno v České republice","Výrobce BOHEMIA SEKT,s.r.o. Smetanova 220, 332 02 Starý Plzenec, Česká republika","demi sec","obsahuje siřičitany",0.375,"2014-09-30T14:59:03","Branislav Gregorec"]
["L1314273",8594000941354,5101100,"Bohemia Rose demi sec 0,375 l","jakostní šumivé víno","xx",0.11,"Vyrobeno v České republice","Výrobce BOHEMIA SEKT,s.r.o. Smetanova 220, 332 02 Starý Plzenec, Česká republika","demi sec","obsahuje siřičitany",0.375,"2014-09-30T14:59:25","Branislav Gregorec"]
["L1314280",8594002881924,5108000,"Motýl sekt-demi 0,75 l","jakostní šumivé víno","xx",0.11,"Vyrobeno v České republice","Výrobce BOHEMIA SEKT,s.r.o. Smetanova 220, 332 02 Starý Plzenec, Česká republika","demi sec","obsahuje siřičitany",0.75,"2014-10-08T07:19:11","Branislav Gregorec"]
["L1314281",8594000941088,5102000,"Bohemia Sekt brut 0,75 l","jakostní šumivé víno","xx",0.12,"Vyrobeno v České republice","Výrobce BOHEMIA SEKT,s.r.o. Smetanova 220, 332 02 Starý Plzenec, Česká republika","brut","obsahuje siřičitany",0.75,"2014-10-08T07:19:39","Branislav Gregorec"]
["L1314280",8594000941088,5102000,"Bohemia Sekt brut 0,75 l","jakostní šumivé víno","xx",0.12,"Vyrobeno v České republice","Výrobce BOHEMIA SEKT,s.r.o. Smetanova 220, 332 02 Starý Plzenec, Česká republika","brut","obsahuje siřičitany",0.75,"2014-10-08T07:19:57","Branislav Gregorec"]
["L1314282",8594000941200,5102700,"Bohemia Chardonnay brut 0,75 l","jakostní šumivé víno","xx",0.125,"Vyrobeno v České republice","Výrobce BOHEMIA SEKT,s.r.o. Smetanova 220, 332 02 Starý Plzenec, Česká republika","brut","obsahuje siřičitany",0.75,"2014-10-09T14:27:22","Branislav Gregorec"]
["L1314282",8594000941279,5102725,"Bohemia Chardonnay brut 0,75 l / dárk.","jakostní šumivé víno","xx",0.125,"Vyrobeno v České republice","Výrobce BOHEMIA SEKT,s.r.o. Smetanova 220, 332 02 Starý Plzenec, Česká republika","brut","obsahuje siřičitany",0.75,"2014-10-09T14:27:38","Branislav Gregorec"]
["L1314283",8594000941156,5101800,"Bohemia Sekt Blanc de Noirs brut 0,75 l","jakostní šumivé víno","xx",0.115,"Vyrobeno v České republice","Výrobce BOHEMIA SEKT,s.r.o. Smetanova 220, 332 02 Starý Plzenec, Česká republika","brut","obsahuje siřičitany",0.75,"2014-10-09T14:27:58","Branislav Gregorec"]
["L1314283",8594000941019,5100000,"Bohemia Sekt demi sec 0,75 l","jakostní šumivé víno","xx",0.11,"Vyrobeno v České republice","Výrobce BOHEMIA SEKT,s.r.o. Smetanova 220, 332 02 Starý Plzenec, Česká republika","demi sec","obsahuje siřičitany",0.75,"2014-10-09T14:28:18","Branislav Gregorec"]
["L1314286",8594000941019,5100000,"Bohemia Sekt demi sec 0,75 l","jakostní šumivé víno","xx",0.11,"Vyrobeno v České republice","Výrobce BOHEMIA SEKT,s.r.o. Smetanova 220, 332 02 Starý Plzenec, Česká republika","demi sec","obsahuje siřičitany",0.75,"2014-10-13T09:05:28","Branislav Gregorec"]
["L1314287",8594000941019,5100000,"Bohemia Sekt demi sec 0,75 l","jakostní šumivé víno","xx",0.11,"Vyrobeno v České republice","Výrobce BOHEMIA SEKT,s.r.o. Smetanova 220, 332 02 Starý Plzenec, Česká republika","demi sec","obsahuje siřičitany",0.75,"2014-10-14T08:02:38","Branislav Gregorec"]
["L1314288",8594000941019,5100000,"Bohemia Sekt demi sec 0,75 l","jakostní šumivé víno","xx",0.11,"Vyrobeno v České republice","Výrobce BOHEMIA SEKT,s.r.o. Smetanova 220, 332 02 Starý Plzenec, Česká republika","demi sec","obsahuje siřičitany",0.75,"2014-10-14T08:03:01","Branislav Gregorec"]
["L1314289",8594000941019,5100000,"Bohemia Sekt demi sec 0,75 l","jakostní šumivé víno","xx",0.11,"Vyrobeno v České republice","Výrobce BOHEMIA SEKT,s.r.o. Smetanova 220, 332 02 Starý Plzenec, Česká republika","demi sec","obsahuje siřičitany",0.75,"2014-10-16T10:34:06","Branislav Gregorec"]
["L1314290",8594000941019,5100000,"Bohemia Sekt demi sec 0,75 l","jakostní šumivé víno","xx",0.11,"Vyrobeno v České republice","Výrobce BOHEMIA SEKT,s.r.o. Smetanova 220, 332 02 Starý Plzenec, Česká republika","demi sec","obsahuje siřičitany",0.75,"2014-10-16T10:34:27","Branislav Gregorec"]
["L1314293",8594000941019,5100000,"Bohemia Sekt demi sec 0,75 l","jakostní šumivé víno","xx",0.11,"Vyrobeno v České republice","Výrobce BOHEMIA SEKT,s.r.o. Smetanova 220, 332 02 Starý Plzenec, Česká republika","demi sec","obsahuje siřičitany",0.75,"2014-10-20T07:17:56","Branislav Gregorec"]
["L1314294",8594000941019,5100000,"Bohemia Sekt demi sec 0,75 l","jakostní šumivé víno","xx",0.11,"Vyrobeno v České republice","Výrobce BOHEMIA SEKT,s.r.o. Smetanova 220, 332 02 Starý Plzenec, Česká republika","demi sec","obsahuje siřičitany",0.75,"2014-10-21T07:23:16","Branislav Gregorec"]
["L1314295",8594000941019,5100000,"Bohemia Sekt demi sec 0,75 l","jakostní šumivé víno","xx",0.11,"Vyrobeno v České republice","Výrobce BOHEMIA SEKT,s.r.o. Smetanova 220, 332 02 Starý Plzenec, Česká republika","demi sec","obsahuje siřičitany",0.75,"2014-10-22T06:58:10","Branislav Gregorec"]
["L1314296",8594000941019,5100000,"Bohemia Sekt demi sec 0,75 l","jakostní šumivé víno","xx",0.11,"Vyrobeno v České republice","Výrobce BOHEMIA SEKT,s.r.o. Smetanova 220, 332 02 Starý Plzenec, Česká republika","demi sec","obsahuje siřičitany",0.75,"2014-10-23T07:05:47","Branislav Gregorec"]
["L1314297",8594000941019,5100000,"Bohemia Sekt demi sec 0,75 l","jakostní šumivé víno","xx",0.11,"Vyrobeno v České republice","Výrobce BOHEMIA SEKT,s.r.o. Smetanova 220, 332 02 Starý Plzenec, Česká republika","demi sec","obsahuje siřičitany",0.75,"2014-10-24T07:41:48","Branislav Gregorec"]
["L1314302",8594000941019,5100000,"Bohemia Sekt demi sec 0,75 l","jakostní šumivé víno","xx",0.11,"Vyrobeno v České republice","Výrobce BOHEMIA SEKT,s.r.o. Smetanova 220, 332 02 Starý Plzenec, Česká republika","demi sec","obsahuje siřičitany",0.75,"2014-10-29T09:57:24","Branislav Gregorec"]
["L1314303",8594000941019,5100000,"Bohemia Sekt demi sec 0,75 l","jakostní šumivé víno","xx",0.11,"Vyrobeno v České republice","Výrobce BOHEMIA SEKT,s.r.o. Smetanova 220, 332 02 Starý Plzenec, Česká republika","demi sec","obsahuje siřičitany",0.75,"2014-10-30T10:56:18","Branislav Gregorec"]
["L1314304",8594000941019,5100000,"Bohemia Sekt demi sec 0,75 l","jakostní šumivé víno","xx",0.11,"Vyrobeno v České republice","Výrobce BOHEMIA SEKT,s.r.o. Smetanova 220, 332 02 Starý Plzenec, Česká republika","demi sec","obsahuje siřičitany",0.75,"2014-10-31T07:45:12","Branislav Gregorec"]
["L1414307",8594000941019,5100000,"Bohemia Sekt demi sec 0,75 l","jakostní šumivé víno","xx",0.11,"Vyrobeno v České republice","Výrobce BOHEMIA SEKT,s.r.o. Smetanova 220, 332 02 Starý Plzenec, Česká republika","demi sec","obsahuje siřičitany",0.75,"2014-11-04T06:49:13","Branislav Gregorec"]
["L1314308",8594000941019,5100000,"Bohemia Sekt demi sec 0,75 l","jakostní šumivé víno","xx",0.11,"Vyrobeno v České republice","Výrobce BOHEMIA SEKT,s.r.o. Smetanova 220, 332 02 Starý Plzenec, Česká republika","demi sec","obsahuje siřičitany",0.75,"2014-11-04T06:49:43","Branislav Gregorec"]
["L1314309",8594000941040,5101000,"Bohemia Rose demi sec 0,75 l","jakostní šumivé víno","xx",0.11,"Vyrobeno v České republice","Výrobce BOHEMIA SEKT,s.r.o. Smetanova 220, 332 02 Starý Plzenec, Česká republika","demi sec","obsahuje siřičitany",0.75,"2014-11-05T07:09:54","Branislav Gregorec"]
["L1314310",8594000941040,5101000,"Bohemia Rose demi sec 0,75 l","jakostní šumivé víno","xx",0.11,"Vyrobeno v České republice","Výrobce BOHEMIA SEKT,s.r.o. Smetanova 220, 332 02 Starý Plzenec, Česká republika","demi sec","obsahuje siřičitany",0.75,"2014-11-06T15:52:54","Branislav Gregorec"]
["L1314310",8594000941064,5101500,"Bohemia Sekt rosé brut 0,75","jakostní šumivé víno","xx",0.115,"Vyrobeno v České republice","Výrobce BOHEMIA SEKT,s.r.o. Smetanova 220, 332 02 Starý Plzenec, Česká republika","brut","obsahuje siřičitany",0.75,"2014-11-06T15:53:11","Branislav Gregorec"]
["L1314311",8594000941217,5102500,"Bohemia Sekt červ. 0,75 l","jakostní šumivé víno","xx",0.125,"Vyrobeno v České republice","Výrobce BOHEMIA SEKT,s.r.o. Smetanova 220, 332 02 Starý Plzenec, Česká republika","demi sec","obsahuje siřičitany",0.75,"2014-11-07T06:28:02","Branislav Gregorec"]
["L1314311",8594000941101,5102600,"Bohemia Sekt sec 0,75 l","jakostní šumivé víno","xx",0.11,"Vyrobeno v České republice","Výrobce BOHEMIA SEKT,s.r.o. Smetanova 220, 332 02 Starý Plzenec, Česká republika","sec","obsahuje siřičitany",0.75,"2014-11-07T06:28:24","Branislav Gregorec"]
["L1314314",8594000941019,5100000,"Bohemia Sekt demi sec 0,75 l","jakostní šumivé víno","xx",0.11,"Vyrobeno v České republice","Výrobce BOHEMIA SEKT,s.r.o. Smetanova 220, 332 02 Starý Plzenec, Česká republika","demi sec","obsahuje siřičitany",0.75,"2014-11-10T14:07:45","Branislav Gregorec"]
["L1414315",8594000941019,5100000,"Bohemia Sekt demi sec 0,75 l","jakostní šumivé víno","xx",0.11,"Vyrobeno v České republice","Výrobce BOHEMIA SEKT,s.r.o. Smetanova 220, 332 02 Starý Plzenec, Česká republika","demi sec","obsahuje siřičitany",0.75,"2014-11-11T09:33:08","Branislav Gregorec"]
["L1314325",8594000941019,5100000,"Bohemia Sekt demi sec 0,75 l","jakostní šumivé víno","xx",0.11,"Vyrobeno v České republice","Výrobce BOHEMIA SEKT,s.r.o. Smetanova 220, 332 02 Starý Plzenec, Česká republika","demi sec","obsahuje siřičitany",0.75,"2014-11-21T08:17:34","Branislav Gregorec"]
["L1314328",8594000941019,5100000,"Bohemia Sekt demi sec 0,75 l","jakostní šumivé víno","xx",0.11,"Vyrobeno v České republice","Výrobce BOHEMIA SEKT,s.r.o. Smetanova 220, 332 02 Starý Plzenec, Česká republika","demi sec","obsahuje siřičitany",0.75,"2014-11-24T07:02:48","Branislav Gregorec"]
["L1314329",8594000941019,5100000,"Bohemia Sekt demi sec 0,75 l","jakostní šumivé víno","xx",0.11,"Vyrobeno v České republice","Výrobce BOHEMIA SEKT,s.r.o. Smetanova 220, 332 02 Starý Plzenec, Česká republika","demi sec","obsahuje siřičitany",0.75,"2014-11-25T07:52:36","Branislav Gregorec"]
["L1314330",8594000941019,5100000,"Bohemia Sekt demi sec 0,75 l","jakostní šumivé víno","xx",0.11,"Vyrobeno v České republice","Výrobce BOHEMIA SEKT,s.r.o. Smetanova 220, 332 02 Starý Plzenec, Česká republika","demi sec","obsahuje siřičitany",0.75,"2014-11-25T07:53:18","Branislav Gregorec"]
["L1314331",8594000941019,5100000,"Bohemia Sekt demi sec 0,75 l","jakostní šumivé víno","xx",0.11,"Vyrobeno v České republice","Výrobce BOHEMIA SEKT,s.r.o. Smetanova 220, 332 02 Starý Plzenec, Česká republika","demi sec","obsahuje siřičitany",0.75,"2014-11-27T09:03:19","Branislav Gregorec"]
["L1314332",8594000941019,5100000,"Bohemia Sekt demi sec 0,75 l","jakostní šumivé víno","xx",0.11,"Vyrobeno v České republice","Výrobce BOHEMIA SEKT,s.r.o. Smetanova 220, 332 02 Starý Plzenec, Česká republika","demi sec","obsahuje siřičitany",0.75,"2014-11-27T09:03:49","Branislav Gregorec"]
["L1314335",8594000941019,5100000,"Bohemia Sekt demi sec 0,75 l","jakostní šumivé víno","xx",0.11,"Vyrobeno v České republice","Výrobce BOHEMIA SEKT,s.r.o. Smetanova 220, 332 02 Starý Plzenec, Česká republika","demi sec","obsahuje siřičitany",0.75,"2014-12-01T09:58:39","Branislav Gregorec"]
["L1314336",8594000941088,5102000,"Bohemia Sekt brut 0,75 l","jakostní šumivé víno","xx",0.12,"Vyrobeno v České republice","Výrobce BOHEMIA SEKT,s.r.o. Smetanova 220, 332 02 Starý Plzenec, Česká republika","brut","obsahuje siřičitany",0.75,"2014-12-02T07:17:33","Branislav Gregorec"]
["L1414337",8594000941088,5102000,"Bohemia Sekt brut 0,75 l","jakostní šumivé víno","xx",0.12,"Vyrobeno v České republice","Výrobce BOHEMIA SEKT,s.r.o. Smetanova 220, 332 02 Starý Plzenec, Česká republika","brut","obsahuje siřičitany",0.75,"2014-12-03T11:26:59","Branislav Gregorec"]
["L1314338",8594000941019,5100000,"Bohemia Sekt demi sec 0,75 l","jakostní šumivé víno","xx",0.11,"Vyrobeno v České republice","Výrobce BOHEMIA SEKT,s.r.o. Smetanova 220, 332 02 Starý Plzenec, Česká republika","demi sec","obsahuje siřičitany",0.75,"2014-12-04T09:41:40","Branislav Gregorec"]
["L1414339",8594000941019,5100000,"Bohemia Sekt demi sec 0,75 l","jakostní šumivé víno","xx",0.11,"Vyrobeno v České republice","Výrobce BOHEMIA SEKT,s.r.o. Smetanova 220, 332 02 Starý Plzenec, Česká republika","demi sec","obsahuje siřičitany",0.75,"2014-12-04T09:42:04","Branislav Gregorec"]
["L1314342",8594000941019,5100000,"Bohemia Sekt demi sec 0,75 l","jakostní šumivé víno","xx",0.11,"Vyrobeno v České republice","Výrobce BOHEMIA SEKT,s.r.o. Smetanova 220, 332 02 Starý Plzenec, Česká republika","demi sec","obsahuje siřičitany",0.75,"2014-12-08T08:14:49","Branislav Gregorec"]

{"sheet":"List1","index":2,"n_rows":123,"n_cols":8,"rows_kept":123,"cut":false,"hidden":true,"merged":[]}
["SAP/číslo artiklu","název produktu","litr","vr/nevr.","obalu","%","lahve","kartonu"]
[1120765,"Fürst von Metternich trocken 0,75 l",0.75,"nevratná","láhev",21,4003310112001,4003310112070]
[1524565,"Henkell Trocken",0.75,"nevratná","láhev",21,4003310152403,4003310152458]
[1524600,"Henkell Trocken 0,75 l MQB",0.75,"nevratná","láhev",21,4003310011625,4003310011632]
[1524624,"Henkell Trocken 0,75 l IC",0.75,"nevratná","láhev",21,4003310011625,4003310011632]
[1565200,"Henkell Trocken 0,2 l pikkolo / dárk.",0.2,"nevratná","láhev",21,4003310156500,4003310156524]
[1603965,"Henkell Trocken 1,5 l",1.5,"nevratná","láhev",21,4003310159808,4003310160392]
[1645465,"Henkell Blanc de Blancs",0.75,"nevratná","láhev",21,4003310164505,4003310164543]
[1810465,"Wodka Gorbatschow",0.7,"nevratná","láhev",21,4003310181007,4003310181045]
[1822865,"Wodka Gorbatschow Platinum 44 % 0,7 l",0.7,"nevratná","láhev",21,4003310182202,4003310182288]
[2720165,"Carstens Bio 0,75 l",0.75,"nevratná","láhev",21,4003310272002,4003310272019]
[2836365,"Alfred Gratien rosé 0,75 l",0.75,"nevratná","láhev",21,3594580000682,3594580000705]
[2840165,"Alfred Gratien brut classique",0.75,"nevratná","láhev",21,3594580000095,8594000941071]
[4901165,"Karpatské brandy speciál 40% 0,7 l",0.7,"nevratná","láhev",21,8586015320415,8586015320422]
[4902265,"Karpatské KB 40 % 0,7 l",0.7,"nevratná","láhev",21,8586015320491,8586015320507]
[4902400,"Karpatské KB 40 % 0,2 l",0.7,"nevratná","láhev",21,8586015321177,8586015321184]
[4910300,"Kláštorné biele 1 l / nevr.",1,"nevratná","láhev",21,8586000621541,8586000622944]
[4910400,"Kláštorné červené 1 l / nevr.",1,"nevratná","láhev",21,8586015320279,8586015320286]
[5010500,"Hubert clasic brut (nové balení)",0.75,"nevratná","láhev",21,8588000002160,8588000002184]
[5012200," Hubert Original Rose brut (nové balení)",0.75,"nevratná","láhev",21,8588000002078,8588000002092]
[5018100,"Hubert Club demi sec 0,2 l",0.2,"nevratná","láhev",21,4003310501805,4003310501812]
[5020200,"Hubert club brut (nové balení)",0.75,"nevratná","láhev",21,8588000002214,8588000002238]
[5021100,"Hubert club demi sec (nové balení)",0.75,"nevratná","láhev",21,8588000002245,8588000002269]
[5022900,"Hubert club doux",0.75,"nevratná","láhev",21,8588000002276,8588000002290]
[5025900,"Hubert Club demi sec 0,75 l /72 ks Penny",0.75,"nevratná","láhev",21,8588000002245,8594000941170]
[5026100,"Hubert de luxe (nové balení)",0.75,"nevratná","láhev",21,8588000002399,8588000002412]
[5100000,"Bohemia Sekt demi sec",0.75,"nevratná","láhev",21,8594000940012,8594000941019]
[5100026,"Bohemia Sekt demi sec 0,75 l+UNI on pack",0.75,"nevratná","láhev",21,8594000940012,8594000941019]
[5100097,"Bohemia Sekt demi sec 0,75 l (Makro)",0.75,"nevratná","láhev",21,8594000940012,8594000941019]
[5100100,"Bohemia Sekt demi sec",0.375,"nevratná","láhev",21,8594000940326,8594000941323]
[5100200,"Bohemia Sekt demi sec",0.2,"nevratná","láhev",21,"8594000940654","8594000941651"]
[5100225,"Bohemia Sekt demi sec 0,2 l/sixpack 6 ks",0.2,"nevratná","sixpack",21,8594000940104,8594000941286]
[5100286,"Bohemia Sekt demi sec 0,2 l / 6ks Makro",0.2,"nevratná","láhev",21,8594000940074,8594000941224]
[5100295,"BOHEMKA/2 ks-Bohemia Sekt demi sec 0,2 l",0.2,"nevratná","láhev",21,8594000941644,8594000941767]
[5100300,"Bohemia Sekt demi sec (3 ks/karton)",1.5,"nevratná","láhev",21,8594000940562,8594000941583]
[5100400,"Bohemia Sekt demi sec",3,"nevratná","láhev",21,"8594000940708","8594000941705"]
[5100500,"Bohemia Sekt demi sec 0,75 l/216ks Billa",0.75,"nevratná","láhev",21,8594000940012,8594000941057]
[5100600,"Bohemia Sekt demi sec 0,75 l / CHEP 72",0.75,"nevratná","láhev",21,8594000940012,8594000941125]
[5100600,"Bohemia Sekt demi sec/192",0.75,"nevratná","láhev",21,"8594000940012","8594000941019"]
[5100700,"Penny mixpaleta(144 BSds,72 BRds 0,75l)",0.75,"nevratná","láhev",21,null,8594000941026]
[5100800,"Bohemia Sekt demi sec-dřevěný box",3,"nevratná","láhev",21,8594000940708,8594000941682]
[5100900,"Bohemia Sekt demi sec 0,75 l / Makropaleta",0.75,"nevratná","láhev",21,"8594000940012",8594000941033]
[5101000,"Bohemia Sekt rose demi sec",0.75,"nevratná","láhev",21,8594000940050,8594000941040]
[5101026,"Bohemia Rose demi sec 0,75 l+UNI on pack",0.75,"nevratná","láhev",21,8594000940050,8594000941040]
[5101100,"Bohemia Sekt rose demi sec",0.375,"nevratná","láhev",21,8594000940357,8594000941354]
[5101200,"Bohemia Rose demi sec 0,75 l/216ks Penny",0.75,"nevratná","láhev",21,8594000940050,8594000941194]
[5101400,"Penny paleta (270 BS ds, 270 BR ds 0,75l)",0.75,"nevratná","láhev",21,null,8594000941095]
[5101500,"Bohemia Sekt rosé brut 0,75 l",0.75,"nevratná","láhev",21,8594000940067,8594000941064]
[5101600,"Bohemia Sekt nealkoholický 0,75 l",0.75,"nevratná","láhev",15,8594000940029,8594000941118]
[5101800,"Bohemia Sekt Blanc de Noirs brut 0,75 l",0.75,"nevratná","láhev",21,8594000940036,8594000941156]
[5101900,"BS Blanc de Noirs brut 0,75l/375ks Makro",0.75,"nevratná","láhev",21,8594000940036,8594000941163]
[5102000,"Bohemia Sekt brut",0.75,"nevratná","láhev",21,8594000940098,8594000941088]
[5102026,"Bohemia Sekt brut 0,75 l + UNI on pack",0.75,"nevratná","láhev",21,8594000940098,8594000941088]
[5102097,"Bohemia Sekt brut 0,75 l (Makro)",0.75,"nevratná","láhev",21,8594000940098,8594000941088]
[5102100,"Bohemia Sekt brut",0.375,"nevratná","láhev",21,8594000940388,8594000941385]
[5102200,"Bohemia Sekt brut",0.2,"nevratná","láhev",21,"8594000940678","8594000941668"]
[5102286,"Bohemia Sekt brut 0,2 l / 6 ks Makro",0.2,"nevratná","láhev",21,8594000940081,8594000941231]
[5102300,"Bohemia Sekt brut (3 ks/karton)",1.5,"nevratná","láhev",21,8594000940555,8594000941590]
[5102500,"Bohemia Sekt demi sec červené",0.75,"nevratná","láhev",21,8594000940210,8594000941217]
[5102600,"Bohemia Sekt sec 0,75 l",0.75,"nevratná","láhev",21,8594000940128,8594000941101]
[5102700,"Bohemia Sekt Chardonnay brut 0,75",0.75,"nevratná","láhev",21,8594000940043,8594000941200]
[5102725,"Bohemia Sekt Chardonnay brut 0,75 / dárk.",0.75,"nevratná","láhev",21,8594000941262,8594000941279]
[5102900,"Bohemia Sekt brut 0,75l /375ks-jumbo pal",0.75,"nevratná","láhev",21,8594000940098,8594000941132]
[5104000,"Bohemia Sekt Prestige demi sec - nové skládání",0.75,"nevratná","láhev",21,"8594000940449","8594000941446"]
[5104100,"Bohemia Sekt Prestige brut - nové skládání",0.75,"nevratná","láhev",21,"8594000940456",8594000941460]
[5104300,"Bohemia Sekt Prestige rosé brut - nové skládání",0.75,"nevratná","láhev",21,8594000940494,8594000941538]
[5104400,"Bohemia Sekt Prestige brut0,75l+2sklenky -nové balení",0.75,"nevratná","láhev",21,8594000941620,8594000941637]
[5104494,"Bohemia Sekt Prestige brut0,75l+2sklenky / chip",0.75,"nevratná","láhev",21,8594000941620,8594000941255]
[5104500,"Boh. Sekt Prestige rosé brut 0,75 l/dárk",0.75,"nevratná","láhev",21,8594000941606,8594000941613]
[5104800,"Bohemia Sekt Prestige demi sec dárkové balení",0.75,"nevratná","láhev",21,8594000941439,8594000941507]
[5104900,"Bohemia Sekt Prestige brut dárkové balení",0.75,"nevratná","láhev",21,8594000941453,8594000941514]
[5104945,"Boh. Sekt Prestige brut 0,75 l dárk. / B",0.75,"nevratná","láhev",21,8594000941453,8594000941514]
[5105000,"Bohemia Sekt Prestige Chard. brut 0,75 l",0.75,"nevratná","láhev",21,8594000941293,8594000941316]
[5105025,"Boh.Sekt Prestige Chard. brut 0,75 /dárk",0.75,"nevratná","láhev",21,8594000941361,8594000941378]
[5105100,"Château Radyně brut",0.75,"nevratná","láhev",21,8594000940241,8594000941248]
[5105500,"Château Belveder doux",0.75,"nevratná","láhev",21,8594000940302,"8594000941309"]
[5105800,"Louis Girardot brut/1",0.75,"nevratná","láhev",21,"8594000940487",8594000941491]
[5107000,"Chateau Bzenec brut",0.75,"nevratná","láhev",21,8594044830751,8594044830768]
[5108000,"Motýl Sekt demi sec 0,75 l",0.75,"nevratná","láhev",21,8594002881894,8594002881924]
[5108100,"Motýl Sekt doux 0,75 l",0.75,"nevratná","láhev",21,8594002881900,8594002881931]
[5108200,"Motýl Sekt rosé demi sec 0,75 l",0.75,"nevratná","láhev",21,8594002881917,8594002881948]
[5108300,"Motýl Sekt(36 ds,36 rosé ds 0,75l)/Penny",0.75,"nevratná","láhev",21,null,8594000941187]
[5108400,"Motýl Sekt suchý 0,75 l",0.75,"nevratná","láhev",21,8594002881955,8594002881962]
[5110200,"Frizzante 0,75 l alkork.",0.75,"nevratná","láhev",21,8594000942658,8594000942894]
[5110300,"Avanti Frizzante 0,75 l",0.75,"nevratná","láhev",21,8594044832090,8594044832106]
[5110400,"Avanti Frizzante rosé 0,75 l",0.75,"nevratná","láhev",21,8594044832113,8594044832120]
[5110500,"Avanti Spritz 0,75 l",0.75,"nevratná","láhev",21,8594044832137,8594044832144]
[5111500,"Avanti light - alkork",0.75,"nevratná","láhev",21,8594044830140,8594044830157]
[5111700,"AVANTI CLASSICO šroubový uzávěr",0.75,"nevratná","láhev",21,8594044830102,8594044830119]
[5111800,"Avanti rose šroubový uzávěr",0.75,"nevratná","láhev",21,8594044830126,8594044830133]
[5112200,"Avanti Fragola 0,75 l alkork.",0.75,"nevratná","láhev",21,8594044832014,8594044832021]
[5112300,"Avanti Pesca 0,75 l alkork.",0.75,"nevratná","láhev",21,8594044832038,8594044832045]
[5112400,"Avanti Pera 0,75 l alkork.",0.75,"nevratná","láhev",21,8594044832052,8594044832069]
[5112500,"Avanti Amarena 0,75 l alkork.",0.75,"nevratná","láhev",21,8594044832076,8594044832083]
[5112600,"Avanti Mirtillo 0,75 l",0.75,"nevratná","láhev",21,8594044832151,8594044832168]
[5113000,"Avanti classico 0,75 l alk./96 ks Penny",0.75,"nevratná","láhev",21,8594044830102,8594044830119]
[5143300,"Nordic Ice vodka 37,5% 1 l / export",1,"nevratná","láhev",21,8594002710422,"8594002713034"]
[5146200,"Kaiser vodka 37,5% 1 l (nová láhev)",1,"nevratná","láhev",21,5998815786057,"65998815704374"]
[5146500,"Kaiser vodka 37,5% 9x0,5 l (nová láhev)",0.5,"nevratná","láhev",21,5998815786071,"55998815705367"]
[5146500,"Kaiser vodka 37,5% 9x0,5 l (nová láhev)",0.5,"nevratná","láhev",21,5998815786071,55998815705367]
[5160100,"Fernet Black Widow 37,5 % 1 l",1,"nevratná","láhev",21,8594002711207,"8594002711214"]
[5161100,"Fernet Black Widow Citrus 30 % 1 l",1,"nevratná","láhev",21,8594002711221,"8594002711238"]
[5170000,"Karpatská vodka 37,5 % 0,5 l",0.5,"nevratná","láhev",21,8586015320651,"8586015320668"]
[5171000,"Karpatský Fernet 37,5 % 0,5 l",0.5,"nevratná","láhev",21,8586015320576,"8586015320583"]
[5172000,"Karpatský Fernet Citrus 30 % 0,5 l",0.5,"nevratná","láhev",21,8586015320613,"8586015320620"]
[5253000,"Poezie bílá 1 L - ČMV",1,"nevratná","n.karton",21,8594002889203,8594002880408]
[5253100,"Poezie červená NK 1 L - ČMV",1,"nevratná","n.karton",21,8594002889210,8594002880415]
[5626865,"Sunny Garden Cherry 0,75 l",0.75,"nevratná","láhev",21,5901064762680,5901064562686]
[5627665,"Sunny Garden Wild Strawberry 0,75 l",0.75,"nevratná","láhev",21,5901064762765,5901064562761]
[5628865,"Sunny Garden Raspberry 0,75 l",0.75,"nevratná","láhev",21,5901064762888,5901064562884]
[5660547,"Canari Coconut Milk 16 % 0,35 l",0.35,"nevratná","láhev",21,5901064766039,5901064566035]
[5663747,"Canari Tiramisu  16 % 0,35 l",0.35,"nevratná","láhev",21,5901064766350,5901064566356]
[5664347,"Canari Coffee 16 % 0,35 l",0.35,"nevratná","láhev",21,5901064766428,5901064566424]
[5666647,"Angelli Cafe-Cafe ",0.7,"nevratná","láhev",21,5942006100795,15942006100792]
[5666747,"Angelli Cioccolato",0.7,"nevratná","láhev",21,5942006100771,15942006100778]
[5666947,"Angelli Tiramisu",0.7,"nevratná","láhev",21,5942006100788,15942006100785]
[5667147,"Angelli Toffee 16 % 0,7 l",0.7,"nevratná","láhev",21,5942006100894,15942006100891]
[5670065,"Wodka Gorbatschow 0,5 L",0.5,"nevratná","láhev",21,5905629087034,5905629087010]
[6733865,"Mionetto Valdobbiadene D.O.C.G. 0,75 l",0.75,"nevratná","láhev",21,8006220090069,8006220303299]
[6743565,"Mionetto Prosecco E.D. DOC Prest. 0,75l",0.75,"nevratná","láhev",21,8006220001980,8006220001997]
[6744400,"Mion. Pros. Brut DOC Prest.0,75l(orange)",0.75,"nevratná","láhev",21,8006220001669,8006220001676]
[6744800,"Mionetto Pros.ED DOC Prest. 0,75l(black)",0.75,"nevratná","láhev",21,8006220001683,8006220001690]
[6767965,"Mionetto IL Spr!z 0,75 l",0.75,"nevratná","láhev",21,8006220001805,8006220001812]

{"sheet":"List2","index":3,"n_rows":16,"n_cols":16,"rows_kept":16,"cut":false,"hidden":true,"merged":[]}
["ST1.Text = List5.Cells(radek, 4)",null,1,4,{"$f":"\"ST\"&C1&\".Text = List5.Cells(radek,\"&D1&\")\"","v":"ST1.Text = List5.Cells(radek,4)"},{"$f":"\"ST\"&C1&\".value='\"\"\"","v":"ST1.value='\""},null,"ST1.value='\"",null,null,"ST1.Text = List5.Cells(radek,4)",null,{"$f":"\"List5.Cells(radek, \"&D1&\")='\"\"\"","v":"List5.Cells(radek, 4)='\""},null,null,"List5.Cells(radek, 4)='\""]
[null,null,2,5,{"$f":"\"ST\"&C2&\".Text = List5.Cells(radek,\"&D2&\")\"","v":"ST2.Text = List5.Cells(radek,5)"},{"$f":"\"ST\"&C2&\".value='\"\"\"","v":"ST2.value='\""},null,"ST2.value='\"",null,null,"ST2.Text = List5.Cells(radek,5)",null,{"$f":"\"List5.Cells(radek, \"&D2&\")='\"\"\"","v":"List5.Cells(radek, 5)='\""},null,null,"List5.Cells(radek, 5)='\""]
[null,null,3,6,"ST3.Text = List5.Cells(radek,6)","ST3.value='\"",null,"ST3.value='\"",null,null,"ST3.Text = List5.Cells(radek,6)",null,"List5.Cells(radek, 6)='\"",null,null,"List5.Cells(radek, 6)='\""]
[null,null,4,7,"ST4.Text = List5.Cells(radek,7)","ST4.value='\"",null,"ST4.value='\"",null,null,"ST4.Text = List5.Cells(radek,7)",null,"List5.Cells(radek, 7)='\"",null,null,"List5.Cells(radek, 7)='\""]
[null,null,5,8,"ST5.Text = List5.Cells(radek,8)","ST5.value='\"",null,"ST5.value='\"",null,null,"ST5.Text = List5.Cells(radek,8)",null,"List5.Cells(radek, 8)='\"",null,null,"List5.Cells(radek, 8)='\""]
[null,null,6,9,"ST6.Text = List5.Cells(radek,9)","ST6.value='\"",null,"ST6.value='\"",null,null,"ST6.Text = List5.Cells(radek,9)",null,"List5.Cells(radek, 9)='\"",null,null,"List5.Cells(radek, 9)='\""]
[null,null,7,10,"ST7.Text = List5.Cells(radek,10)","ST7.value='\"",null,"ST7.value='\"",null,null,"ST7.Text = List5.Cells(radek,10)",null,"List5.Cells(radek, 10)='\"",null,null,"List5.Cells(radek, 10)='\""]
[null,null,8,11,"ST8.Text = List5.Cells(radek,11)","ST8.value='\"",null,"ST8.value='\"",null,null,"ST8.Text = List5.Cells(radek,11)",null,"List5.Cells(radek, 11)='\"",null,null,"List5.Cells(radek, 11)='\""]
[null,null,9,12,"ST9.Text = List5.Cells(radek,12)","ST9.value='\"",null,"ST9.value='\"",null,null,"ST9.Text = List5.Cells(radek,12)",null,"List5.Cells(radek, 12)='\"",null,null,"List5.Cells(radek, 12)='\""]
[null,null,10,2,"ST10.Text = List5.Cells(radek,2)","ST10.value='\"",null,"ST10.value='\"",null,null,"ST10.Text = List5.Cells(radek,2)",null,"List5.Cells(radek, 2)='\"",null,null,"List5.Cells(radek, 2)='\""]
[null,null,11,14,"ST11.Text = List5.Cells(radek,14)"]
[null,null,12,15,"ST12.Text = List5.Cells(radek,15)"]
[null,null,13,16,"ST13.Text = List5.Cells(radek,16)"]
[]
[]
["List5.Cells(radek, 4)"]

{"sheet":"List3","index":4,"n_rows":60,"n_cols":12,"rows_kept":60,"cut":false,"hidden":true,"merged":[]}
["Šarže","EAN kartonu","SAP","název","název potraviny","Ev.č.j. ","nápoje nad 1,2 % alkoholu - obsah alkoholu","země původu nebo místo provenience ","jméno nebo obch. název PPP","Obsah cukru","alergenní látky","jmenovitý objem"]
["L1352312;L1353121","8586015320620",5250700,"Gaudium Vinum červené NK","víno","xx",10,"víno z Evropského společenství","Baleno v BOHEMIA SEKT,s.r.o. Smetanova 220, 332 02 Starý Plzenec, Česká republika","polosuché","obsahuje siřičitany","1"]
["L1354009;",8594002880415,5253100,"Poezie červená  1NK -ČMV","víno","xx",10,"víno z Evropského společenství","Baleno v BOHEMIA SEKT,s.r.o. Smetanova 220, 332 02 Starý Plzenec, Česká republika","polosuché","obsahuje siřičitany","1"]
["L1354175",8594002880408,5253000,"Poezie bílá 1NK -ČMV","víno","xx",10,"víno z Evropského společenství","Baleno v BOHEMIA SEKT,s.r.o. Smetanova 220, 332 02 Starý Plzenec, Česká republika","polosuché","obsahuje siřičitany","1"]
["L13127",8594000941071,2840165,"Alfred Gratien Brut Classique","champagne","xx","12,5","Vyrobeno ve Francii","Výrobce Alfred Gratien, Epernay, Francie","brut","obsahuje siřičitany",0.75]
["L1323920",3594580000705,2836365,"Alfred Gratien Rose Brut Classique","champagne","xx","12,5","Vyrobeno ve Francii","Výrobce Alfred Gratien, Epernay, Francie","brut","obsahuje siřičitany",0.75]
["L1164056;L1164056;L1164057;L1313280;L1314142;",8594000941118,5101600,"Bohemia Sekt nealkoholický 0,75 l","nealkoholické šumivé víno bílé","xx","0","Vyrobeno v Německu","Výrobce BOHEMIA SEKT,s.r.o. Smetanova 220, 332 02 Starý Plzenec, Česká republika","doux","obsahuje siřičitany",0.75]
["L1311320;L1310335;L1311320;L1311320;L1310335",8594002881931,5108100,"Motýl sekt doux 0,75 l","jakostní šumivé víno","xx",11,"Vyrobeno v České republice","Výrobce BOHEMIA SEKT,s.r.o. Smetanova 220, 332 02 Starý Plzenec, Česká republika","doux","obsahuje siřičitany",0.75]
["L1313035;L1313035;L1310235",8594000941354,5101100,"Bohemia Rose demi sec 0,375 l","jakostní šumivé víno","xx",11,"Vyrobeno v České republice","Výrobce BOHEMIA SEKT,s.r.o. Smetanova 220, 332 02 Starý Plzenec, Česká republika","demi sec","obsahuje siřičitany",0.375]
["L1313164;L1313164;L1313164",8594000941217,5102500,"Bohemia Sekt červ. 0,75 l","jakostní šumivé víno","xx",12.5,"Vyrobeno v České republice","Výrobce BOHEMIA SEKT,s.r.o. Smetanova 220, 332 02 Starý Plzenec, Česká republika","demi sec","obsahuje siřičitany",0.75]
["L1313197;L1314030;L1314213;L1314034;L1313196;L1313119;L1313196;L1313197;L1314030;L1313196;L1313197;L1313198;L1313206",8594000941323,5100100,"Bohemia Sekt demi sec 0,375 l","jakostní šumivé víno","xx",11,"Vyrobeno v České republice","Výrobce BOHEMIA SEKT,s.r.o. Smetanova 220, 332 02 Starý Plzenec, Česká republika","demi sec","obsahuje siřičitany",0.375]
["L1313213;L1314050;L1313326;L1314078",8594000941231,5102286,"Bohemia Sekt brut 0,2 l / Makro 6 pack","jakostní šumivé víno","xx",12,"Vyrobeno v České republice","Výrobce BOHEMIA SEKT,s.r.o. Smetanova 220, 332 02 Starý Plzenec, Česká republika","brut","obsahuje siřičitany",0.2]
["L1313219;L1313220;L1313219;L1313220",8594000941224,5100286,"Bohemia Sekt demi sec 0,2 l /Makro 6 pack","jakostní šumivé víno","xx",11,"Vyrobeno v České republice","Výrobce BOHEMIA SEKT,s.r.o. Smetanova 220, 332 02 Starý Plzenec, Česká republika","demi sec","obsahuje siřičitany",0.2]
["L1313231;L1313315;L1314162;L1313231;L1313231",8594044830768,5107000,"Chateau Bzenec brut  0,75 l","jakostní šumivé víno s.o.","14A1-13-2",12.5,"Sekt z České republiky","Výrobce BOHEMIA SEKT,s.r.o. Smetanova 220, 332 02 Starý Plzenec, Česká republika","brut","obsahuje siřičitany",0.75]
["L1313238;L1314139;L1393310;L1393310;",8594002881962,5108400,"Motýl sekt suchý 0,75 l","jakostní šumivé víno","xx",11.5,"Vyrobeno v České republice","Výrobce BOHEMIA SEKT,s.r.o. Smetanova 220, 332 02 Starý Plzenec, Česká republika","suchý","obsahuje siřičitany",0.75]
["L1313282;L1313100;L1313282;L1313282",8594000941101,5102600,"Bohemia Sekt sec 0,75 l","jakostní šumivé víno","xx",11,"Vyrobeno v České republice","Výrobce BOHEMIA SEKT,s.r.o. Smetanova 220, 332 02 Starý Plzenec, Česká republika","sec","obsahuje siřičitany",0.75]
["L1313316;L1313315;L1314065;L1314163;L1313050;L1313315;L1313049;L1313315",8594000941248,5105100,"Chateau Radyně brut 0,75 l","jakostní šumivé víno","xx",13,"Vyrobeno v České republice","Výrobce BOHEMIA SEKT,s.r.o. Smetanova 220, 332 02 Starý Plzenec, Česká republika","brut","obsahuje siřičitany",0.75]
["L1313317",8594000941460,5104245,"Bohemia Sekt Prest. brut 0,75 l / B Cors","jakostní šumivé víno","xx",13,"Vyrobeno v České republice","Výrobce BOHEMIA SEKT,s.r.o. Smetanova 220, 332 02 Starý Plzenec, Česká republika","brut","obsahuje siřičitany",0.75]
["L1313319;L1313318;L1313056;L1312235;L1313056;L1393310",8594000941538,5104300,"Bohemia Sekt Prestige rosé brut 0,75 l","jakostní šumivé víno","xx",12.5,"Vyrobeno v České republice","Výrobce BOHEMIA SEKT,s.r.o. Smetanova 220, 332 02 Starý Plzenec, Česká republika","brut","obsahuje siřičitany",0.75]
["L1313322;L1313322;L1313322",8594000941064,5101500,"Bohemia Sekt rosé brut 0,75","jakostní šumivé víno","xx",11.5,"Vyrobeno v České republice","Výrobce BOHEMIA SEKT,s.r.o. Smetanova 220, 332 02 Starý Plzenec, Česká republika","brut","obsahuje siřičitany",0.75]
["L1313323;L1313324;L1314014;L1314013;L1314153;L1314154;L1314135;L1314134;L1314147;L1314014;L1314134;L1314153;L1314154;L1313266;L1313322;L1314013;L1314014;L1314153;L1314154;L1313266;L1313324;L1313325;L1314013;L1314014;L1314153",8594000941040,5101000,"Bohemia Rose demi sec 0,75 l","jakostní šumivé víno","xx",11,"Vyrobeno v České republice","Výrobce BOHEMIA SEKT,s.r.o. Smetanova 220, 332 02 Starý Plzenec, Česká republika","demi sec","obsahuje siřičitany",0.75]
["L1314029;L1314028;L1314030;L1314212;L1314213;L1314051;L1314211;L1314202;L1314203;L1314028;L1314029;L1314028",8594000941385,5102100,"Bohemia Sekt brut 0,375 l","jakostní šumivé víno","xx",12,"Vyrobeno v České republice","Výrobce BOHEMIA SEKT,s.r.o. Smetanova 220, 332 02 Starý Plzenec, Česká republika","brut","obsahuje siřičitany",0.375]
["L1314048;L1314202;L1314049;L1314198;L1314197;L1314044;L1314048;L1314050;L1313219;L1313224;L1314044","8594000941651",5100200,"Bohemia Sekt demi sec 0,2 l","jakostní šumivé víno","xx",11,"Vyrobeno v České republice","Výrobce BOHEMIA SEKT,s.r.o. Smetanova 220, 332 02 Starý Plzenec, Česká republika","demi sec","obsahuje siřičitany",0.2]
["L1314063;L1314167;L1313317",8594000941460,5104145,"Bohemia Sekt Prest. brut 0,75 l / B Delh","jakostní šumivé víno","xx",13,"Vyrobeno v České republice","Výrobce BOHEMIA SEKT,s.r.o. Smetanova 220, 332 02 Starý Plzenec, Česká republika","brut","obsahuje siřičitany",0.75]
["L1314077;L1314078;L1314079;L1313326;L1313281;L1313326;L1314078;L1314079",8594000941200,5102700,"Bohemia Chardonnay brut 0,75 l","jakostní šumivé víno","xx",12.5,"Vyrobeno v České republice","Výrobce BOHEMIA SEKT,s.r.o. Smetanova 220, 332 02 Starý Plzenec, Česká republika","brut","obsahuje siřičitany",0.75]
["L1314140;L1314139;L1314139;L1314140;L1314139",8594002881924,5108000,"Motýl sekt-demi 0,75 l","jakostní šumivé víno","xx",11,"Vyrobeno v České republice","Výrobce BOHEMIA SEKT,s.r.o. Smetanova 220, 332 02 Starý Plzenec, Česká republika","demi sec","obsahuje siřičitany",0.75]
["L1314140;L1314139;L1314140;L1313058;L1314140",8594002881948,5108200,"Motýl sekt rose demi 0,75 l","jakostní šumivé víno","xx",11,"Vyrobeno v České republice","Výrobce BOHEMIA SEKT,s.r.o. Smetanova 220, 332 02 Starý Plzenec, Česká republika","demi sec","obsahuje siřičitany",0.75]
["L1314142;L1394170;L1313280;L1314142",8594000941156,5101800,"Bohemia Sekt Blanc de Noirs brut 0,75 l","jakostní šumivé víno","xx",11.5,"Vyrobeno v České republice","Výrobce BOHEMIA SEKT,s.r.o. Smetanova 220, 332 02 Starý Plzenec, Česká republika","brut","obsahuje siřičitany",0.75]
["L1314147;L1314141;L1314083;L1314041;L1314043;L1314093;L1314146;L1314085;L1314084;L1314086;L1314090;L1314091;L1314219;L1314135;L1314148;L1314036;L1314037;L1314042;L1314043;L1314055;L1314079;L1314099;L1314100;L1314135;L1314148;L1314149;L1314008;L1314079;L1314135;L1314147",8594000941019,5100000,"Bohemia Sekt demi sec 0,75 l","jakostní šumivé víno","xx",11,"Vyrobeno v České republice","Výrobce BOHEMIA SEKT,s.r.o. Smetanova 220, 332 02 Starý Plzenec, Česká republika","demi sec","obsahuje siřičitany",0.75]
["L1314150;L1314010;L1314149;L1314092;L1313339;L1314092;L1314148;L1313303;L1314010;L1314013;L1314149;L1314150;L1313340;L1314091;L1314092;L1314149;L1314150",8594000941088,5102000,"Bohemia Sekt brut 0,75 l","jakostní šumivé víno","xx",12,"Vyrobeno v České republice","Výrobce BOHEMIA SEKT,s.r.o. Smetanova 220, 332 02 Starý Plzenec, Česká republika","brut","obsahuje siřičitany",0.75]
["L1314162;L1313315;L1314065;L1313315;L1393315",8594000941491,5105800,"Louis Girardot  0,75 l","jakostní šumivé víno","xx",13,"Vyrobeno v České republice","Výrobce BOHEMIA SEKT,s.r.o. Smetanova 220, 332 02 Starý Plzenec, Česká republika","brut","obsahuje siřičitany",0.75]
["L1314162;L1314163;L1312290;L1312290;L1312290","8594000941309",5105500,"Chateau Belveder doux 0,75 l","jakostní šumivé víno","xx",12.5,"Vyrobeno v České republice","Výrobce BOHEMIA SEKT,s.r.o. Smetanova 220, 332 02 Starý Plzenec, Česká republika","doux","obsahuje siřičitany",0.75]
["L1314164;L1314014;L1314167;L1314063;L1314168;L1313228;L1313317;L1313318;L1313228;L1313318;L1314063;L1313228;",8594000941460,5104100,"Bohemia Sekt Prestige brut 0,75 l","jakostní šumivé víno","xx",13,"Vyrobeno v České republice","Výrobce BOHEMIA SEKT,s.r.o. Smetanova 220, 332 02 Starý Plzenec, Česká republika","brut","obsahuje siřičitany",0.75]
["L1314164;L1314063;L1314062;L1313316;L1313316;L1313316","8594000941446",5104000,"Bohemia Sekt Prestige demi sec 0,75","jakostní šumivé víno","xx",12.5,"Vyrobeno v České republice","Výrobce BOHEMIA SEKT,s.r.o. Smetanova 220, 332 02 Starý Plzenec, Česká republika","demi sec","obsahuje siřičitany",0.75]
["L1314168;L1314168;L1314168;L1314062",8594000941316,5105000,"Bohemia Sekt Prestige Chardonnay 0,75 l","jakostní šumivé víno","xx",13,"Vyrobeno v České republice","Výrobce BOHEMIA SEKT,s.r.o. Smetanova 220, 332 02 Starý Plzenec, Česká republika","brut","obsahuje siřičitany",0.75]
["L1314203;L1314051;L1314051;L1313214;","8594000941668",5102200,"Bohemia Sekt brut 0,2 l","jakostní šumivé víno","xx",12,"Vyrobeno v České republice","Výrobce BOHEMIA SEKT,s.r.o. Smetanova 220, 332 02 Starý Plzenec, Česká republika","brut","obsahuje siřičitany",0.2]
["L1314210;L1314209;L1313225;L1314210;L1314213;L1313225;",8594000941583,5100300,"Bohemia Sekt demi sec 1,5 l","jakostní šumivé víno","xx",11,"Vyrobeno v České republice","Výrobce BOHEMIA SEKT,s.r.o. Smetanova 220, 332 02 Starý Plzenec, Česká republika","demi sec","obsahuje siřičitany",1.5]
["L1314211;L1314225;L1313079;L1313079;L1313225;L1313079;L1313225",8594000941590,5102300,"Bohemia Sekt brut 1,5 l","jakostní šumivé víno","xx",12,"Vyrobeno v České republice","Výrobce BOHEMIA SEKT,s.r.o. Smetanova 220, 332 02 Starý Plzenec, Česká republika","brut","obsahuje siřičitany",1.5]
["L1392342;L1392339",8594000941613,5104500,"Bohemia Sekt Prestige rosé brut 0,75 l/dárk","jakostní šumivé víno","xx",12.5,"Vyrobeno v České republice","Výrobce BOHEMIA SEKT,s.r.o. Smetanova 220, 332 02 Starý Plzenec, Česká republika","brut","obsahuje siřičitany",0.75]
["L1393072;L1393073;L1392227;L1393071;L1393072",8594000941286,5100225,"Bohemia Sekt demi sec 0,2 l-6 pack","jakostní šumivé víno","xx",11,"Vyrobeno v České republice","Výrobce BOHEMIA SEKT,s.r.o. Smetanova 220, 332 02 Starý Plzenec, Česká republika","demi sec","obsahuje siřičitany",0.2]
["L1393294;L1393323;L1394157;L1393324;L1393325;L1393294",8594000941378,5105025,"Bohemia Sekt Prestige Chardonnay 0,75 l/ dárk","jakostní šumivé víno","xx",13,"Vyrobeno v České republice","Výrobce BOHEMIA SEKT,s.r.o. Smetanova 220, 332 02 Starý Plzenec, Česká republika","brut","obsahuje siřičitany",0.75]
["L1393329;L1393330;L1394157",8594000941514,5104900,"Bohemia Sekt Prestige brut 0,75 l / dárk","jakostní šumivé víno","xx",13,"Vyrobeno v České republice","Výrobce BOHEMIA SEKT,s.r.o. Smetanova 220, 332 02 Starý Plzenec, Česká republika","brut","obsahuje siřičitany",0.75]
["L1393353;L1393345;L1393330;L1393333",8594000941637,5104400,"Bohemia Sekt Prestige  brut 0,75 l+ 2 sklenky","jakostní šumivé víno","xx",13,"Vyrobeno v České republice","Výrobce BOHEMIA SEKT,s.r.o. Smetanova 220, 332 02 Starý Plzenec, Česká republika","brut","obsahuje siřičitany",0.75]
["L1394077;L1394078;L1314076;L1393281",8594000941279,5102725,"Bohemia Chardonnay brut 0,75 l / dárk.","jakostní šumivé víno","xx",12.5,"Vyrobeno v České republice","Výrobce BOHEMIA SEKT,s.r.o. Smetanova 220, 332 02 Starý Plzenec, Česká republika","brut","obsahuje siřičitany",0.75]
["L1394157;L1392328",8594000941507,5104800,"Bohemia Sekt Prestige demi sec 0,75 / d.","jakostní šumivé víno","xx",12.5,"Vyrobeno v České republice","Výrobce BOHEMIA SEKT,s.r.o. Smetanova 220, 332 02 Starý Plzenec, Česká republika","demi sec","obsahuje siřičitany",0.75]
["L1394170;L1394140;L1394146",8594000941682,5100800,"Bohemia Sekt demi sec 3 l / dárk.","jakostní šumivé víno","xx",11,"Vyrobeno v České republice","Výrobce BOHEMIA SEKT,s.r.o. Smetanova 220, 332 02 Starý Plzenec, Česká republika","demi sec","obsahuje siřičitany",3]
[null,8594000941019,5100026,"Bohemia Sekt demi sec 0,75 l on-pack","jakostní šumivé víno","xx",11,"Vyrobeno v České republice","Výrobce BOHEMIA SEKT,s.r.o. Smetanova 220, 332 02 Starý Plzenec, Česká republika","demi sec","obsahuje siřičitany",0.75]
["L1112347",4003310112070,1120765,"Fürst von Metternich trocken 0,75 l","šumivé víno","xx","12,5","Vyrobeno v Německu","Výrobce Furst von Metternich Sektkellerei GMBH, D-65366 Johannisberg, Německo","brut","obsahuje siřičitany",0.75]
["L1114168;L1114112",4003310011632,1524600,"Henkell Trocken MQB 0,75 l","šumivé víno","xx","11,5","Vyrobeno v Německu","Výrobce Henkell & Co. Sektkellerei KG, Wiesbaden, Německo","demi sec","obsahuje siřičitany",0.75]
[null,4003310152458,1524565,"Henkell Trocken 0,75 l","šumivé víno","xx","11,5","Vyrobeno v Německu","Výrobce Henkell & Co. Sektkellerei KG, Wiesbaden, Německo","demi sec","obsahuje siřičitany",0.75]
[null,4003310011632,1524624,"Henkell Trocken MQB 0,75 l-IC","šumivé víno","xx","11,5","Vyrobeno v Německu","Výrobce Henkell & Co. Sektkellerei KG, Wiesbaden, Německo","demi sec","obsahuje siřičitany",0.75]
[null,4003310164543,1645465,"Henkell Blanc de Blancs 0,75 l","šumivé víno","xx","11,5","Vyrobeno v Německu","Výrobce Henkell & Co. Sektkellerei KG, Wiesbaden, Německo","demi sec","obsahuje siřičitany",0.75]
["L132912310;L133012288;L133012288;",8588000002269,5021100,"Hubert Club demi sec 0,75 l","šumivé víno","xx","11,5","Vyrobeno na Slovensku","Výrobce Hubert J.E, spol.s.r.o., Sereď, Slovensko","demi sec","obsahuje siřičitany",0.75]
["L142093030;L142093030",8588000002412,5026100,"Hubert de Luxe 0,75 l","šumivé víno","xx",null,"Vyrobeno na Slovensku","Výrobce Hubert J.E, spol.s.r.o., Sereď, Slovensko",null,"obsahuje siřičitany",0.75]
["L148301027;L132301198;L137401283;L148301027",8588000002238,5020200,"Hubert Club brut 0,75 l","šumivé víno","xx",12,"Vyrobeno na Slovensku","Výrobce Hubert J.E, spol.s.r.o., Sereď, Slovensko","brut","obsahuje siřičitany",0.75]
["L14188;L14186;L14104",8006220001997,6743565,"Prosecco Extra Dry Prestige Spumanti 0,75l","šumivé víno","xx",11,"Vrobeno v Itálii","Výrobce Mionetto Spa, Valdobiadene, Itálie","brut","obsahuje siřičitany",0.75]
[null,5905629087010,6733800,"Valdobbiadene D.O.CMO 0,75 l","šumivé víno","xx",11,"Vrobeno v Itálii","Výrobce Mionetto Spa, Valdobiadene, Itálie","brut","obsahuje siřičitany",0.75]
[null,8006220303299,6733865,"Valdobbiadene D.O.CMO 0,75 l","šumivé víno","xx",11,"Vrobeno v Itálii","Výrobce Mionetto Spa, Valdobiadene, Itálie","brut","obsahuje siřičitany",0.75]
[null,4003310272019,2720165,"Carstens bio 0,75l","sekt z hroznů z biologického pěstování","xx","11","Vyrobeno v Německu","Výrobce Sektkellerei Carstens GMBH, Neustadt/Weinstrasse, Německo","brut","obsahuje siřičitany",0.75]
["L1314008;L1314079;L1314135;L1314147",4003310501812,5018100,"Hubert Club demi sec 0,2 l","šumivé víno","xx","11,5","Vyrobeno na Slovensku","Výrobce Hubert J.E, spol.s.r.o., Sereď, Slovensko","demi sec","obsahuje siřičitany",0.75]

{"sheet":"List4","index":5,"n_rows":297,"n_cols":14,"rows_kept":297,"cut":false,"hidden":true,"merged":[]}
["L1352312","8586015320620",5250700,"Gaudium Vinum červené NK","víno","xx",10,"víno z Evropského společenství","Baleno v BOHEMIA SEKT,s.r.o. Smetanova 220, 332 02 Starý Plzenec, Česká republika","polosuché","obsahuje siřičitany","1",null,2]
["L1353121","8586015320620",5250700,"Gaudium Vinum červené NK","víno","xx",10,"víno z Evropského společenství","Baleno v BOHEMIA SEKT,s.r.o. Smetanova 220, 332 02 Starý Plzenec, Česká republika","polosuché","obsahuje siřičitany","1",null,3]
["L1354009",8594002880415,5253100,"Poezie červená  1NK -ČMV","víno","xx",10,"víno z Evropského společenství","Baleno v BOHEMIA SEKT,s.r.o. Smetanova 220, 332 02 Starý Plzenec, Česká republika","polosuché","obsahuje siřičitany","1",null,3]
["L1354175",8594002880408,5253000,"Poezie bílá 1NK -ČMV","víno","xx",10,"víno z Evropského společenství","Baleno v BOHEMIA SEKT,s.r.o. Smetanova 220, 332 02 Starý Plzenec, Česká republika","polosuché","obsahuje siřičitany","1",null,4]
["L13127",8594000941071,2840165,"Alfred Gratien Brut Classique","champagne","xx","12,5","Vyrobeno ve Francii","Výrobce Alfred Gratien, Epernay, Francie","brut","obsahuje siřičitany",0.75,null,5]
["L1323920",3594580000705,2836365,"Alfred Gratien Rose Brut Classique","champagne","xx","12,5","Vyrobeno ve Francii","Výrobce Alfred Gratien, Epernay, Francie","brut","obsahuje siřičitany",0.75,null,6]
["L1164056",8594000941118,5101600,"Bohemia Sekt nealkoholický 0,75 l","nealkoholické šumivé víno bílé","xx","0","Vyrobeno v Německu","Výrobce BOHEMIA SEKT,s.r.o. Smetanova 220, 332 02 Starý Plzenec, Česká republika","doux","obsahuje siřičitany",0.75,null,7]
["L1164056",8594000941118,5101600,"Bohemia Sekt nealkoholický 0,75 l","nealkoholické šumivé víno bílé","xx","0","Vyrobeno v Německu","Výrobce BOHEMIA SEKT,s.r.o. Smetanova 220, 332 02 Starý Plzenec, Česká republika","doux","obsahuje siřičitany",0.75]
["L1164057",8594000941118,5101600,"Bohemia Sekt nealkoholický 0,75 l","nealkoholické šumivé víno bílé","xx","0","Vyrobeno v Německu","Výrobce BOHEMIA SEKT,s.r.o. Smetanova 220, 332 02 Starý Plzenec, Česká republika","doux","obsahuje siřičitany",0.75,null,5]
["L1313280",8594000941118,5101600,"Bohemia Sekt nealkoholický 0,75 l","nealkoholické šumivé víno bílé","xx","0","Vyrobeno v Německu","Výrobce BOHEMIA SEKT,s.r.o. Smetanova 220, 332 02 Starý Plzenec, Česká republika","doux","obsahuje siřičitany",0.75]
["L1314142",8594000941118,5101600,"Bohemia Sekt nealkoholický 0,75 l","nealkoholické šumivé víno bílé","xx","0","Vyrobeno v Německu","Výrobce BOHEMIA SEKT,s.r.o. Smetanova 220, 332 02 Starý Plzenec, Česká republika","doux","obsahuje siřičitany",0.75]
["L1311320",8594002881931,5108100,"Motýl sekt doux 0,75 l","jakostní šumivé víno","xx",11,"Vyrobeno v České republice","Výrobce BOHEMIA SEKT,s.r.o. Smetanova 220, 332 02 Starý Plzenec, Česká republika","doux","obsahuje siřičitany",0.75,null,8]
["L1310335",8594002881931,5108100,"Motýl sekt doux 0,75 l","jakostní šumivé víno","xx",11,"Vyrobeno v České republice","Výrobce BOHEMIA SEKT,s.r.o. Smetanova 220, 332 02 Starý Plzenec, Česká republika","doux","obsahuje siřičitany",0.75]
["L1311320",8594002881931,5108100,"Motýl sekt doux 0,75 l","jakostní šumivé víno","xx",11,"Vyrobeno v České republice","Výrobce BOHEMIA SEKT,s.r.o. Smetanova 220, 332 02 Starý Plzenec, Česká republika","doux","obsahuje siřičitany",0.75,null,6]
["L1311320",8594002881931,5108100,"Motýl sekt doux 0,75 l","jakostní šumivé víno","xx",11,"Vyrobeno v České republice","Výrobce BOHEMIA SEKT,s.r.o. Smetanova 220, 332 02 Starý Plzenec, Česká republika","doux","obsahuje siřičitany",0.75,null,7]
["L1310335",8594002881931,5108100,"Motýl sekt doux 0,75 l","jakostní šumivé víno","xx",11,"Vyrobeno v České republice","Výrobce BOHEMIA SEKT,s.r.o. Smetanova 220, 332 02 Starý Plzenec, Česká republika","doux","obsahuje siřičitany",0.75]
["L1313035",8594000941354,5101100,"Bohemia Rose demi sec 0,375 l","jakostní šumivé víno","xx",11,"Vyrobeno v České republice","Výrobce BOHEMIA SEKT,s.r.o. Smetanova 220, 332 02 Starý Plzenec, Česká republika","demi sec","obsahuje siřičitany",0.375,null,9]
["L1313035",8594000941354,5101100,"Bohemia Rose demi sec 0,375 l","jakostní šumivé víno","xx",11,"Vyrobeno v České republice","Výrobce BOHEMIA SEKT,s.r.o. Smetanova 220, 332 02 Starý Plzenec, Česká republika","demi sec","obsahuje siřičitany",0.375,null,8]
["L1310235",8594000941354,5101100,"Bohemia Rose demi sec 0,375 l","jakostní šumivé víno","xx",11,"Vyrobeno v České republice","Výrobce BOHEMIA SEKT,s.r.o. Smetanova 220, 332 02 Starý Plzenec, Česká republika","demi sec","obsahuje siřičitany",0.375]
["L1313164",8594000941217,5102500,"Bohemia Sekt červ. 0,75 l","jakostní šumivé víno","xx",12.5,"Vyrobeno v České republice","Výrobce BOHEMIA SEKT,s.r.o. Smetanova 220, 332 02 Starý Plzenec, Česká republika","demi sec","obsahuje siřičitany",0.75,null,10]
["L1313164",8594000941217,5102500,"Bohemia Sekt červ. 0,75 l","jakostní šumivé víno","xx",12.5,"Vyrobeno v České republice","Výrobce BOHEMIA SEKT,s.r.o. Smetanova 220, 332 02 Starý Plzenec, Česká republika","demi sec","obsahuje siřičitany",0.75,null,9]
["L1313164",8594000941217,5102500,"Bohemia Sekt červ. 0,75 l","jakostní šumivé víno","xx",12.5,"Vyrobeno v České republice","Výrobce BOHEMIA SEKT,s.r.o. Smetanova 220, 332 02 Starý Plzenec, Česká republika","demi sec","obsahuje siřičitany",0.75]
["L1313197",8594000941323,5100100,"Bohemia Sekt demi sec 0,375 l","jakostní šumivé víno","xx",11,"Vyrobeno v České republice","Výrobce BOHEMIA SEKT,s.r.o. Smetanova 220, 332 02 Starý Plzenec, Česká republika","demi sec","obsahuje siřičitany",0.375,null,11]
["L1314030",8594000941323,5100100,"Bohemia Sekt demi sec 0,375 l","jakostní šumivé víno","xx",11,"Vyrobeno v České republice","Výrobce BOHEMIA SEKT,s.r.o. Smetanova 220, 332 02 Starý Plzenec, Česká republika","demi sec","obsahuje siřičitany",0.375]
["L1314213",8594000941323,5100100,"Bohemia Sekt demi sec 0,375 l","jakostní šumivé víno","xx",11,"Vyrobeno v České republice","Výrobce BOHEMIA SEKT,s.r.o. Smetanova 220, 332 02 Starý Plzenec, Česká republika","demi sec","obsahuje siřičitany",0.375]
["L1314034",8594000941323,5100100,"Bohemia Sekt demi sec 0,375 l","jakostní šumivé víno","xx",11,"Vyrobeno v České republice","Výrobce BOHEMIA SEKT,s.r.o. Smetanova 220, 332 02 Starý Plzenec, Česká republika","demi sec","obsahuje siřičitany",0.375]
["L1313196",8594000941323,5100100,"Bohemia Sekt demi sec 0,375 l","jakostní šumivé víno","xx",11,"Vyrobeno v České republice","Výrobce BOHEMIA SEKT,s.r.o. Smetanova 220, 332 02 Starý Plzenec, Česká republika","demi sec","obsahuje siřičitany",0.375]
["L1313119",8594000941323,5100100,"Bohemia Sekt demi sec 0,375 l","jakostní šumivé víno","xx",11,"Vyrobeno v České republice","Výrobce BOHEMIA SEKT,s.r.o. Smetanova 220, 332 02 Starý Plzenec, Česká republika","demi sec","obsahuje siřičitany",0.375]
["L1313196",8594000941323,5100100,"Bohemia Sekt demi sec 0,375 l","jakostní šumivé víno","xx",11,"Vyrobeno v České republice","Výrobce BOHEMIA SEKT,s.r.o. Smetanova 220, 332 02 Starý Plzenec, Česká republika","demi sec","obsahuje siřičitany",0.375]
["L1313197",8594000941323,5100100,"Bohemia Sekt demi sec 0,375 l","jakostní šumivé víno","xx",11,"Vyrobeno v České republice","Výrobce BOHEMIA SEKT,s.r.o. Smetanova 220, 332 02 Starý Plzenec, Česká republika","demi sec","obsahuje siřičitany",0.375]
["L1314030",8594000941323,5100100,"Bohemia Sekt demi sec 0,375 l","jakostní šumivé víno","xx",11,"Vyrobeno v České republice","Výrobce BOHEMIA SEKT,s.r.o. Smetanova 220, 332 02 Starý Plzenec, Česká republika","demi sec","obsahuje siřičitany",0.375]
["L1313196",8594000941323,5100100,"Bohemia Sekt demi sec 0,375 l","jakostní šumivé víno","xx",11,"Vyrobeno v České republice","Výrobce BOHEMIA SEKT,s.r.o. Smetanova 220, 332 02 Starý Plzenec, Česká republika","demi sec","obsahuje siřičitany",0.375]
["L1313197",8594000941323,5100100,"Bohemia Sekt demi sec 0,375 l","jakostní šumivé víno","xx",11,"Vyrobeno v České republice","Výrobce BOHEMIA SEKT,s.r.o. Smetanova 220, 332 02 Starý Plzenec, Česká republika","demi sec","obsahuje siřičitany",0.375]
["L1313198",8594000941323,5100100,"Bohemia Sekt demi sec 0,375 l","jakostní šumivé víno","xx",11,"Vyrobeno v České republice","Výrobce BOHEMIA SEKT,s.r.o. Smetanova 220, 332 02 Starý Plzenec, Česká republika","demi sec","obsahuje siřičitany",0.375,null,10]
["L1313206",8594000941323,5100100,"Bohemia Sekt demi sec 0,375 l","jakostní šumivé víno","xx",11,"Vyrobeno v České republice","Výrobce BOHEMIA SEKT,s.r.o. Smetanova 220, 332 02 Starý Plzenec, Česká republika","demi sec","obsahuje siřičitany",0.375]
["L1313213",8594000941231,5102286,"Bohemia Sekt brut 0,2 l / Makro 6 pack","jakostní šumivé víno","xx",12,"Vyrobeno v České republice","Výrobce BOHEMIA SEKT,s.r.o. Smetanova 220, 332 02 Starý Plzenec, Česká republika","brut","obsahuje siřičitany",0.2,null,12]
["L1314050",8594000941231,5102286,"Bohemia Sekt brut 0,2 l / Makro 6 pack","jakostní šumivé víno","xx",12,"Vyrobeno v České republice","Výrobce BOHEMIA SEKT,s.r.o. Smetanova 220, 332 02 Starý Plzenec, Česká republika","brut","obsahuje siřičitany",0.2]
["L1313326",8594000941231,5102286,"Bohemia Sekt brut 0,2 l / Makro 6 pack","jakostní šumivé víno","xx",12,"Vyrobeno v České republice","Výrobce BOHEMIA SEKT,s.r.o. Smetanova 220, 332 02 Starý Plzenec, Česká republika","brut","obsahuje siřičitany",0.2,null,11]
["L1314078",8594000941231,5102286,"Bohemia Sekt brut 0,2 l / Makro 6 pack","jakostní šumivé víno","xx",12,"Vyrobeno v České republice","Výrobce BOHEMIA SEKT,s.r.o. Smetanova 220, 332 02 Starý Plzenec, Česká republika","brut","obsahuje siřičitany",0.2]
["L1313219",8594000941224,5100286,"Bohemia Sekt demi sec 0,2 l /Makro 6 pack","jakostní šumivé víno","xx",11,"Vyrobeno v České republice","Výrobce BOHEMIA SEKT,s.r.o. Smetanova 220, 332 02 Starý Plzenec, Česká republika","demi sec","obsahuje siřičitany",0.2,null,13]
["L1313220",8594000941224,5100286,"Bohemia Sekt demi sec 0,2 l /Makro 6 pack","jakostní šumivé víno","xx",11,"Vyrobeno v České republice","Výrobce BOHEMIA SEKT,s.r.o. Smetanova 220, 332 02 Starý Plzenec, Česká republika","demi sec","obsahuje siřičitany",0.2]
["L1313219",8594000941224,5100286,"Bohemia Sekt demi sec 0,2 l /Makro 6 pack","jakostní šumivé víno","xx",11,"Vyrobeno v České republice","Výrobce BOHEMIA SEKT,s.r.o. Smetanova 220, 332 02 Starý Plzenec, Česká republika","demi sec","obsahuje siřičitany",0.2,null,12]
["L1313220",8594000941224,5100286,"Bohemia Sekt demi sec 0,2 l /Makro 6 pack","jakostní šumivé víno","xx",11,"Vyrobeno v České republice","Výrobce BOHEMIA SEKT,s.r.o. Smetanova 220, 332 02 Starý Plzenec, Česká republika","demi sec","obsahuje siřičitany",0.2]
["L1313231",8594044830768,5107000,"Chateau Bzenec brut  0,75 l","jakostní šumivé víno s.o.","14A1-13-2",12.5,"Sekt z České republiky","Výrobce BOHEMIA SEKT,s.r.o. Smetanova 220, 332 02 Starý Plzenec, Česká republika","brut","obsahuje siřičitany",0.75,null,14]
["L1313315",8594044830768,5107000,"Chateau Bzenec brut  0,75 l","jakostní šumivé víno s.o.","14A1-13-2",12.5,"Sekt z České republiky","Výrobce BOHEMIA SEKT,s.r.o. Smetanova 220, 332 02 Starý Plzenec, Česká republika","brut","obsahuje siřičitany",0.75]
["L1314162",8594044830768,5107000,"Chateau Bzenec brut  0,75 l","jakostní šumivé víno s.o.","14A1-13-2",12.5,"Sekt z České republiky","Výrobce BOHEMIA SEKT,s.r.o. Smetanova 220, 332 02 Starý Plzenec, Česká republika","brut","obsahuje siřičitany",0.75]
["L1313231",8594044830768,5107000,"Chateau Bzenec brut  0,75 l","jakostní šumivé víno s.o.","14A1-13-2",12.5,"Sekt z České republiky","Výrobce BOHEMIA SEKT,s.r.o. Smetanova 220, 332 02 Starý Plzenec, Česká republika","brut","obsahuje siřičitany",0.75,null,13]
["L1313231",8594044830768,5107000,"Chateau Bzenec brut  0,75 l","jakostní šumivé víno s.o.","14A1-13-2",12.5,"Sekt z České republiky","Výrobce BOHEMIA SEKT,s.r.o. Smetanova 220, 332 02 Starý Plzenec, Česká republika","brut","obsahuje siřičitany",0.75,null,13]
["L1313238",8594002881962,5108400,"Motýl sekt suchý 0,75 l","jakostní šumivé víno","xx",11.5,"Vyrobeno v České republice","Výrobce BOHEMIA SEKT,s.r.o. Smetanova 220, 332 02 Starý Plzenec, Česká republika","suchý","obsahuje siřičitany",0.75,null,15]
["L1314139",8594002881962,5108400,"Motýl sekt suchý 0,75 l","jakostní šumivé víno","xx",11.5,"Vyrobeno v České republice","Výrobce BOHEMIA SEKT,s.r.o. Smetanova 220, 332 02 Starý Plzenec, Česká republika","suchý","obsahuje siřičitany",0.75]
["L1393310",8594002881962,5108400,"Motýl sekt suchý 0,75 l","jakostní šumivé víno","xx",11.5,"Vyrobeno v České republice","Výrobce BOHEMIA SEKT,s.r.o. Smetanova 220, 332 02 Starý Plzenec, Česká republika","suchý","obsahuje siřičitany",0.75,null,14]
["L1393310",8594002881962,5108400,"Motýl sekt suchý 0,75 l","jakostní šumivé víno","xx",11.5,"Vyrobeno v České republice","Výrobce BOHEMIA SEKT,s.r.o. Smetanova 220, 332 02 Starý Plzenec, Česká republika","suchý","obsahuje siřičitany",0.75,null,14]
["L1313282",8594000941101,5102600,"Bohemia Sekt sec 0,75 l","jakostní šumivé víno","xx",11,"Vyrobeno v České republice","Výrobce BOHEMIA SEKT,s.r.o. Smetanova 220, 332 02 Starý Plzenec, Česká republika","sec","obsahuje siřičitany",0.75,null,16]
["L1313100",8594000941101,5102600,"Bohemia Sekt sec 0,75 l","jakostní šumivé víno","xx",11,"Vyrobeno v České republice","Výrobce BOHEMIA SEKT,s.r.o. Smetanova 220, 332 02 Starý Plzenec, Česká republika","sec","obsahuje siřičitany",0.75]
["L1313282",8594000941101,5102600,"Bohemia Sekt sec 0,75 l","jakostní šumivé víno","xx",11,"Vyrobeno v České republice","Výrobce BOHEMIA SEKT,s.r.o. Smetanova 220, 332 02 Starý Plzenec, Česká republika","sec","obsahuje siřičitany",0.75,null,15]
["L1313282",8594000941101,5102600,"Bohemia Sekt sec 0,75 l","jakostní šumivé víno","xx",11,"Vyrobeno v České republice","Výrobce BOHEMIA SEKT,s.r.o. Smetanova 220, 332 02 Starý Plzenec, Česká republika","sec","obsahuje siřičitany",0.75,null,15]
["L1313316",8594000941248,5105100,"Chateau Radyně brut 0,75 l","jakostní šumivé víno","xx",13,"Vyrobeno v České republice","Výrobce BOHEMIA SEKT,s.r.o. Smetanova 220, 332 02 Starý Plzenec, Česká republika","brut","obsahuje siřičitany",0.75,null,17]
["L1313315",8594000941248,5105100,"Chateau Radyně brut 0,75 l","jakostní šumivé víno","xx",13,"Vyrobeno v České republice","Výrobce BOHEMIA SEKT,s.r.o. Smetanova 220, 332 02 Starý Plzenec, Česká republika","brut","obsahuje siřičitany",0.75]
["L1314065",8594000941248,5105100,"Chateau Radyně brut 0,75 l","jakostní šumivé víno","xx",13,"Vyrobeno v České republice","Výrobce BOHEMIA SEKT,s.r.o. Smetanova 220, 332 02 Starý Plzenec, Česká republika","brut","obsahuje siřičitany",0.75]
["L1314163",8594000941248,5105100,"Chateau Radyně brut 0,75 l","jakostní šumivé víno","xx",13,"Vyrobeno v České republice","Výrobce BOHEMIA SEKT,s.r.o. Smetanova 220, 332 02 Starý Plzenec, Česká republika","brut","obsahuje siřičitany",0.75]
["L1313050",8594000941248,5105100,"Chateau Radyně brut 0,75 l","jakostní šumivé víno","xx",13,"Vyrobeno v České republice","Výrobce BOHEMIA SEKT,s.r.o. Smetanova 220, 332 02 Starý Plzenec, Česká republika","brut","obsahuje siřičitany",0.75]
["L1313315",8594000941248,5105100,"Chateau Radyně brut 0,75 l","jakostní šumivé víno","xx",13,"Vyrobeno v České republice","Výrobce BOHEMIA SEKT,s.r.o. Smetanova 220, 332 02 Starý Plzenec, Česká republika","brut","obsahuje siřičitany",0.75]
["L1313049",8594000941248,5105100,"Chateau Radyně brut 0,75 l","jakostní šumivé víno","xx",13,"Vyrobeno v České republice","Výrobce BOHEMIA SEKT,s.r.o. Smetanova 220, 332 02 Starý Plzenec, Česká republika","brut","obsahuje siřičitany",0.75,null,16]
["L1313315",8594000941248,5105100,"Chateau Radyně brut 0,75 l","jakostní šumivé víno","xx",13,"Vyrobeno v České republice","Výrobce BOHEMIA SEKT,s.r.o. Smetanova 220, 332 02 Starý Plzenec, Česká republika","brut","obsahuje siřičitany",0.75,null,17]
["L1313317",8594000941460,5104245,"Bohemia Sekt Prest. brut 0,75 l / B Cors","jakostní šumivé víno","xx",13,"Vyrobeno v České republice","Výrobce BOHEMIA SEKT,s.r.o. Smetanova 220, 332 02 Starý Plzenec, Česká republika","brut","obsahuje siřičitany",0.75,null,18]
["L1313319",8594000941538,5104300,"Bohemia Sekt Prestige rosé brut 0,75 l","jakostní šumivé víno","xx",12.5,"Vyrobeno v České republice","Výrobce BOHEMIA SEKT,s.r.o. Smetanova 220, 332 02 Starý Plzenec, Česká republika","brut","obsahuje siřičitany",0.75,null,19]
["L1313318",8594000941538,5104300,"Bohemia Sekt Prestige rosé brut 0,75 l","jakostní šumivé víno","xx",12.5,"Vyrobeno v České republice","Výrobce BOHEMIA SEKT,s.r.o. Smetanova 220, 332 02 Starý Plzenec, Česká republika","brut","obsahuje siřičitany",0.75]
["L1313056",8594000941538,5104300,"Bohemia Sekt Prestige rosé brut 0,75 l","jakostní šumivé víno","xx",12.5,"Vyrobeno v České republice","Výrobce BOHEMIA SEKT,s.r.o. Smetanova 220, 332 02 Starý Plzenec, Česká republika","brut","obsahuje siřičitany",0.75]
["L1312235",8594000941538,5104300,"Bohemia Sekt Prestige rosé brut 0,75 l","jakostní šumivé víno","xx",12.5,"Vyrobeno v České republice","Výrobce BOHEMIA SEKT,s.r.o. Smetanova 220, 332 02 Starý Plzenec, Česká republika","brut","obsahuje siřičitany",0.75]
["L1313056",8594000941538,5104300,"Bohemia Sekt Prestige rosé brut 0,75 l","jakostní šumivé víno","xx",12.5,"Vyrobeno v České republice","Výrobce BOHEMIA SEKT,s.r.o. Smetanova 220, 332 02 Starý Plzenec, Česká republika","brut","obsahuje siřičitany",0.75,null,18]
["L1393310",8594000941538,5104300,"Bohemia Sekt Prestige rosé brut 0,75 l","jakostní šumivé víno","xx",12.5,"Vyrobeno v České republice","Výrobce BOHEMIA SEKT,s.r.o. Smetanova 220, 332 02 Starý Plzenec, Česká republika","brut","obsahuje siřičitany",0.75,null,18]
["L1313322",8594000941064,5101500,"Bohemia Sekt rosé brut 0,75","jakostní šumivé víno","xx",11.5,"Vyrobeno v České republice","Výrobce BOHEMIA SEKT,s.r.o. Smetanova 220, 332 02 Starý Plzenec, Česká republika","brut","obsahuje siřičitany",0.75,null,20]
["L1313322",8594000941064,5101500,"Bohemia Sekt rosé brut 0,75","jakostní šumivé víno","xx",11.5,"Vyrobeno v České republice","Výrobce BOHEMIA SEKT,s.r.o. Smetanova 220, 332 02 Starý Plzenec, Česká republika","brut","obsahuje siřičitany",0.75,null,19]
["L1313322",8594000941064,5101500,"Bohemia Sekt rosé brut 0,75","jakostní šumivé víno","xx",11.5,"Vyrobeno v České republice","Výrobce BOHEMIA SEKT,s.r.o. Smetanova 220, 332 02 Starý Plzenec, Česká republika","brut","obsahuje siřičitany",0.75,null,19]
["L1313323",8594000941040,5101000,"Bohemia Rose demi sec 0,75 l","jakostní šumivé víno","xx",11,"Vyrobeno v České republice","Výrobce BOHEMIA SEKT,s.r.o. Smetanova 220, 332 02 Starý Plzenec, Česká republika","demi sec","obsahuje siřičitany",0.75,null,21]
["L1313324",8594000941040,5101000,"Bohemia Rose demi sec 0,75 l","jakostní šumivé víno","xx",11,"Vyrobeno v České republice","Výrobce BOHEMIA SEKT,s.r.o. Smetanova 220, 332 02 Starý Plzenec, Česká republika","demi sec","obsahuje siřičitany",0.75]
["L1314014",8594000941040,5101000,"Bohemia Rose demi sec 0,75 l","jakostní šumivé víno","xx",11,"Vyrobeno v České republice","Výrobce BOHEMIA SEKT,s.r.o. Smetanova 220, 332 02 Starý Plzenec, Česká republika","demi sec","obsahuje siřičitany",0.75]
["L1314013",8594000941040,5101000,"Bohemia Rose demi sec 0,75 l","jakostní šumivé víno","xx",11,"Vyrobeno v České republice","Výrobce BOHEMIA SEKT,s.r.o. Smetanova 220, 332 02 Starý Plzenec, Česká republika","demi sec","obsahuje siřičitany",0.75]
["L1314153",8594000941040,5101000,"Bohemia Rose demi sec 0,75 l","jakostní šumivé víno","xx",11,"Vyrobeno v České republice","Výrobce BOHEMIA SEKT,s.r.o. Smetanova 220, 332 02 Starý Plzenec, Česká republika","demi sec","obsahuje siřičitany",0.75]
["L1314154",8594000941040,5101000,"Bohemia Rose demi sec 0,75 l","jakostní šumivé víno","xx",11,"Vyrobeno v České republice","Výrobce BOHEMIA SEKT,s.r.o. Smetanova 220, 332 02 Starý Plzenec, Česká republika","demi sec","obsahuje siřičitany",0.75]
["L1314135",8594000941040,5101000,"Bohemia Rose demi sec 0,75 l","jakostní šumivé víno","xx",11,"Vyrobeno v České republice","Výrobce BOHEMIA SEKT,s.r.o. Smetanova 220, 332 02 Starý Plzenec, Česká republika","demi sec","obsahuje siřičitany",0.75]
["L1314134",8594000941040,5101000,"Bohemia Rose demi sec 0,75 l","jakostní šumivé víno","xx",11,"Vyrobeno v České republice","Výrobce BOHEMIA SEKT,s.r.o. Smetanova 220, 332 02 Starý Plzenec, Česká republika","demi sec","obsahuje siřičitany",0.75]
["L1314147",8594000941040,5101000,"Bohemia Rose demi sec 0,75 l","jakostní šumivé víno","xx",11,"Vyrobeno v České republice","Výrobce BOHEMIA SEKT,s.r.o. Smetanova 220, 332 02 Starý Plzenec, Česká republika","demi sec","obsahuje siřičitany",0.75]
["L1314014",8594000941040,5101000,"Bohemia Rose demi sec 0,75 l","jakostní šumivé víno","xx",11,"Vyrobeno v České republice","Výrobce BOHEMIA SEKT,s.r.o. Smetanova 220, 332 02 Starý Plzenec, Česká republika","demi sec","obsahuje siřičitany",0.75]
["L1314134",8594000941040,5101000,"Bohemia Rose demi sec 0,75 l","jakostní šumivé víno","xx",11,"Vyrobeno v České republice","Výrobce BOHEMIA SEKT,s.r.o. Smetanova 220, 332 02 Starý Plzenec, Česká republika","demi sec","obsahuje siřičitany",0.75]
["L1314153",8594000941040,5101000,"Bohemia Rose demi sec 0,75 l","jakostní šumivé víno","xx",11,"Vyrobeno v České republice","Výrobce BOHEMIA SEKT,s.r.o. Smetanova 220, 332 02 Starý Plzenec, Česká republika","demi sec","obsahuje siřičitany",0.75]
["L1314154",8594000941040,5101000,"Bohemia Rose demi sec 0,75 l","jakostní šumivé víno","xx",11,"Vyrobeno v České republice","Výrobce BOHEMIA SEKT,s.r.o. Smetanova 220, 332 02 Starý Plzenec, Česká republika","demi sec","obsahuje siřičitany",0.75]
["L1313266",8594000941040,5101000,"Bohemia Rose demi sec 0,75 l","jakostní šumivé víno","xx",11,"Vyrobeno v České republice","Výrobce BOHEMIA SEKT,s.r.o. Smetanova 220, 332 02 Starý Plzenec, Česká republika","demi sec","obsahuje siřičitany",0.75]
["L1313322",8594000941040,5101000,"Bohemia Rose demi sec 0,75 l","jakostní šumivé víno","xx",11,"Vyrobeno v České republice","Výrobce BOHEMIA SEKT,s.r.o. Smetanova 220, 332 02 Starý Plzenec, Česká republika","demi sec","obsahuje siřičitany",0.75]
["L1314013",8594000941040,5101000,"Bohemia Rose demi sec 0,75 l","jakostní šumivé víno","xx",11,"Vyrobeno v České republice","Výrobce BOHEMIA SEKT,s.r.o. Smetanova 220, 332 02 Starý Plzenec, Česká republika","demi sec","obsahuje siřičitany",0.75]
["L1314014",8594000941040,5101000,"Bohemia Rose demi sec 0,75 l","jakostní šumivé víno","xx",11,"Vyrobeno v České republice","Výrobce BOHEMIA SEKT,s.r.o. Smetanova 220, 332 02 Starý Plzenec, Česká republika","demi sec","obsahuje siřičitany",0.75]
["L1314153",8594000941040,5101000,"Bohemia Rose demi sec 0,75 l","jakostní šumivé víno","xx",11,"Vyrobeno v České republice","Výrobce BOHEMIA SEKT,s.r.o. Smetanova 220, 332 02 Starý Plzenec, Česká republika","demi sec","obsahuje siřičitany",0.75]
["L1314154",8594000941040,5101000,"Bohemia Rose demi sec 0,75 l","jakostní šumivé víno","xx",11,"Vyrobeno v České republice","Výrobce BOHEMIA SEKT,s.r.o. Smetanova 220, 332 02 Starý Plzenec, Česká republika","demi sec","obsahuje siřičitany",0.75]
["L1313266",8594000941040,5101000,"Bohemia Rose demi sec 0,75 l","jakostní šumivé víno","xx",11,"Vyrobeno v České republice","Výrobce BOHEMIA SEKT,s.r.o. Smetanova 220, 332 02 Starý Plzenec, Česká republika","demi sec","obsahuje siřičitany",0.75]
["L1313324",8594000941040,5101000,"Bohemia Rose demi sec 0,75 l","jakostní šumivé víno","xx",11,"Vyrobeno v České republice","Výrobce BOHEMIA SEKT,s.r.o. Smetanova 220, 332 02 Starý Plzenec, Česká republika","demi sec","obsahuje siřičitany",0.75]
["L1313325",8594000941040,5101000,"Bohemia Rose demi sec 0,75 l","jakostní šumivé víno","xx",11,"Vyrobeno v České republice","Výrobce BOHEMIA SEKT,s.r.o. Smetanova 220, 332 02 Starý Plzenec, Česká republika","demi sec","obsahuje siřičitany",0.75]
["L1314013",8594000941040,5101000,"Bohemia Rose demi sec 0,75 l","jakostní šumivé víno","xx",11,"Vyrobeno v České republice","Výrobce BOHEMIA SEKT,s.r.o. Smetanova 220, 332 02 Starý Plzenec, Česká republika","demi sec","obsahuje siřičitany",0.75]
["L1314014",8594000941040,5101000,"Bohemia Rose demi sec 0,75 l","jakostní šumivé víno","xx",11,"Vyrobeno v České republice","Výrobce BOHEMIA SEKT,s.r.o. Smetanova 220, 332 02 Starý Plzenec, Česká republika","demi sec","obsahuje siřičitany",0.75,null,20]
["L1314153",8594000941040,5101000,"Bohemia Rose demi sec 0,75 l","jakostní šumivé víno","xx",11,"Vyrobeno v České republice","Výrobce BOHEMIA SEKT,s.r.o. Smetanova 220, 332 02 Starý Plzenec, Česká republika","demi sec","obsahuje siřičitany",0.75,null,20]
["L1314029",8594000941385,5102100,"Bohemia Sekt brut 0,375 l","jakostní šumivé víno","xx",12,"Vyrobeno v České republice","Výrobce BOHEMIA SEKT,s.r.o. Smetanova 220, 332 02 Starý Plzenec, Česká republika","brut","obsahuje siřičitany",0.375,null,22]
["L1314028",8594000941385,5102100,"Bohemia Sekt brut 0,375 l","jakostní šumivé víno","xx",12,"Vyrobeno v České republice","Výrobce BOHEMIA SEKT,s.r.o. Smetanova 220, 332 02 Starý Plzenec, Česká republika","brut","obsahuje siřičitany",0.375]
["L1314030",8594000941385,5102100,"Bohemia Sekt brut 0,375 l","jakostní šumivé víno","xx",12,"Vyrobeno v České republice","Výrobce BOHEMIA SEKT,s.r.o. Smetanova 220, 332 02 Starý Plzenec, Česká republika","brut","obsahuje siřičitany",0.375,null,21]
["L1314212",8594000941385,5102100,"Bohemia Sekt brut 0,375 l","jakostní šumivé víno","xx",12,"Vyrobeno v České republice","Výrobce BOHEMIA SEKT,s.r.o. Smetanova 220, 332 02 Starý Plzenec, Česká republika","brut","obsahuje siřičitany",0.375,null,21]
["L1314213",8594000941385,5102100,"Bohemia Sekt brut 0,375 l","jakostní šumivé víno","xx",12,"Vyrobeno v České republice","Výrobce BOHEMIA SEKT,s.r.o. Smetanova 220, 332 02 Starý Plzenec, Česká republika","brut","obsahuje siřičitany",0.375]
["L1314051",8594000941385,5102100,"Bohemia Sekt brut 0,375 l","jakostní šumivé víno","xx",12,"Vyrobeno v České republice","Výrobce BOHEMIA SEKT,s.r.o. Smetanova 220, 332 02 Starý Plzenec, Česká republika","brut","obsahuje siřičitany",0.375]
["L1314211",8594000941385,5102100,"Bohemia Sekt brut 0,375 l","jakostní šumivé víno","xx",12,"Vyrobeno v České republice","Výrobce BOHEMIA SEKT,s.r.o. Smetanova 220, 332 02 Starý Plzenec, Česká republika","brut","obsahuje siřičitany",0.375]
["L1314202",8594000941385,5102100,"Bohemia Sekt brut 0,375 l","jakostní šumivé víno","xx",12,"Vyrobeno v České republice","Výrobce BOHEMIA SEKT,s.r.o. Smetanova 220, 332 02 Starý Plzenec, Česká republika","brut","obsahuje siřičitany",0.375]
["L1314203",8594000941385,5102100,"Bohemia Sekt brut 0,375 l","jakostní šumivé víno","xx",12,"Vyrobeno v České republice","Výrobce BOHEMIA SEKT,s.r.o. Smetanova 220, 332 02 Starý Plzenec, Česká republika","brut","obsahuje siřičitany",0.375]
["L1314028",8594000941385,5102100,"Bohemia Sekt brut 0,375 l","jakostní šumivé víno","xx",12,"Vyrobeno v České republice","Výrobce BOHEMIA SEKT,s.r.o. Smetanova 220, 332 02 Starý Plzenec, Česká republika","brut","obsahuje siřičitany",0.375]
["L1314029",8594000941385,5102100,"Bohemia Sekt brut 0,375 l","jakostní šumivé víno","xx",12,"Vyrobeno v České republice","Výrobce BOHEMIA SEKT,s.r.o. Smetanova 220, 332 02 Starý Plzenec, Česká republika","brut","obsahuje siřičitany",0.375]
["L1314028",8594000941385,5102100,"Bohemia Sekt brut 0,375 l","jakostní šumivé víno","xx",12,"Vyrobeno v České republice","Výrobce BOHEMIA SEKT,s.r.o. Smetanova 220, 332 02 Starý Plzenec, Česká republika","brut","obsahuje siřičitany",0.375]
["L1314048","8594000941651",5100200,"Bohemia Sekt demi sec 0,2 l","jakostní šumivé víno","xx",11,"Vyrobeno v České republice","Výrobce BOHEMIA SEKT,s.r.o. Smetanova 220, 332 02 Starý Plzenec, Česká republika","demi sec","obsahuje siřičitany",0.2,null,23]
["L1314202","8594000941651",5100200,"Bohemia Sekt demi sec 0,2 l","jakostní šumivé víno","xx",11,"Vyrobeno v České republice","Výrobce BOHEMIA SEKT,s.r.o. Smetanova 220, 332 02 Starý Plzenec, Česká republika","demi sec","obsahuje siřičitany",0.2]
["L1314049","8594000941651",5100200,"Bohemia Sekt demi sec 0,2 l","jakostní šumivé víno","xx",11,"Vyrobeno v České republice","Výrobce BOHEMIA SEKT,s.r.o. Smetanova 220, 332 02 Starý Plzenec, Česká republika","demi sec","obsahuje siřičitany",0.2,null,22]
["L1314198","8594000941651",5100200,"Bohemia Sekt demi sec 0,2 l","jakostní šumivé víno","xx",11,"Vyrobeno v České republice","Výrobce BOHEMIA SEKT,s.r.o. Smetanova 220, 332 02 Starý Plzenec, Česká republika","demi sec","obsahuje siřičitany",0.2,null,22]
["L1314197","8594000941651",5100200,"Bohemia Sekt demi sec 0,2 l","jakostní šumivé víno","xx",11,"Vyrobeno v České republice","Výrobce BOHEMIA SEKT,s.r.o. Smetanova 220, 332 02 Starý Plzenec, Česká republika","demi sec","obsahuje siřičitany",0.2]
["L1314044","8594000941651",5100200,"Bohemia Sekt demi sec 0,2 l","jakostní šumivé víno","xx",11,"Vyrobeno v České republice","Výrobce BOHEMIA SEKT,s.r.o. Smetanova 220, 332 02 Starý Plzenec, Česká republika","demi sec","obsahuje siřičitany",0.2]
["L1314048","8594000941651",5100200,"Bohemia Sekt demi sec 0,2 l","jakostní šumivé víno","xx",11,"Vyrobeno v České republice","Výrobce BOHEMIA SEKT,s.r.o. Smetanova 220, 332 02 Starý Plzenec, Česká republika","demi sec","obsahuje siřičitany",0.2]
["L1314050","8594000941651",5100200,"Bohemia Sekt demi sec 0,2 l","jakostní šumivé víno","xx",11,"Vyrobeno v České republice","Výrobce BOHEMIA SEKT,s.r.o. Smetanova 220, 332 02 Starý Plzenec, Česká republika","demi sec","obsahuje siřičitany",0.2]
["L1313219","8594000941651",5100200,"Bohemia Sekt demi sec 0,2 l","jakostní šumivé víno","xx",11,"Vyrobeno v České republice","Výrobce BOHEMIA SEKT,s.r.o. Smetanova 220, 332 02 Starý Plzenec, Česká republika","demi sec","obsahuje siřičitany",0.2]
["L1313224","8594000941651",5100200,"Bohemia Sekt demi sec 0,2 l","jakostní šumivé víno","xx",11,"Vyrobeno v České republice","Výrobce BOHEMIA SEKT,s.r.o. Smetanova 220, 332 02 Starý Plzenec, Česká republika","demi sec","obsahuje siřičitany",0.2]
["L1314044","8594000941651",5100200,"Bohemia Sekt demi sec 0,2 l","jakostní šumivé víno","xx",11,"Vyrobeno v České republice","Výrobce BOHEMIA SEKT,s.r.o. Smetanova 220, 332 02 Starý Plzenec, Česká republika","demi sec","obsahuje siřičitany",0.2]
["L1314063",8594000941460,5104145,"Bohemia Sekt Prest. brut 0,75 l / B Delh","jakostní šumivé víno","xx",13,"Vyrobeno v České republice","Výrobce BOHEMIA SEKT,s.r.o. Smetanova 220, 332 02 Starý Plzenec, Česká republika","brut","obsahuje siřičitany",0.75,null,24]
["L1314167",8594000941460,5104145,"Bohemia Sekt Prest. brut 0,75 l / B Delh","jakostní šumivé víno","xx",13,"Vyrobeno v České republice","Výrobce BOHEMIA SEKT,s.r.o. Smetanova 220, 332 02 Starý Plzenec, Česká republika","brut","obsahuje siřičitany",0.75]
["L1313317",8594000941460,5104145,"Bohemia Sekt Prest. brut 0,75 l / B Delh","jakostní šumivé víno","xx",13,"Vyrobeno v České republice","Výrobce BOHEMIA SEKT,s.r.o. Smetanova 220, 332 02 Starý Plzenec, Česká republika","brut","obsahuje siřičitany",0.75,null,23]
["L1314077",8594000941200,5102700,"Bohemia Chardonnay brut 0,75 l","jakostní šumivé víno","xx",12.5,"Vyrobeno v České republice","Výrobce BOHEMIA SEKT,s.r.o. Smetanova 220, 332 02 Starý Plzenec, Česká republika","brut","obsahuje siřičitany",0.75,null,25]
["L1314078",8594000941200,5102700,"Bohemia Chardonnay brut 0,75 l","jakostní šumivé víno","xx",12.5,"Vyrobeno v České republice","Výrobce BOHEMIA SEKT,s.r.o. Smetanova 220, 332 02 Starý Plzenec, Česká republika","brut","obsahuje siřičitany",0.75]
["L1314079",8594000941200,5102700,"Bohemia Chardonnay brut 0,75 l","jakostní šumivé víno","xx",12.5,"Vyrobeno v České republice","Výrobce BOHEMIA SEKT,s.r.o. Smetanova 220, 332 02 Starý Plzenec, Česká republika","brut","obsahuje siřičitany",0.75,null,24]
["L1313326",8594000941200,5102700,"Bohemia Chardonnay brut 0,75 l","jakostní šumivé víno","xx",12.5,"Vyrobeno v České republice","Výrobce BOHEMIA SEKT,s.r.o. Smetanova 220, 332 02 Starý Plzenec, Česká republika","brut","obsahuje siřičitany",0.75,null,24]
["L1313281",8594000941200,5102700,"Bohemia Chardonnay brut 0,75 l","jakostní šumivé víno","xx",12.5,"Vyrobeno v České republice","Výrobce BOHEMIA SEKT,s.r.o. Smetanova 220, 332 02 Starý Plzenec, Česká republika","brut","obsahuje siřičitany",0.75]
["L1313326",8594000941200,5102700,"Bohemia Chardonnay brut 0,75 l","jakostní šumivé víno","xx",12.5,"Vyrobeno v České republice","Výrobce BOHEMIA SEKT,s.r.o. Smetanova 220, 332 02 Starý Plzenec, Česká republika","brut","obsahuje siřičitany",0.75]
["L1314078",8594000941200,5102700,"Bohemia Chardonnay brut 0,75 l","jakostní šumivé víno","xx",12.5,"Vyrobeno v České republice","Výrobce BOHEMIA SEKT,s.r.o. Smetanova 220, 332 02 Starý Plzenec, Česká republika","brut","obsahuje siřičitany",0.75]
["L1314079",8594000941200,5102700,"Bohemia Chardonnay brut 0,75 l","jakostní šumivé víno","xx",12.5,"Vyrobeno v České republice","Výrobce BOHEMIA SEKT,s.r.o. Smetanova 220, 332 02 Starý Plzenec, Česká republika","brut","obsahuje siřičitany",0.75]
["L1314140",8594002881924,5108000,"Motýl sekt-demi 0,75 l","jakostní šumivé víno","xx",11,"Vyrobeno v České republice","Výrobce BOHEMIA SEKT,s.r.o. Smetanova 220, 332 02 Starý Plzenec, Česká republika","demi sec","obsahuje siřičitany",0.75,null,26]
["L1314139",8594002881924,5108000,"Motýl sekt-demi 0,75 l","jakostní šumivé víno","xx",11,"Vyrobeno v České republice","Výrobce BOHEMIA SEKT,s.r.o. Smetanova 220, 332 02 Starý Plzenec, Česká republika","demi sec","obsahuje siřičitany",0.75]
["L1314139",8594002881924,5108000,"Motýl sekt-demi 0,75 l","jakostní šumivé víno","xx",11,"Vyrobeno v České republice","Výrobce BOHEMIA SEKT,s.r.o. Smetanova 220, 332 02 Starý Plzenec, Česká republika","demi sec","obsahuje siřičitany",0.75,null,25]
["L1314140",8594002881924,5108000,"Motýl sekt-demi 0,75 l","jakostní šumivé víno","xx",11,"Vyrobeno v České republice","Výrobce BOHEMIA SEKT,s.r.o. Smetanova 220, 332 02 Starý Plzenec, Česká republika","demi sec","obsahuje siřičitany",0.75,null,25]
["L1314139",8594002881924,5108000,"Motýl sekt-demi 0,75 l","jakostní šumivé víno","xx",11,"Vyrobeno v České republice","Výrobce BOHEMIA SEKT,s.r.o. Smetanova 220, 332 02 Starý Plzenec, Česká republika","demi sec","obsahuje siřičitany",0.75]
["L1314140",8594002881948,5108200,"Motýl sekt rose demi 0,75 l","jakostní šumivé víno","xx",11,"Vyrobeno v České republice","Výrobce BOHEMIA SEKT,s.r.o. Smetanova 220, 332 02 Starý Plzenec, Česká republika","demi sec","obsahuje siřičitany",0.75,null,27]
["L1314139",8594002881948,5108200,"Motýl sekt rose demi 0,75 l","jakostní šumivé víno","xx",11,"Vyrobeno v České republice","Výrobce BOHEMIA SEKT,s.r.o. Smetanova 220, 332 02 Starý Plzenec, Česká republika","demi sec","obsahuje siřičitany",0.75]
["L1314140",8594002881948,5108200,"Motýl sekt rose demi 0,75 l","jakostní šumivé víno","xx",11,"Vyrobeno v České republice","Výrobce BOHEMIA SEKT,s.r.o. Smetanova 220, 332 02 Starý Plzenec, Česká republika","demi sec","obsahuje siřičitany",0.75,null,26]
["L1313058",8594002881948,5108200,"Motýl sekt rose demi 0,75 l","jakostní šumivé víno","xx",11,"Vyrobeno v České republice","Výrobce BOHEMIA SEKT,s.r.o. Smetanova 220, 332 02 Starý Plzenec, Česká republika","demi sec","obsahuje siřičitany",0.75,null,26]
["L1314140",8594002881948,5108200,"Motýl sekt rose demi 0,75 l","jakostní šumivé víno","xx",11,"Vyrobeno v České republice","Výrobce BOHEMIA SEKT,s.r.o. Smetanova 220, 332 02 Starý Plzenec, Česká republika","demi sec","obsahuje siřičitany",0.75]
["L1314142",8594000941156,5101800,"Bohemia Sekt Blanc de Noirs brut 0,75 l","jakostní šumivé víno","xx",11.5,"Vyrobeno v České republice","Výrobce BOHEMIA SEKT,s.r.o. Smetanova 220, 332 02 Starý Plzenec, Česká republika","brut","obsahuje siřičitany",0.75,null,28]
["L1394170",8594000941156,5101800,"Bohemia Sekt Blanc de Noirs brut 0,75 l","jakostní šumivé víno","xx",11.5,"Vyrobeno v České republice","Výrobce BOHEMIA SEKT,s.r.o. Smetanova 220, 332 02 Starý Plzenec, Česká republika","brut","obsahuje siřičitany",0.75]
["L1313280",8594000941156,5101800,"Bohemia Sekt Blanc de Noirs brut 0,75 l","jakostní šumivé víno","xx",11.5,"Vyrobeno v České republice","Výrobce BOHEMIA SEKT,s.r.o. Smetanova 220, 332 02 Starý Plzenec, Česká republika","brut","obsahuje siřičitany",0.75,null,27]
["L1314142",8594000941156,5101800,"Bohemia Sekt Blanc de Noirs brut 0,75 l","jakostní šumivé víno","xx",11.5,"Vyrobeno v České republice","Výrobce BOHEMIA SEKT,s.r.o. Smetanova 220, 332 02 Starý Plzenec, Česká republika","brut","obsahuje siřičitany",0.75,null,27]
["L1314147",8594000941019,5100000,"Bohemia Sekt demi sec 0,75 l","jakostní šumivé víno","xx",11,"Vyrobeno v České republice","Výrobce BOHEMIA SEKT,s.r.o. Smetanova 220, 332 02 Starý Plzenec, Česká republika","demi sec","obsahuje siřičitany",0.75,null,29]
["L1314141",8594000941019,5100000,"Bohemia Sekt demi sec 0,75 l","jakostní šumivé víno","xx",11,"Vyrobeno v České republice","Výrobce BOHEMIA SEKT,s.r.o. Smetanova 220, 332 02 Starý Plzenec, Česká republika","demi sec","obsahuje siřičitany",0.75]
["L1314083",8594000941019,5100000,"Bohemia Sekt demi sec 0,75 l","jakostní šumivé víno","xx",11,"Vyrobeno v České republice","Výrobce BOHEMIA SEKT,s.r.o. Smetanova 220, 332 02 Starý Plzenec, Česká republika","demi sec","obsahuje siřičitany",0.75,null,28]
["L1314041",8594000941019,5100000,"Bohemia Sekt demi sec 0,75 l","jakostní šumivé víno","xx",11,"Vyrobeno v České republice","Výrobce BOHEMIA SEKT,s.r.o. Smetanova 220, 332 02 Starý Plzenec, Česká republika","demi sec","obsahuje siřičitany",0.75,null,28]
["L1314043",8594000941019,5100000,"Bohemia Sekt demi sec 0,75 l","jakostní šumivé víno","xx",11,"Vyrobeno v České republice","Výrobce BOHEMIA SEKT,s.r.o. Smetanova 220, 332 02 Starý Plzenec, Česká republika","demi sec","obsahuje siřičitany",0.75]
["L1314093",8594000941019,5100000,"Bohemia Sekt demi sec 0,75 l","jakostní šumivé víno","xx",11,"Vyrobeno v České republice","Výrobce BOHEMIA SEKT,s.r.o. Smetanova 220, 332 02 Starý Plzenec, Česká republika","demi sec","obsahuje siřičitany",0.75]
["L1314146",8594000941019,5100000,"Bohemia Sekt demi sec 0,75 l","jakostní šumivé víno","xx",11,"Vyrobeno v České republice","Výrobce BOHEMIA SEKT,s.r.o. Smetanova 220, 332 02 Starý Plzenec, Česká republika","demi sec","obsahuje siřičitany",0.75]
["L1314085",8594000941019,5100000,"Bohemia Sekt demi sec 0,75 l","jakostní šumivé víno","xx",11,"Vyrobeno v České republice","Výrobce BOHEMIA SEKT,s.r.o. Smetanova 220, 332 02 Starý Plzenec, Česká republika","demi sec","obsahuje siřičitany",0.75]
["L1314084",8594000941019,5100000,"Bohemia Sekt demi sec 0,75 l","jakostní šumivé víno","xx",11,"Vyrobeno v České republice","Výrobce BOHEMIA SEKT,s.r.o. Smetanova 220, 332 02 Starý Plzenec, Česká republika","demi sec","obsahuje siřičitany",0.75]
["L1314086",8594000941019,5100000,"Bohemia Sekt demi sec 0,75 l","jakostní šumivé víno","xx",11,"Vyrobeno v České republice","Výrobce BOHEMIA SEKT,s.r.o. Smetanova 220, 332 02 Starý Plzenec, Česká republika","demi sec","obsahuje siřičitany",0.75]
["L1314090",8594000941019,5100000,"Bohemia Sekt demi sec 0,75 l","jakostní šumivé víno","xx",11,"Vyrobeno v České republice","Výrobce BOHEMIA SEKT,s.r.o. Smetanova 220, 332 02 Starý Plzenec, Česká republika","demi sec","obsahuje siřičitany",0.75]
["L1314091",8594000941019,5100000,"Bohemia Sekt demi sec 0,75 l","jakostní šumivé víno","xx",11,"Vyrobeno v České republice","Výrobce BOHEMIA SEKT,s.r.o. Smetanova 220, 332 02 Starý Plzenec, Česká republika","demi sec","obsahuje siřičitany",0.75]
["L1314219",8594000941019,5100000,"Bohemia Sekt demi sec 0,75 l","jakostní šumivé víno","xx",11,"Vyrobeno v České republice","Výrobce BOHEMIA SEKT,s.r.o. Smetanova 220, 332 02 Starý Plzenec, Česká republika","demi sec","obsahuje siřičitany",0.75]
["L1314135",8594000941019,5100000,"Bohemia Sekt demi sec 0,75 l","jakostní šumivé víno","xx",11,"Vyrobeno v České republice","Výrobce BOHEMIA SEKT,s.r.o. Smetanova 220, 332 02 Starý Plzenec, Česká republika","demi sec","obsahuje siřičitany",0.75]
["L1314148",8594000941019,5100000,"Bohemia Sekt demi sec 0,75 l","jakostní šumivé víno","xx",11,"Vyrobeno v České republice","Výrobce BOHEMIA SEKT,s.r.o. Smetanova 220, 332 02 Starý Plzenec, Česká republika","demi sec","obsahuje siřičitany",0.75]
["L1314036",8594000941019,5100000,"Bohemia Sekt demi sec 0,75 l","jakostní šumivé víno","xx",11,"Vyrobeno v České republice","Výrobce BOHEMIA SEKT,s.r.o. Smetanova 220, 332 02 Starý Plzenec, Česká republika","demi sec","obsahuje siřičitany",0.75]
["L1314037",8594000941019,5100000,"Bohemia Sekt demi sec 0,75 l","jakostní šumivé víno","xx",11,"Vyrobeno v České republice","Výrobce BOHEMIA SEKT,s.r.o. Smetanova 220, 332 02 Starý Plzenec, Česká republika","demi sec","obsahuje siřičitany",0.75]
["L1314042",8594000941019,5100000,"Bohemia Sekt demi sec 0,75 l","jakostní šumivé víno","xx",11,"Vyrobeno v České republice","Výrobce BOHEMIA SEKT,s.r.o. Smetanova 220, 332 02 Starý Plzenec, Česká republika","demi sec","obsahuje siřičitany",0.75]
["L1314043",8594000941019,5100000,"Bohemia Sekt demi sec 0,75 l","jakostní šumivé víno","xx",11,"Vyrobeno v České republice","Výrobce BOHEMIA SEKT,s.r.o. Smetanova 220, 332 02 Starý Plzenec, Česká republika","demi sec","obsahuje siřičitany",0.75]
["L1314055",8594000941019,5100000,"Bohemia Sekt demi sec 0,75 l","jakostní šumivé víno","xx",11,"Vyrobeno v České republice","Výrobce BOHEMIA SEKT,s.r.o. Smetanova 220, 332 02 Starý Plzenec, Česká republika","demi sec","obsahuje siřičitany",0.75]
["L1314079",8594000941019,5100000,"Bohemia Sekt demi sec 0,75 l","jakostní šumivé víno","xx",11,"Vyrobeno v České republice","Výrobce BOHEMIA SEKT,s.r.o. Smetanova 220, 332 02 Starý Plzenec, Česká republika","demi sec","obsahuje siřičitany",0.75]
["L1314099",8594000941019,5100000,"Bohemia Sekt demi sec 0,75 l","jakostní šumivé víno","xx",11,"Vyrobeno v České republice","Výrobce BOHEMIA SEKT,s.r.o. Smetanova 220, 332 02 Starý Plzenec, Česká republika","demi sec","obsahuje siřičitany",0.75]
["L1314100",8594000941019,5100000,"Bohemia Sekt demi sec 0,75 l","jakostní šumivé víno","xx",11,"Vyrobeno v České republice","Výrobce BOHEMIA SEKT,s.r.o. Smetanova 220, 332 02 Starý Plzenec, Česká republika","demi sec","obsahuje siřičitany",0.75]
["L1314135",8594000941019,5100000,"Bohemia Sekt demi sec 0,75 l","jakostní šumivé víno","xx",11,"Vyrobeno v České republice","Výrobce BOHEMIA SEKT,s.r.o. Smetanova 220, 332 02 Starý Plzenec, Česká republika","demi sec","obsahuje siřičitany",0.75]
["L1314148",8594000941019,5100000,"Bohemia Sekt demi sec 0,75 l","jakostní šumivé víno","xx",11,"Vyrobeno v České republice","Výrobce BOHEMIA SEKT,s.r.o. Smetanova 220, 332 02 Starý Plzenec, Česká republika","demi sec","obsahuje siřičitany",0.75]
["L1314149",8594000941019,5100000,"Bohemia Sekt demi sec 0,75 l","jakostní šumivé víno","xx",11,"Vyrobeno v České republice","Výrobce BOHEMIA SEKT,s.r.o. Smetanova 220, 332 02 Starý Plzenec, Česká republika","demi sec","obsahuje siřičitany",0.75]
["L1314008",8594000941019,5100000,"Bohemia Sekt demi sec 0,75 l","jakostní šumivé víno","xx",11,"Vyrobeno v České republice","Výrobce BOHEMIA SEKT,s.r.o. Smetanova 220, 332 02 Starý Plzenec, Česká republika","demi sec","obsahuje siřičitany",0.75]
["L1314079",8594000941019,5100000,"Bohemia Sekt demi sec 0,75 l","jakostní šumivé víno","xx",11,"Vyrobeno v České republice","Výrobce BOHEMIA SEKT,s.r.o. Smetanova 220, 332 02 Starý Plzenec, Česká republika","demi sec","obsahuje siřičitany",0.75]
["L1314135",8594000941019,5100000,"Bohemia Sekt demi sec 0,75 l","jakostní šumivé víno","xx",11,"Vyrobeno v České republice","Výrobce BOHEMIA SEKT,s.r.o. Smetanova 220, 332 02 Starý Plzenec, Česká republika","demi sec","obsahuje siřičitany",0.75]
["L1314147",8594000941019,5100000,"Bohemia Sekt demi sec 0,75 l","jakostní šumivé víno","xx",11,"Vyrobeno v České republice","Výrobce BOHEMIA SEKT,s.r.o. Smetanova 220, 332 02 Starý Plzenec, Česká republika","demi sec","obsahuje siřičitany",0.75]
["L1314150",8594000941088,5102000,"Bohemia Sekt brut 0,75 l","jakostní šumivé víno","xx",12,"Vyrobeno v České republice","Výrobce BOHEMIA SEKT,s.r.o. Smetanova 220, 332 02 Starý Plzenec, Česká republika","brut","obsahuje siřičitany",0.75,null,30]
["L1314010",8594000941088,5102000,"Bohemia Sekt brut 0,75 l","jakostní šumivé víno","xx",12,"Vyrobeno v České republice","Výrobce BOHEMIA SEKT,s.r.o. Smetanova 220, 332 02 Starý Plzenec, Česká republika","brut","obsahuje siřičitany",0.75]
["L1314149",8594000941088,5102000,"Bohemia Sekt brut 0,75 l","jakostní šumivé víno","xx",12,"Vyrobeno v České republice","Výrobce BOHEMIA SEKT,s.r.o. Smetanova 220, 332 02 Starý Plzenec, Česká republika","brut","obsahuje siřičitany",0.75,null,29]
["L1314092",8594000941088,5102000,"Bohemia Sekt brut 0,75 l","jakostní šumivé víno","xx",12,"Vyrobeno v České republice","Výrobce BOHEMIA SEKT,s.r.o. Smetanova 220, 332 02 Starý Plzenec, Česká republika","brut","obsahuje siřičitany",0.75,null,29]
["L1313339",8594000941088,5102000,"Bohemia Sekt brut 0,75 l","jakostní šumivé víno","xx",12,"Vyrobeno v České republice","Výrobce BOHEMIA SEKT,s.r.o. Smetanova 220, 332 02 Starý Plzenec, Česká republika","brut","obsahuje siřičitany",0.75]
["L1314092",8594000941088,5102000,"Bohemia Sekt brut 0,75 l","jakostní šumivé víno","xx",12,"Vyrobeno v České republice","Výrobce BOHEMIA SEKT,s.r.o. Smetanova 220, 332 02 Starý Plzenec, Česká republika","brut","obsahuje siřičitany",0.75]
["L1314148",8594000941088,5102000,"Bohemia Sekt brut 0,75 l","jakostní šumivé víno","xx",12,"Vyrobeno v České republice","Výrobce BOHEMIA SEKT,s.r.o. Smetanova 220, 332 02 Starý Plzenec, Česká republika","brut","obsahuje siřičitany",0.75]
["L1313303",8594000941088,5102000,"Bohemia Sekt brut 0,75 l","jakostní šumivé víno","xx",12,"Vyrobeno v České republice","Výrobce BOHEMIA SEKT,s.r.o. Smetanova 220, 332 02 Starý Plzenec, Česká republika","brut","obsahuje siřičitany",0.75]
["L1314010",8594000941088,5102000,"Bohemia Sekt brut 0,75 l","jakostní šumivé víno","xx",12,"Vyrobeno v České republice","Výrobce BOHEMIA SEKT,s.r.o. Smetanova 220, 332 02 Starý Plzenec, Česká republika","brut","obsahuje siřičitany",0.75]
["L1314013",8594000941088,5102000,"Bohemia Sekt brut 0,75 l","jakostní šumivé víno","xx",12,"Vyrobeno v České republice","Výrobce BOHEMIA SEKT,s.r.o. Smetanova 220, 332 02 Starý Plzenec, Česká republika","brut","obsahuje siřičitany",0.75]
["L1314149",8594000941088,5102000,"Bohemia Sekt brut 0,75 l","jakostní šumivé víno","xx",12,"Vyrobeno v České republice","Výrobce BOHEMIA SEKT,s.r.o. Smetanova 220, 332 02 Starý Plzenec, Česká republika","brut","obsahuje siřičitany",0.75]
["L1314150",8594000941088,5102000,"Bohemia Sekt brut 0,75 l","jakostní šumivé víno","xx",12,"Vyrobeno v České republice","Výrobce BOHEMIA SEKT,s.r.o. Smetanova 220, 332 02 Starý Plzenec, Česká republika","brut","obsahuje siřičitany",0.75]
["L1313340",8594000941088,5102000,"Bohemia Sekt brut 0,75 l","jakostní šumivé víno","xx",12,"Vyrobeno v České republice","Výrobce BOHEMIA SEKT,s.r.o. Smetanova 220, 332 02 Starý Plzenec, Česká republika","brut","obsahuje siřičitany",0.75]
["L1314091",8594000941088,5102000,"Bohemia Sekt brut 0,75 l","jakostní šumivé víno","xx",12,"Vyrobeno v České republice","Výrobce BOHEMIA SEKT,s.r.o. Smetanova 220, 332 02 Starý Plzenec, Česká republika","brut","obsahuje siřičitany",0.75]
["L1314092",8594000941088,5102000,"Bohemia Sekt brut 0,75 l","jakostní šumivé víno","xx",12,"Vyrobeno v České republice","Výrobce BOHEMIA SEKT,s.r.o. Smetanova 220, 332 02 Starý Plzenec, Česká republika","brut","obsahuje siřičitany",0.75]
["L1314149",8594000941088,5102000,"Bohemia Sekt brut 0,75 l","jakostní šumivé víno","xx",12,"Vyrobeno v České republice","Výrobce BOHEMIA SEKT,s.r.o. Smetanova 220, 332 02 Starý Plzenec, Česká republika","brut","obsahuje siřičitany",0.75]
["L1314150",8594000941088,5102000,"Bohemia Sekt brut 0,75 l","jakostní šumivé víno","xx",12,"Vyrobeno v České republice","Výrobce BOHEMIA SEKT,s.r.o. Smetanova 220, 332 02 Starý Plzenec, Česká republika","brut","obsahuje siřičitany",0.75]
["L1314162",8594000941491,5105800,"Louis Girardot  0,75 l","jakostní šumivé víno","xx",13,"Vyrobeno v České republice","Výrobce BOHEMIA SEKT,s.r.o. Smetanova 220, 332 02 Starý Plzenec, Česká republika","brut","obsahuje siřičitany",0.75,null,31]
["L1313315",8594000941491,5105800,"Louis Girardot  0,75 l","jakostní šumivé víno","xx",13,"Vyrobeno v České republice","Výrobce BOHEMIA SEKT,s.r.o. Smetanova 220, 332 02 Starý Plzenec, Česká republika","brut","obsahuje siřičitany",0.75]
["L1314065",8594000941491,5105800,"Louis Girardot  0,75 l","jakostní šumivé víno","xx",13,"Vyrobeno v České republice","Výrobce BOHEMIA SEKT,s.r.o. Smetanova 220, 332 02 Starý Plzenec, Česká republika","brut","obsahuje siřičitany",0.75,null,30]
["L1313315",8594000941491,5105800,"Louis Girardot  0,75 l","jakostní šumivé víno","xx",13,"Vyrobeno v České republice","Výrobce BOHEMIA SEKT,s.r.o. Smetanova 220, 332 02 Starý Plzenec, Česká republika","brut","obsahuje siřičitany",0.75,null,30]
["L1393315",8594000941491,5105800,"Louis Girardot  0,75 l","jakostní šumivé víno","xx",13,"Vyrobeno v České republice","Výrobce BOHEMIA SEKT,s.r.o. Smetanova 220, 332 02 Starý Plzenec, Česká republika","brut","obsahuje siřičitany",0.75]
["L1314162","8594000941309",5105500,"Chateau Belveder doux 0,75 l","jakostní šumivé víno","xx",12.5,"Vyrobeno v České republice","Výrobce BOHEMIA SEKT,s.r.o. Smetanova 220, 332 02 Starý Plzenec, Česká republika","doux","obsahuje siřičitany",0.75,null,32]
["L1314163","8594000941309",5105500,"Chateau Belveder doux 0,75 l","jakostní šumivé víno","xx",12.5,"Vyrobeno v České republice","Výrobce BOHEMIA SEKT,s.r.o. Smetanova 220, 332 02 Starý Plzenec, Česká republika","doux","obsahuje siřičitany",0.75]
["L1312290","8594000941309",5105500,"Chateau Belveder doux 0,75 l","jakostní šumivé víno","xx",12.5,"Vyrobeno v České republice","Výrobce BOHEMIA SEKT,s.r.o. Smetanova 220, 332 02 Starý Plzenec, Česká republika","doux","obsahuje siřičitany",0.75,null,31]
["L1312290","8594000941309",5105500,"Chateau Belveder doux 0,75 l","jakostní šumivé víno","xx",12.5,"Vyrobeno v České republice","Výrobce BOHEMIA SEKT,s.r.o. Smetanova 220, 332 02 Starý Plzenec, Česká republika","doux","obsahuje siřičitany",0.75,null,31]
["L1312290","8594000941309",5105500,"Chateau Belveder doux 0,75 l","jakostní šumivé víno","xx",12.5,"Vyrobeno v České republice","Výrobce BOHEMIA SEKT,s.r.o. Smetanova 220, 332 02 Starý Plzenec, Česká republika","doux","obsahuje siřičitany",0.75]
["L1314164",8594000941460,5104100,"Bohemia Sekt Prestige brut 0,75 l","jakostní šumivé víno","xx",13,"Vyrobeno v České republice","Výrobce BOHEMIA SEKT,s.r.o. Smetanova 220, 332 02 Starý Plzenec, Česká republika","brut","obsahuje siřičitany",0.75,null,33]
["L1314014",8594000941460,5104100,"Bohemia Sekt Prestige brut 0,75 l","jakostní šumivé víno","xx",13,"Vyrobeno v České republice","Výrobce BOHEMIA SEKT,s.r.o. Smetanova 220, 332 02 Starý Plzenec, Česká republika","brut","obsahuje siřičitany",0.75]
["L1314167",8594000941460,5104100,"Bohemia Sekt Prestige brut 0,75 l","jakostní šumivé víno","xx",13,"Vyrobeno v České republice","Výrobce BOHEMIA SEKT,s.r.o. Smetanova 220, 332 02 Starý Plzenec, Česká republika","brut","obsahuje siřičitany",0.75,null,32]
["L1314063",8594000941460,5104100,"Bohemia Sekt Prestige brut 0,75 l","jakostní šumivé víno","xx",13,"Vyrobeno v České republice","Výrobce BOHEMIA SEKT,s.r.o. Smetanova 220, 332 02 Starý Plzenec, Česká republika","brut","obsahuje siřičitany",0.75,null,32]
["L1314168",8594000941460,5104100,"Bohemia Sekt Prestige brut 0,75 l","jakostní šumivé víno","xx",13,"Vyrobeno v České republice","Výrobce BOHEMIA SEKT,s.r.o. Smetanova 220, 332 02 Starý Plzenec, Česká republika","brut","obsahuje siřičitany",0.75]
["L1313228",8594000941460,5104100,"Bohemia Sekt Prestige brut 0,75 l","jakostní šumivé víno","xx",13,"Vyrobeno v České republice","Výrobce BOHEMIA SEKT,s.r.o. Smetanova 220, 332 02 Starý Plzenec, Česká republika","brut","obsahuje siřičitany",0.75]
["L1313317",8594000941460,5104100,"Bohemia Sekt Prestige brut 0,75 l","jakostní šumivé víno","xx",13,"Vyrobeno v České republice","Výrobce BOHEMIA SEKT,s.r.o. Smetanova 220, 332 02 Starý Plzenec, Česká republika","brut","obsahuje siřičitany",0.75]
["L1313318",8594000941460,5104100,"Bohemia Sekt Prestige brut 0,75 l","jakostní šumivé víno","xx",13,"Vyrobeno v České republice","Výrobce BOHEMIA SEKT,s.r.o. Smetanova 220, 332 02 Starý Plzenec, Česká republika","brut","obsahuje siřičitany",0.75]
["L1313228",8594000941460,5104100,"Bohemia Sekt Prestige brut 0,75 l","jakostní šumivé víno","xx",13,"Vyrobeno v České republice","Výrobce BOHEMIA SEKT,s.r.o. Smetanova 220, 332 02 Starý Plzenec, Česká republika","brut","obsahuje siřičitany",0.75]
["L1313318",8594000941460,5104100,"Bohemia Sekt Prestige brut 0,75 l","jakostní šumivé víno","xx",13,"Vyrobeno v České republice","Výrobce BOHEMIA SEKT,s.r.o. Smetanova 220, 332 02 Starý Plzenec, Česká republika","brut","obsahuje siřičitany",0.75]
["L1314063",8594000941460,5104100,"Bohemia Sekt Prestige brut 0,75 l","jakostní šumivé víno","xx",13,"Vyrobeno v České republice","Výrobce BOHEMIA SEKT,s.r.o. Smetanova 220, 332 02 Starý Plzenec, Česká republika","brut","obsahuje siřičitany",0.75]
["L1313228",8594000941460,5104100,"Bohemia Sekt Prestige brut 0,75 l","jakostní šumivé víno","xx",13,"Vyrobeno v České republice","Výrobce BOHEMIA SEKT,s.r.o. Smetanova 220, 332 02 Starý Plzenec, Česká republika","brut","obsahuje siřičitany",0.75]
["L1314164","8594000941446",5104000,"Bohemia Sekt Prestige demi sec 0,75","jakostní šumivé víno","xx",12.5,"Vyrobeno v České republice","Výrobce BOHEMIA SEKT,s.r.o. Smetanova 220, 332 02 Starý Plzenec, Česká republika","demi sec","obsahuje siřičitany",0.75,null,34]
["L1314063","8594000941446",5104000,"Bohemia Sekt Prestige demi sec 0,75","jakostní šumivé víno","xx",12.5,"Vyrobeno v České republice","Výrobce BOHEMIA SEKT,s.r.o. Smetanova 220, 332 02 Starý Plzenec, Česká republika","demi sec","obsahuje siřičitany",0.75]
["L1314062","8594000941446",5104000,"Bohemia Sekt Prestige demi sec 0,75","jakostní šumivé víno","xx",12.5,"Vyrobeno v České republice","Výrobce BOHEMIA SEKT,s.r.o. Smetanova 220, 332 02 Starý Plzenec, Česká republika","demi sec","obsahuje siřičitany",0.75,null,33]
["L1313316","8594000941446",5104000,"Bohemia Sekt Prestige demi sec 0,75","jakostní šumivé víno","xx",12.5,"Vyrobeno v České republice","Výrobce BOHEMIA SEKT,s.r.o. Smetanova 220, 332 02 Starý Plzenec, Česká republika","demi sec","obsahuje siřičitany",0.75,null,33]
["L1313316","8594000941446",5104000,"Bohemia Sekt Prestige demi sec 0,75","jakostní šumivé víno","xx",12.5,"Vyrobeno v České republice","Výrobce BOHEMIA SEKT,s.r.o. Smetanova 220, 332 02 Starý Plzenec, Česká republika","demi sec","obsahuje siřičitany",0.75]
["L1313316","8594000941446",5104000,"Bohemia Sekt Prestige demi sec 0,75","jakostní šumivé víno","xx",12.5,"Vyrobeno v České republice","Výrobce BOHEMIA SEKT,s.r.o. Smetanova 220, 332 02 Starý Plzenec, Česká republika","demi sec","obsahuje siřičitany",0.75]
["L1314168",8594000941316,5105000,"Bohemia Sekt Prestige Chardonnay 0,75 l","jakostní šumivé víno","xx",13,"Vyrobeno v České republice","Výrobce BOHEMIA SEKT,s.r.o. Smetanova 220, 332 02 Starý Plzenec, Česká republika","brut","obsahuje siřičitany",0.75,null,35]
["L1314168",8594000941316,5105000,"Bohemia Sekt Prestige Chardonnay 0,75 l","jakostní šumivé víno","xx",13,"Vyrobeno v České republice","Výrobce BOHEMIA SEKT,s.r.o. Smetanova 220, 332 02 Starý Plzenec, Česká republika","brut","obsahuje siřičitany",0.75]
["L1314168",8594000941316,5105000,"Bohemia Sekt Prestige Chardonnay 0,75 l","jakostní šumivé víno","xx",13,"Vyrobeno v České republice","Výrobce BOHEMIA SEKT,s.r.o. Smetanova 220, 332 02 Starý Plzenec, Česká republika","brut","obsahuje siřičitany",0.75,null,34]
["L1314062",8594000941316,5105000,"Bohemia Sekt Prestige Chardonnay 0,75 l","jakostní šumivé víno","xx",13,"Vyrobeno v České republice","Výrobce BOHEMIA SEKT,s.r.o. Smetanova 220, 332 02 Starý Plzenec, Česká republika","brut","obsahuje siřičitany",0.75,null,34]
["L1314203","8594000941668",5102200,"Bohemia Sekt brut 0,2 l","jakostní šumivé víno","xx",12,"Vyrobeno v České republice","Výrobce BOHEMIA SEKT,s.r.o. Smetanova 220, 332 02 Starý Plzenec, Česká republika","brut","obsahuje siřičitany",0.2,null,36]
["L1314051","8594000941668",5102200,"Bohemia Sekt brut 0,2 l","jakostní šumivé víno","xx",12,"Vyrobeno v České republice","Výrobce BOHEMIA SEKT,s.r.o. Smetanova 220, 332 02 Starý Plzenec, Česká republika","brut","obsahuje siřičitany",0.2]
["L1314051","8594000941668",5102200,"Bohemia Sekt brut 0,2 l","jakostní šumivé víno","xx",12,"Vyrobeno v České republice","Výrobce BOHEMIA SEKT,s.r.o. Smetanova 220, 332 02 Starý Plzenec, Česká republika","brut","obsahuje siřičitany",0.2,null,35]
["L1313214","8594000941668",5102200,"Bohemia Sekt brut 0,2 l","jakostní šumivé víno","xx",12,"Vyrobeno v České republice","Výrobce BOHEMIA SEKT,s.r.o. Smetanova 220, 332 02 Starý Plzenec, Česká republika","brut","obsahuje siřičitany",0.2,null,35]
["L1314210",8594000941583,5100300,"Bohemia Sekt demi sec 1,5 l","jakostní šumivé víno","xx",11,"Vyrobeno v České republice","Výrobce BOHEMIA SEKT,s.r.o. Smetanova 220, 332 02 Starý Plzenec, Česká republika","demi sec","obsahuje siřičitany",1.5,null,37]
["L1314209",8594000941583,5100300,"Bohemia Sekt demi sec 1,5 l","jakostní šumivé víno","xx",11,"Vyrobeno v České republice","Výrobce BOHEMIA SEKT,s.r.o. Smetanova 220, 332 02 Starý Plzenec, Česká republika","demi sec","obsahuje siřičitany",1.5]
["L1313225",8594000941583,5100300,"Bohemia Sekt demi sec 1,5 l","jakostní šumivé víno","xx",11,"Vyrobeno v České republice","Výrobce BOHEMIA SEKT,s.r.o. Smetanova 220, 332 02 Starý Plzenec, Česká republika","demi sec","obsahuje siřičitany",1.5,null,36]
["L1314210",8594000941583,5100300,"Bohemia Sekt demi sec 1,5 l","jakostní šumivé víno","xx",11,"Vyrobeno v České republice","Výrobce BOHEMIA SEKT,s.r.o. Smetanova 220, 332 02 Starý Plzenec, Česká republika","demi sec","obsahuje siřičitany",1.5,null,36]
["L1314213",8594000941583,5100300,"Bohemia Sekt demi sec 1,5 l","jakostní šumivé víno","xx",11,"Vyrobeno v České republice","Výrobce BOHEMIA SEKT,s.r.o. Smetanova 220, 332 02 Starý Plzenec, Česká republika","demi sec","obsahuje siřičitany",1.5]
["L1313225",8594000941583,5100300,"Bohemia Sekt demi sec 1,5 l","jakostní šumivé víno","xx",11,"Vyrobeno v České republice","Výrobce BOHEMIA SEKT,s.r.o. Smetanova 220, 332 02 Starý Plzenec, Česká republika","demi sec","obsahuje siřičitany",1.5]
["L1314211",8594000941590,5102300,"Bohemia Sekt brut 1,5 l","jakostní šumivé víno","xx",12,"Vyrobeno v České republice","Výrobce BOHEMIA SEKT,s.r.o. Smetanova 220, 332 02 Starý Plzenec, Česká republika","brut","obsahuje siřičitany",1.5,null,38]
["L1314225",8594000941590,5102300,"Bohemia Sekt brut 1,5 l","jakostní šumivé víno","xx",12,"Vyrobeno v České republice","Výrobce BOHEMIA SEKT,s.r.o. Smetanova 220, 332 02 Starý Plzenec, Česká republika","brut","obsahuje siřičitany",1.5]
["L1313079",8594000941590,5102300,"Bohemia Sekt brut 1,5 l","jakostní šumivé víno","xx",12,"Vyrobeno v České republice","Výrobce BOHEMIA SEKT,s.r.o. Smetanova 220, 332 02 Starý Plzenec, Česká republika","brut","obsahuje siřičitany",1.5,null,37]
["L1313079",8594000941590,5102300,"Bohemia Sekt brut 1,5 l","jakostní šumivé víno","xx",12,"Vyrobeno v České republice","Výrobce BOHEMIA SEKT,s.r.o. Smetanova 220, 332 02 Starý Plzenec, Česká republika","brut","obsahuje siřičitany",1.5,null,37]
["L1313225",8594000941590,5102300,"Bohemia Sekt brut 1,5 l","jakostní šumivé víno","xx",12,"Vyrobeno v České republice","Výrobce BOHEMIA SEKT,s.r.o. Smetanova 220, 332 02 Starý Plzenec, Česká republika","brut","obsahuje siřičitany",1.5,null,37]
["L1313079",8594000941590,5102300,"Bohemia Sekt brut 1,5 l","jakostní šumivé víno","xx",12,"Vyrobeno v České republice","Výrobce BOHEMIA SEKT,s.r.o. Smetanova 220, 332 02 Starý Plzenec, Česká republika","brut","obsahuje siřičitany",1.5]
["L1313225",8594000941590,5102300,"Bohemia Sekt brut 1,5 l","jakostní šumivé víno","xx",12,"Vyrobeno v České republice","Výrobce BOHEMIA SEKT,s.r.o. Smetanova 220, 332 02 Starý Plzenec, Česká republika","brut","obsahuje siřičitany",1.5]
["L1392342",8594000941613,5104500,"Bohemia Sekt Prestige rosé brut 0,75 l/dárk","jakostní šumivé víno","xx",12.5,"Vyrobeno v České republice","Výrobce BOHEMIA SEKT,s.r.o. Smetanova 220, 332 02 Starý Plzenec, Česká republika","brut","obsahuje siřičitany",0.75,null,39]
["L1392339",8594000941613,5104500,"Bohemia Sekt Prestige rosé brut 0,75 l/dárk","jakostní šumivé víno","xx",12.5,"Vyrobeno v České republice","Výrobce BOHEMIA SEKT,s.r.o. Smetanova 220, 332 02 Starý Plzenec, Česká republika","brut","obsahuje siřičitany",0.75]
["L1393072",8594000941286,5100225,"Bohemia Sekt demi sec 0,2 l-6 pack","jakostní šumivé víno","xx",11,"Vyrobeno v České republice","Výrobce BOHEMIA SEKT,s.r.o. Smetanova 220, 332 02 Starý Plzenec, Česká republika","demi sec","obsahuje siřičitany",0.2,null,40]
["L1393073",8594000941286,5100225,"Bohemia Sekt demi sec 0,2 l-6 pack","jakostní šumivé víno","xx",11,"Vyrobeno v České republice","Výrobce BOHEMIA SEKT,s.r.o. Smetanova 220, 332 02 Starý Plzenec, Česká republika","demi sec","obsahuje siřičitany",0.2]
["L1392227",8594000941286,5100225,"Bohemia Sekt demi sec 0,2 l-6 pack","jakostní šumivé víno","xx",11,"Vyrobeno v České republice","Výrobce BOHEMIA SEKT,s.r.o. Smetanova 220, 332 02 Starý Plzenec, Česká republika","demi sec","obsahuje siřičitany",0.2]
["L1393071",8594000941286,5100225,"Bohemia Sekt demi sec 0,2 l-6 pack","jakostní šumivé víno","xx",11,"Vyrobeno v České republice","Výrobce BOHEMIA SEKT,s.r.o. Smetanova 220, 332 02 Starý Plzenec, Česká republika","demi sec","obsahuje siřičitany",0.2]
["L1393072",8594000941286,5100225,"Bohemia Sekt demi sec 0,2 l-6 pack","jakostní šumivé víno","xx",11,"Vyrobeno v České republice","Výrobce BOHEMIA SEKT,s.r.o. Smetanova 220, 332 02 Starý Plzenec, Česká republika","demi sec","obsahuje siřičitany",0.2]
["L1393294",8594000941378,5105025,"Bohemia Sekt Prestige Chardonnay 0,75 l/ dárk","jakostní šumivé víno","xx",13,"Vyrobeno v České republice","Výrobce BOHEMIA SEKT,s.r.o. Smetanova 220, 332 02 Starý Plzenec, Česká republika","brut","obsahuje siřičitany",0.75,null,41]
["L1393323",8594000941378,5105025,"Bohemia Sekt Prestige Chardonnay 0,75 l/ dárk","jakostní šumivé víno","xx",13,"Vyrobeno v České republice","Výrobce BOHEMIA SEKT,s.r.o. Smetanova 220, 332 02 Starý Plzenec, Česká republika","brut","obsahuje siřičitany",0.75]
["L1394157",8594000941378,5105025,"Bohemia Sekt Prestige Chardonnay 0,75 l/ dárk","jakostní šumivé víno","xx",13,"Vyrobeno v České republice","Výrobce BOHEMIA SEKT,s.r.o. Smetanova 220, 332 02 Starý Plzenec, Česká republika","brut","obsahuje siřičitany",0.75]
["L1393324",8594000941378,5105025,"Bohemia Sekt Prestige Chardonnay 0,75 l/ dárk","jakostní šumivé víno","xx",13,"Vyrobeno v České republice","Výrobce BOHEMIA SEKT,s.r.o. Smetanova 220, 332 02 Starý Plzenec, Česká republika","brut","obsahuje siřičitany",0.75]
["L1393325",8594000941378,5105025,"Bohemia Sekt Prestige Chardonnay 0,75 l/ dárk","jakostní šumivé víno","xx",13,"Vyrobeno v České republice","Výrobce BOHEMIA SEKT,s.r.o. Smetanova 220, 332 02 Starý Plzenec, Česká republika","brut","obsahuje siřičitany",0.75]
["L1393294",8594000941378,5105025,"Bohemia Sekt Prestige Chardonnay 0,75 l/ dárk","jakostní šumivé víno","xx",13,"Vyrobeno v České republice","Výrobce BOHEMIA SEKT,s.r.o. Smetanova 220, 332 02 Starý Plzenec, Česká republika","brut","obsahuje siřičitany",0.75]
["L1393329",8594000941514,5104900,"Bohemia Sekt Prestige brut 0,75 l / dárk","jakostní šumivé víno","xx",13,"Vyrobeno v České republice","Výrobce BOHEMIA SEKT,s.r.o. Smetanova 220, 332 02 Starý Plzenec, Česká republika","brut","obsahuje siřičitany",0.75,null,42]
["L1393330",8594000941514,5104900,"Bohemia Sekt Prestige brut 0,75 l / dárk","jakostní šumivé víno","xx",13,"Vyrobeno v České republice","Výrobce BOHEMIA SEKT,s.r.o. Smetanova 220, 332 02 Starý Plzenec, Česká republika","brut","obsahuje siřičitany",0.75]
["L1394157",8594000941514,5104900,"Bohemia Sekt Prestige brut 0,75 l / dárk","jakostní šumivé víno","xx",13,"Vyrobeno v České republice","Výrobce BOHEMIA SEKT,s.r.o. Smetanova 220, 332 02 Starý Plzenec, Česká republika","brut","obsahuje siřičitany",0.75]
["L1393353",8594000941637,5104400,"Bohemia Sekt Prestige  brut 0,75 l+ 2 sklenky","jakostní šumivé víno","xx",13,"Vyrobeno v České republice","Výrobce BOHEMIA SEKT,s.r.o. Smetanova 220, 332 02 Starý Plzenec, Česká republika","brut","obsahuje siřičitany",0.75,null,43]
["L1393345",8594000941637,5104400,"Bohemia Sekt Prestige  brut 0,75 l+ 2 sklenky","jakostní šumivé víno","xx",13,"Vyrobeno v České republice","Výrobce BOHEMIA SEKT,s.r.o. Smetanova 220, 332 02 Starý Plzenec, Česká republika","brut","obsahuje siřičitany",0.75]
["L1393330",8594000941637,5104400,"Bohemia Sekt Prestige  brut 0,75 l+ 2 sklenky","jakostní šumivé víno","xx",13,"Vyrobeno v České republice","Výrobce BOHEMIA SEKT,s.r.o. Smetanova 220, 332 02 Starý Plzenec, Česká republika","brut","obsahuje siřičitany",0.75]
["L1393333",8594000941637,5104400,"Bohemia Sekt Prestige  brut 0,75 l+ 2 sklenky","jakostní šumivé víno","xx",13,"Vyrobeno v České republice","Výrobce BOHEMIA SEKT,s.r.o. Smetanova 220, 332 02 Starý Plzenec, Česká republika","brut","obsahuje siřičitany",0.75]
["L1394077",8594000941279,5102725,"Bohemia Chardonnay brut 0,75 l / dárk.","jakostní šumivé víno","xx",12.5,"Vyrobeno v České republice","Výrobce BOHEMIA SEKT,s.r.o. Smetanova 220, 332 02 Starý Plzenec, Česká republika","brut","obsahuje siřičitany",0.75,null,44]
["L1394078",8594000941279,5102725,"Bohemia Chardonnay brut 0,75 l / dárk.","jakostní šumivé víno","xx",12.5,"Vyrobeno v České republice","Výrobce BOHEMIA SEKT,s.r.o. Smetanova 220, 332 02 Starý Plzenec, Česká republika","brut","obsahuje siřičitany",0.75]
["L1314076",8594000941279,5102725,"Bohemia Chardonnay brut 0,75 l / dárk.","jakostní šumivé víno","xx",12.5,"Vyrobeno v České republice","Výrobce BOHEMIA SEKT,s.r.o. Smetanova 220, 332 02 Starý Plzenec, Česká republika","brut","obsahuje siřičitany",0.75]
["L1393281",8594000941279,5102725,"Bohemia Chardonnay brut 0,75 l / dárk.","jakostní šumivé víno","xx",12.5,"Vyrobeno v České republice","Výrobce BOHEMIA SEKT,s.r.o. Smetanova 220, 332 02 Starý Plzenec, Česká republika","brut","obsahuje siřičitany",0.75]
["L1394157",8594000941507,5104800,"Bohemia Sekt Prestige demi sec 0,75 / d.","jakostní šumivé víno","xx",12.5,"Vyrobeno v České republice","Výrobce BOHEMIA SEKT,s.r.o. Smetanova 220, 332 02 Starý Plzenec, Česká republika","demi sec","obsahuje siřičitany",0.75,null,45]
["L1392328",8594000941507,5104800,"Bohemia Sekt Prestige demi sec 0,75 / d.","jakostní šumivé víno","xx",12.5,"Vyrobeno v České republice","Výrobce BOHEMIA SEKT,s.r.o. Smetanova 220, 332 02 Starý Plzenec, Česká republika","demi sec","obsahuje siřičitany",0.75]
["L1394170",8594000941682,5100800,"Bohemia Sekt demi sec 3 l / dárk.","jakostní šumivé víno","xx",11,"Vyrobeno v České republice","Výrobce BOHEMIA SEKT,s.r.o. Smetanova 220, 332 02 Starý Plzenec, Česká republika","demi sec","obsahuje siřičitany",3,null,46]
["L1394140",8594000941682,5100800,"Bohemia Sekt demi sec 3 l / dárk.","jakostní šumivé víno","xx",11,"Vyrobeno v České republice","Výrobce BOHEMIA SEKT,s.r.o. Smetanova 220, 332 02 Starý Plzenec, Česká republika","demi sec","obsahuje siřičitany",3]
["L1394146",8594000941682,5100800,"Bohemia Sekt demi sec 3 l / dárk.","jakostní šumivé víno","xx",11,"Vyrobeno v České republice","Výrobce BOHEMIA SEKT,s.r.o. Smetanova 220, 332 02 Starý Plzenec, Česká republika","demi sec","obsahuje siřičitany",3]
["L1112347",4003310112070,1120765,"Fürst von Metternich trocken 0,75 l","šumivé víno","xx","12,5","Vyrobeno v Německu","Výrobce Furst von Metternich Sektkellerei GMBH, D-65366 Johannisberg, Německo","brut","obsahuje siřičitany",0.75,null,48]
["L1114168",4003310011632,1524600,"Henkell Trocken MQB 0,75 l","šumivé víno","xx","11,5","Vyrobeno v Německu","Výrobce Henkell & Co. Sektkellerei KG, Wiesbaden, Německo","demi sec","obsahuje siřičitany",0.75,null,49]
["L1114112",4003310011632,1524600,"Henkell Trocken MQB 0,75 l","šumivé víno","xx","11,5","Vyrobeno v Německu","Výrobce Henkell & Co. Sektkellerei KG, Wiesbaden, Německo","demi sec","obsahuje siřičitany",0.75,null,50]
[null,4003310152458,1524565,"Henkell Trocken 0,75 l","šumivé víno","xx","11,5","Vyrobeno v Německu","Výrobce Henkell & Co. Sektkellerei KG, Wiesbaden, Německo","demi sec","obsahuje siřičitany",0.75,null,50]
[null,4003310011632,1524624,"Henkell Trocken MQB 0,75 l-IC","šumivé víno","xx","11,5","Vyrobeno v Německu","Výrobce Henkell & Co. Sektkellerei KG, Wiesbaden, Německo","demi sec","obsahuje siřičitany",0.75,null,51]
[null,4003310164543,1645465,"Henkell Blanc de Blancs 0,75 l","šumivé víno","xx","11,5","Vyrobeno v Německu","Výrobce Henkell & Co. Sektkellerei KG, Wiesbaden, Německo","demi sec","obsahuje siřičitany",0.75,null,52]
["L132912310",8588000002269,5021100,"Hubert Club demi sec 0,75 l","šumivé víno","xx","11,5","Vyrobeno na Slovensku","Výrobce Hubert J.E, spol.s.r.o., Sereď, Slovensko","demi sec","obsahuje siřičitany",0.75,null,53]
["L133012288",8588000002269,5021100,"Hubert Club demi sec 0,75 l","šumivé víno","xx","11,5","Vyrobeno na Slovensku","Výrobce Hubert J.E, spol.s.r.o., Sereď, Slovensko","demi sec","obsahuje siřičitany",0.75]
["L133012288",8588000002269,5021100,"Hubert Club demi sec 0,75 l","šumivé víno","xx","11,5","Vyrobeno na Slovensku","Výrobce Hubert J.E, spol.s.r.o., Sereď, Slovensko","demi sec","obsahuje siřičitany",0.75]
[null,8588000002269,5021100,"Hubert Club demi sec 0,75 l","šumivé víno","xx","11,5","Vyrobeno na Slovensku","Výrobce Hubert J.E, spol.s.r.o., Sereď, Slovensko","demi sec","obsahuje siřičitany",0.75,null,54]
["L142093030",8588000002412,5026100,"Hubert de Luxe 0,75 l","šumivé víno","xx",null,"Vyrobeno na Slovensku","Výrobce Hubert J.E, spol.s.r.o., Sereď, Slovensko",null,"obsahuje siřičitany",0.75,null,54]
["L142093030",8588000002412,5026100,"Hubert de Luxe 0,75 l","šumivé víno","xx",null,"Vyrobeno na Slovensku","Výrobce Hubert J.E, spol.s.r.o., Sereď, Slovensko",null,"obsahuje siřičitany",0.75]
[null,8588000002412,5026100,"Hubert de Luxe 0,75 l","šumivé víno","xx",null,"Vyrobeno na Slovensku","Výrobce Hubert J.E, spol.s.r.o., Sereď, Slovensko",null,"obsahuje siřičitany",0.75,null,55]
["L148301027",8588000002238,5020200,"Hubert Club brut 0,75 l","šumivé víno","xx",12,"Vyrobeno na Slovensku","Výrobce Hubert J.E, spol.s.r.o., Sereď, Slovensko","brut","obsahuje siřičitany",0.75,null,55]
["L132301198",8588000002238,5020200,"Hubert Club brut 0,75 l","šumivé víno","xx",12,"Vyrobeno na Slovensku","Výrobce Hubert J.E, spol.s.r.o., Sereď, Slovensko","brut","obsahuje siřičitany",0.75]
["L137401283",8588000002238,5020200,"Hubert Club brut 0,75 l","šumivé víno","xx",12,"Vyrobeno na Slovensku","Výrobce Hubert J.E, spol.s.r.o., Sereď, Slovensko","brut","obsahuje siřičitany",0.75]
["L148301027",8588000002238,5020200,"Hubert Club brut 0,75 l","šumivé víno","xx",12,"Vyrobeno na Slovensku","Výrobce Hubert J.E, spol.s.r.o., Sereď, Slovensko","brut","obsahuje siřičitany",0.75]
["L14188",8006220001997,6743565,"Prosecco Extra Dry Prestige Spumanti 0,75l","šumivé víno","xx",11,"Vrobeno v Itálii","Výrobce Mionetto Spa, Valdobiadene, Itálie","brut","obsahuje siřičitany",0.75,null,56]
["L14186",8006220001997,6743565,"Prosecco Extra Dry Prestige Spumanti 0,75l","šumivé víno","xx",11,"Vrobeno v Itálii","Výrobce Mionetto Spa, Valdobiadene, Itálie","brut","obsahuje siřičitany",0.75]
["L14104",5905629087010,6733800,"Valdobbiadene D.O.CMO 0,75 l","šumivé víno","xx",11,"Vrobeno v Itálii","Výrobce Mionetto Spa, Valdobiadene, Itálie","brut","obsahuje siřičitany",0.75,null,57]
[null,4003310272019,2720165,"Carstens bio 0,75l","sekt z hroznů z biologického pěstování","xx","11","Vyrobeno v Německu","Výrobce Sektkellerei Carstens GMBH, Neustadt/Weinstrasse, Německo","brut","obsahuje siřičitany",0.75,null,59]
["L1314008",4003310501812,5018100,"Hubert Club demi sec 0,2 l","šumivé víno","xx","11,5","Vyrobeno na Slovensku","Výrobce Hubert J.E, spol.s.r.o., Sereď, Slovensko","demi sec","obsahuje siřičitany",0.75,null,60]
["L1314079",4003310501812,5018100,"Hubert Club demi sec 0,2 l","šumivé víno","xx","11,5","Vyrobeno na Slovensku","Výrobce Hubert J.E, spol.s.r.o., Sereď, Slovensko","demi sec","obsahuje siřičitany",0.75]
["L1314135",4003310501812,5018100,"Hubert Club demi sec 0,2 l","šumivé víno","xx","11,5","Vyrobeno na Slovensku","Výrobce Hubert J.E, spol.s.r.o., Sereď, Slovensko","demi sec","obsahuje siřičitany",0.75]
["L1314147",4003310501812,5018100,"Hubert Club demi sec 0,2 l","šumivé víno","xx","11,5","Vyrobeno na Slovensku","Výrobce Hubert J.E, spol.s.r.o., Sereď, Slovensko","demi sec","obsahuje siřičitany",0.75]